{"text_format":"3","workbook":"xlsx","n_sheets":3,"sheets":["即墨区2023年第三批“用证”事项清单","导出计数_实施主体","WpsReserved_CellImgList"],"not_rendered":{"defined_names":2},"read":"whole","date_system":"1900"}

{"sheet":"即墨区2023年第三批“用证”事项清单","index":0,"n_rows":2471,"n_cols":5,"rows_kept":2471,"merged":[[0,0,0,4],[1,0,1,3]]}
["即墨区2023年第三批电子证照证明“用证”事项清单"]
["截至目前，我区通过全市一体化政务服务平台等办理以下政务服务事项时，若相关证明材料在下表时间范围内，可以免于提交。"]
["序号","涉及事项","业务办理系统建设层级","已实现“免提交”的证照","证照数据时间范围"]
[1,"出口货物原产地证书签发","国家级","居民身份证","有效期内数据"]
[2,"对机关、团体、企业事业单位和其他组织以及中国公民利用档案馆保存的未开放的档案的审查","市级","居民身份证","有效期内数据"]
[3,"新建住宅管道燃气报装","区县级","居民身份证、房产证","有效期内数据"]
[4,"既有住宅管道燃气报装","区县级","居民身份证、房产证","有效期内数据"]
[5,"非居民建筑管道燃气报装（有外线）","区县级","居民身份证、营业执照","有效期内数据"]
[6,"非居民建筑管道燃气报装（无外线）","区县级","居民身份证、营业执照","有效期内数据"]
[7,"危险化学品购入","省级","营业执照、身份证、危险化学品安全生产许可证","有效期内数据"]
[8,"退出现役落户","省级","居民身份证","有效期内数据"]
[9,"户口登记（转业安置落户登记）","省级","居民身份证、户口薄","有效期内数据"]
[10,"户口登记（收养登记）","省级","居民身份证、居民户口薄","有效期内数据"]
[11,"户口登记（出生登记）","省级","居民身份证，出生医学证明、结婚证","有效期内数据"]
[12,"夫妻投靠迁移","省级","居民身份证、结婚证、户口本","有效期内数据"]
[13,"父母投靠子女迁移","省级","居民身份证，出生医学证明","有效期内数据"]
[14,"子女投靠父母迁移","省级","居民身份证、结婚证、离婚证","有效期内数据"]
[15,"居住落户迁移","省级","不动产权证、出生医学证明、结婚证、离婚证、居民身份证","有效期内数据"]
[16,"人才落户迁移","省级","居民身份证","有效期内数据"]
[17,"调动和录(聘)用人员迁移","省级","居民身份证","有效期内数据"]
[18,"变更更正姓名","省级","居民身份证","有效期内数据"]
[19,"大中专毕业生就业、回原籍迁移","省级","居民身份证","有效期内数据"]
[20,"出国（境） 定居注销","省级","居民身份证","有效期内数据"]
[21,"死亡注销","省级","居民身份证、殡葬火化证","有效期内数据"]
[22,"变更更正 性别","省级","居民身份证","有效期内数据"]
[23,"变更服务处所、学历、婚姻状况等","省级","学历证明、结婚证、离婚证","有效期内数据"]
[24,"变更更正 民族","省级","居民身份证","有效期内数据"]
[25,"更正出生日期","省级","居民身份证","有效期内数据"]
[26,"印章遗失、更换需补刻备案","青岛市","中华人民共和国居民身份证","有效期内数据"]
[27,"企业公章刻制备案","青岛市","中华人民共和国居民身份证","有效期内数据"]
[28,"国家机关、党政机关、事业单位等公章刻制备案","青岛市","中华人民共和国居民身份证","有效期内数据"]
[29,"民用爆炸物品运输许可证核发","国家级","中华人民共和国居民身份证","有效期内数据"]
[30,"烟花爆竹道路运输许可证核发","国家级","中华人民共和国居民身份证","有效期内数据"]
[31,"民用爆炸物品购买许可证核发","国家级","中华人民共和国居民身份证","有效期内数据"]
[32,"夫妻投靠","省级","中华人民共和国居民身份证、结婚证","有效期内数据"]
[33,"居住落户","省级","中华人民共和国居民身份证","有效期内数据"]
[34,"大中专招生迁移","省级","中华人民共和国居民身份证","有效期内数据"]
[35,"排放偶发性强烈噪声审批","区级","居民身份证","有效期内数据"]
[36,"居住证首次申领","省级","居民身份证","有效期内数据"]
[37,"免检车申领检验标志","国家级","机动车检验合格标志","有效期内数据"]
[38,"放射性物品道路运输审批","市级","营业执照、身份证","有效期内数据"]
[39,"剧毒化学品购买许可","省级","营业执照、身份证","有效期内数据"]
[40,"对第二类、第三类易制毒化学品购买备案证明的审批","部级","危险化学品经营许可证","有效期内数据"]
[41,"对第二类易制毒化学品运输许可的审批","部级","危险化学品经营许可证","有效期内数据"]
[42,"对第三类易制毒化学品运输事前备案的审批","部级","危险化学品经营许可证","有效期内数据"]
[43,"车驾管业务","国家级","电子居住证、交强险、车船税","有效期内数据"]
[44,"车辆解抵押业务","国家级","电子居住证","有效期内数据"]
[45,"金融机构营业场所、金库安全防范设施建设方案审批及工程验收 ","区级","建筑施工企业安全生产许可证书、建筑业企业资质证书、建设工程质量检测机构资质证书、建设工程规划许可证、居民身份证、营业执照","有效期内数据"]
[46,"边境管理区通行证核发","区县级","居民身份证","有效期内数据"]
[47,"国外、港澳台回来定居（恢复户口）及加入中国国籍落户","省级","居民身份证","有效期内数据"]
[48,"临时居民身份证申领","省级","居民身份证","有效期内数据"]
[49,"居民身份证解除挂失","省级","居民身份证","有效期内数据"]
[50,"注销户口证明","省级","居民身份证","有效期内数据"]
[51,"更正出生地","省级","居民身份证","有效期内数据"]
[52,"户口簿补领","省级","居民身份证","有效期内数据"]
[53,"户籍证明办理（公民身份证号码更正证明）","省级","居民身份证","有效期内数据"]
[54,"无户口人员登记户口","省级","居民身份证","有效期内数据"]
[55,"户口登记姓名内容变更更正证明","省级","居民身份证","有效期内数据"]
[56,"居民身份证挂失申报","省级","居民身份证","有效期内数据"]
[57,"居民身份证捡拾登记","省级","居民身份证","有效期内数据"]
[58,"户成员关系调整","省级","居民身份证","有效期内数据"]
[59,"更正籍贯","省级","居民身份证","有效期内数据"]
[60,"居民身份证换领","省级","居民身份证","有效期内数据"]
[61,"居民身份证发还","省级","居民身份证","有效期内数据"]
[62,"参军入伍注销","省级","居民身份证","有效期内数据"]
[63,"加入外国国籍并自动丧失中国国籍注销户口","省级","居民身份证","有效期内数据"]
[64,"户口簿换领","省级","居民身份证","有效期内数据"]
[65,"变更更正其他项目","省级","居民身份证","有效期内数据"]
[66,"临时身份证明办理","省级","居民身份证","有效期内数据"]
[67,"居民身份证首次申领","省级","居民身份证","有效期内数据"]
[68,"亲属关系证明","省级","居民身份证","有效期内数据"]
[69,"核发校车标牌","国家级","居民身份证","有效期内数据"]
[70,"机动车临时通行牌证核发","国家级","居民身份证","有效期内数据"]
[71,"机动车质押备案","国家级","居民身份证","有效期内数据"]
[72,"机动车变更登记（变更使用性质）","国家级","居民身份证","有效期内数据"]
[73,"机动车变更登记（变更车身颜色、变更发动机、车身或者车架）","国家级","居民身份证","有效期内数据"]
[74,"机动车注销登记","国家级","居民身份证","有效期内数据"]
[75,"机动车转移登记","国家级","居民身份证","有效期内数据"]
[76,"持军队、武装警察部队机动车驾驶证换发地方驾驶证","国家级","居民身份证","有效期内数据"]
[77,"机动车驾驶证初次申领","国家级","居民身份证","有效期内数据"]
[78,"机动车注册登记","国家级","居民身份证","有效期内数据"]
[79,"电动自行车登记挂牌","省级","居民身份证","有效期内数据"]
[80,"机动车驾驶人审验","国家级","居民身份证","有效期内数据"]
[81,"机动车驾驶证档案信息查阅服务","国家级","居民身份证","有效期内数据"]
[82,"机动车档案信息查阅服务","国家级","居民身份证","有效期内数据"]
[83,"校车驾驶资格认定","国家级","居民身份证","有效期内数据"]
[84,"小型汽车驾驶证可异地分科目考试","国家级","居民身份证","有效期内数据"]
[85,"县级行政区域内举行集会游行示威许可","区级","居民身份证","有效期内数据"]
[86,"举办1000人以上5000人以下大型群众性活动安全许可","区级","居民身份证","有效期内数据"]
[87,"猎民配置枪支许可","省级","居民身份证","有效期内数据"]
[88,"犬类准养证核发","区级","居民身份证","有效期内数据"]
[89,"进口民用爆炸物品的情况备案 ","国家级","中华人民共和国居民身份证","有效期内数据"]
[90,"民用爆炸物品运输许可","国家级","中华人民共和国居民身份证","有效期内数据"]
[91,"互联网上网服务营业场所信息网络安全审核","区级","居民身份证","有效期内数据"]
[92,"公章刻制业特种行业许可","区级","居民身份证","有效期内数据"]
[93,"民用爆炸物品销售情况备案","国家级","中华人民共和国居民身份证","有效期内数据"]
[94,"购买剧毒化学品、易制爆危险化学品情况备案","省级","营业执照、身份证、危险化学品安全生产许可证","有效期内数据"]
[95,"牧民配置枪支许可","省级","居民身份证","有效期内数据"]
[96,"娱乐场所备案 ","区级","居民身份证","有效期内数据"]
[97,"废旧金属收购业备案","区级","居民身份证","有效期内数据"]
[98,"民用爆炸物品购买许可","国家级","中华人民共和国居民身份证","有效期内数据"]
[99,"举办Ⅲ级（含）以下大型焰火燃放活动许可","国家级","中华人民共和国居民身份证","有效期内数据"]
[100,"娱乐场所项目变更备案","区级","居民身份证","有效期内数据"]
[101,"旅馆业特种行业许可 ","市级","身份证、营业执照","有效期内数据"]
[102,"爆破作业单位备案 ","国家级","中华人民共和国居民身份证","有效期内数据"]
[103,"通过道路运输其他放射性物品（县级权限）","市级","营业执照、身份证","有效期内数据"]
[104,"出口民用爆炸物品的情况备案","国家级","中华人民共和国居民身份证","有效期内数据"]
[105,"金融机构营业场所和金库安全防范设施建设方案审批（县级权限） ","区级","建筑施工企业安全生产许可证书、建筑业企业资质证书、建设工程质量检测机构资质证书、建设工程规划许可证、居民身份证、营业执照","有效期内数据"]
[106,"剧毒化学品公路运输的许可 ","省级","营业执照、身份证、危险化学品安全生产许可证","有效期内数据"]
[107,"民用爆炸物品生产企业备案","国家级","中华人民共和国居民身份证","有效期内数据"]
[108,"野生动物保护、饲养、科研单位配置枪支许可","省级","居民身份证","有效期内数据"]
[109,"剧毒化学品道路运输通行许可","省级","营业执照、身份证、危险化学品安全生产许可证","有效期内数据"]
[110,"民用爆炸物品销售企业备案 ","国家级","中华人民共和国居民身份证","有效期内数据"]
[111,"销售剧毒化学品、易制爆危险化学品情况备案","省级","营业执照、身份证、危险化学品安全生产许可证","有效期内数据"]
[112,"举办焰火晚会及其他大型焰火燃放活动许可 ","国家级","中华人民共和国居民身份证","有效期内数据"]
[113,"民用爆炸物品购买情况备案 ","国家级","中华人民共和国居民身份证","有效期内数据"]
[114,"运输危险化学品的车辆进入危险化学品运输车辆限制通行区域审批","国家级","机动车行驶证、驾驶证","有效期内数据"]
[115,"涉路施工交通安全审查（县级权限）","市级","居民身份证","有效期内数据"]
[116,"在限制、禁止的区域或者路段通行、停靠机动车的许可","国家级","机动车行驶证、驾驶证","有效期内数据"]
[117,"临时占用道路从事大型活动的许可","市级","居民身份证","有效期内数据"]
[118,"居住证换领","省级","居民身份证","有效期内数据"]
[119,"居住证补领","省级","居民身份证","有效期内数据"]
[120,"居住证签注","省级","居民身份证","有效期内数据"]
[121,"居住证核发","省级","居民身份证","有效期内数据"]
[122,"无犯罪记录证明","省级","居民身份证","有效期内数据"]
[123,"道路交通事故社会救助基金-申请垫付抢救费用","市级","居民身份证","有效期内数据"]
[124,"道路交通事故社会救助基金-申请垫付丧葬费用","市级","居民身份证","有效期内数据"]
[125,"保安员证核发","无","居民身份证","有效期内数据"]
[126,"爆破作业合同备案","国家级","中华人民共和国居民身份证","有效期内数据"]
[127,"边境管理区通行证（县级）","国家级","中华人民共和国居民身份证","有效期内数据"]
[128,"变更更正民族","省级","居民身份证","有效期内数据"]
[129,"变更更正性别","省级","居民身份证","有效期内数据"]
[130,"城镇居民回迁农村","省级","居民身份证","有效期内数据"]
[131,"持准迁证迁出","省级","居民身份证","有效期内数据"]
[132,"出入境通行证签发","区县级","居民身份证","有效期内数据"]
[133,"大中专 学校招生迁移","省级","居民身份证","有效期内数据"]
[134,"大中专学生毕业迁出","省级","居民身份证","有效期内数据"]
[135,"大中专学生毕业迁入","省级","居民身份证","有效期内数据"]
[136,"大中专学校招生迁入","省级","居民身份证","有效期内数据"]
[137,"大中专招生迁出","省级","居民身份证","有效期内数据"]
[138,"大中专转退学、开除学籍迁出","省级","居民身份证","有效期内数据"]
[139,"单位国际联网备案","国家级","居民身份证","有效期内数据"]
[140,"调动和录用迁入","省级","居民身份证","有效期内数据"]
[141,"非机动车登记（设区的市级权限）","国家级","否","有效期内数据"]
[142,"非机动车登记（县级权限）","国家级","否","有效期内数据"]
[143,"佛教、道教人员迁入","省级","居民身份证","有效期内数据"]
[144,"父母投靠成年子女（城镇地区）","省级","居民身份证","有效期内数据"]
[145,"港澳台居民居住证补领","区县级","居民身份证","有效期内数据"]
[146,"港澳台居民居住证换领","区县级","居民身份证","有效期内数据"]
[147,"港澳台居民居住证签发","区县级","居民身份证","有效期内数据"]
[148,"港澳台居民居住证申领","区县级","居民身份证","有效期内数据"]
[149,"港澳台居民居住证作废","区县级","居民身份证","有效期内数据"]
[150,"个人国际联网备案","国家级","居民身份证","有效期内数据"]
[151,"购买第二类易制毒化学品许可","无","居民身份证","有效期内数据"]
[152,"购买第三类易制毒化学品许可","无","居民身份证","有效期内数据"]
[153,"合法稳定住所迁入","省级","居民身份证","有效期内数据"]
[154,"户籍证明（户口登记项目内容变更更正证明）","省级","居民身份证","有效期内数据"]
[155,"户籍证明（亲属关系证明）","省级","居民身份证","有效期内数据"]
[156,"户籍证明（注销户口证明）","省级","居民身份证","有效期内数据"]
[157,"户口注销（出国境定居注销户口）","省级","居民身份证","有效期内数据"]
[158,"户口注销（加入外国国籍并自动丧失中国国籍注销户口）","省级","居民身份证","有效期内数据"]
[159,"户口注销（死亡注销）","省级","居民身份证","有效期内数据"]
[160,"机动车抵押登记","国家级","否","有效期内数据"]
[161,"机动车抵押登记（机动车解除抵押登记）","国家级","否","有效期内数据"]
[162,"机动车检验合格标志核发","国家级","否","有效期内数据"]
[163,"金融机构营业场所和金库安全防范设施建设工程验收（县级权限）","无","居民身份证","有效期内数据"]
[164,"经商（招工）迁入","省级","居民身份证","有效期内数据"]
[165,"居民身份证补领","省级","居民身份证","有效期内数据"]
[166,"举办大型群众性活动安全许可","无","居民身份证","有效期内数据"]
[167,"军官（士官）家属随军","省级","居民身份证","有效期内数据"]
[168,"普通护照签发","区县级","居民身份证","有效期内数据"]
[169,"前往台湾签注签发（县级-乘务签注）","区县级","居民身份证","有效期内数据"]
[170,"前往台湾签注签发（县级-定居签注）","区县级","居民身份证","有效期内数据"]
[171,"前往台湾签注签发（县级-个人旅游签注）","区县级","居民身份证","有效期内数据"]
[172,"前往台湾签注签发（县级-其他签注）","区县级","居民身份证","有效期内数据"]
[173,"前往台湾签注签发（县级-商务签注）","区县级","居民身份证","有效期内数据"]
[174,"前往台湾签注签发（县级-探亲签注）","区县级","居民身份证","有效期内数据"]
[175,"前往台湾签注签发（县级-团队旅游签注）","区县级","居民身份证","有效期内数据"]
[176,"前往台湾签注签发（县级-学习签注）","区县级","居民身份证","有效期内数据"]
[177,"前往台湾签注签发（县级-应邀签注）","区县级","居民身份证","有效期内数据"]
[178,"人才落户","省级","居民身份证","有效期内数据"]
[179,"三个月一次出入境有效的出入境通行证签发（县级）","区县级","居民身份证","有效期内数据"]
[180,"申请换发补发往来港澳通行证","区县级","居民身份证","有效期内数据"]
[181,"申请换发或补发","区县级","居民身份证","有效期内数据"]
[182,"申请加注","区县级","居民身份证","有效期内数据"]
[183,"收（寄）养","省级","居民身份证","有效期内数据"]
[184,"台湾居民定居证明签发","区县级","居民身份证","有效期内数据"]
[185,"投靠其他近亲属（投靠城镇地区共同生活的其他近亲属）","省级","居民身份证","有效期内数据"]
[186,"未婚子女投靠父母（城镇地区）","省级","居民身份证","有效期内数据"]
[187,"校车驾驶资格许可","国家级","否","有效期内数据"]
[188,"校车驾驶资格许可（县级权限）","国家级","否","有效期内数据"]
[189,"校车使用许可（县级权限）","国家级","否","有效期内数据"]
[190,"运输第二类易制毒化学品许可","无","居民身份证","有效期内数据"]
[191,"运输第三类易制毒化学品许可","无","居民身份证","有效期内数据"]
[192,"在大陆补发台湾居民来往大陆通行证","区县级","居民身份证","有效期内数据"]
[193,"在大陆换发台湾居民来往大陆通行证","区县级","居民身份证","有效期内数据"]
[194,"转学、退学或开除学籍迁入","省级","居民身份证","有效期内数据"]
[195,"治安保卫重点单位保卫机构、保卫人员备案","无","居民身份证","有效期内数据"]
[196,"租房迁入","省级","居民身份证","有效期内数据"]
[197,"内地居民往来港澳通行证和签注签发（商务类）","区县级","居民身份证","有效期内数据"]
[198,"内地居民往来港澳通行证和签注（非商务类）签发","区县级","居民身份证","有效期内数据"]
[199,"对导游人员擅自变动旅游项目、接待计划、中止导游活动的处罚","区级","导游证","有效期内数据"]
[200,"政府信息依申请公开（综合执法局）","青岛市","居民身份证","有效期内数据"]
[201,"路面执法通行","区县级","货车城市通行证、建筑废弃物、危险化学品车辆通行证","有效期内数据"]
[202,"新供地协议出让","省级","身份证明、营业执照","有效期内数据"]
[203,"办理林草植物检疫证书","国家级","营业执照、产地检疫合格证","有效期内数据"]
[204,"房屋预测绘成果审查备案","市级","居民身份证、营业执照","有效期内数据"]
[205,"房屋实测绘成果审查备案","市级","居民身份证、营业执照、事业单位法人证书、建设工程规划条件核实合格证、建设工程竣工验收备案证书、建设工程规划许可证","有效期内数据"]
[206,"土地测绘成果审查备案","市级","居民身份证、营业执照","有效期内数据"]
[207,"海籍调查成果审查备案","市级","居民身份证、营业执照","有效期内数据"]
[208,"林权调查成果审查备案","市级","居民身份证、营业执照","有效期内数据"]
[209,"集体土地所有权变更登记","市级","不动产权证","有效期内数据"]
[210,"集体土地所有权转移登记","市级","不动产权证","有效期内数据"]
[211,"集体土地所有权注销登记","市级","不动产权证","有效期内数据"]
[212,"国有建设用地使用权首次登记","市级","居民身份证","有效期内数据"]
[213,"国有建设用地使用权变更登记","市级","居民身份证、不动产权证","有效期内数据"]
[214,"国有建设用地使用权转移登记","市级","居民身份证、不动产权证","有效期内数据"]
[215,"国有建设用地使用权注销登记","市级","居民身份证、不动产权证","有效期内数据"]
[216,"国有建设用地使用权及房屋所有权首次登记","市级","居民身份证、不动产权证","有效期内数据"]
[217,"国有建设用地使用权及房屋所有权变更登记","市级","居民身份证、不动产权证","有效期内数据"]
[218,"国有建设用地使用权及房屋所有权转移登记(新建房屋）","市级","居民身份证","有效期内数据"]
[219,"国有建设用地使用权及房屋所有权注销登记","市级","居民身份证、不动产权证","有效期内数据"]
[220,"宅基地使用权首次登记","市级","居民身份证","有效期内数据"]
[221,"宅基地使用权变更登记","市级","居民身份证、不动产权证","有效期内数据"]
[222,"宅基地使用权转移登记","市级","居民身份证、不动产权证","有效期内数据"]
[223,"宅基地使用权注销登记","市级","居民身份证、不动产权证","有效期内数据"]
[224,"宅基地使用权及房屋所有权首次登记","市级","居民身份证、不动产权证","有效期内数据"]
[225,"宅基地使用权及房屋所有权变更登记","市级","居民身份证、不动产权证","有效期内数据"]
[226,"宅基地使用权及房屋所有权转移登记","市级","居民身份证、不动产权证","有效期内数据"]
[227,"宅基地使用权及房屋所有权注销登记","市级","居民身份证、不动产权证","有效期内数据"]
[228,"集体建设用地使用权首次登记","市级","居民身份证","有效期内数据"]
[229,"集体建设用地使用权变更登记","市级","居民身份证、不动产权证","有效期内数据"]
[230,"集体建设用地使用权转移登记","市级","居民身份证、不动产权证","有效期内数据"]
[231,"集体建设用地使用权注销登记","市级","居民身份证、不动产权证","有效期内数据"]
[232,"集体建设用地使用权及房屋所有权首次登记","市级","居民身份证、不动产权证","有效期内数据"]
[233,"集体建设用地使用权及房屋所有权变更登记","市级","居民身份证、不动产权证","有效期内数据"]
[234,"集体建设用地使用权及房屋所有权转移登记","市级","居民身份证、不动产权证","有效期内数据"]
[235,"集体建设用地使用权及房屋所有权注销登记","市级","居民身份证、不动产权证","有效期内数据"]
[236,"林权首次登记","市级","居民身份证","有效期内数据"]
[237,"林权变更登记","市级","居民身份证、不动产权证","有效期内数据"]
[238,"林权转移登记","市级","居民身份证、不动产权证","有效期内数据"]
[239,"林权注销登记","市级","居民身份证、不动产权证","有效期内数据"]
[240,"地役权首次登记","市级","居民身份证、不动产权证","有效期内数据"]
[241,"地役权变更登记","市级","居民身份证、不动产登记证明","有效期内数据"]
[242,"地役权转移登记","市级","居民身份证、不动产登记证明","有效期内数据"]
[243,"地役权注销登记","市级","居民身份证、不动产登记证明","有效期内数据"]
[244,"抵押权首次登记","市级","居民身份证、不动产权证","有效期内数据"]
[245,"抵押权变更登记","市级","居民身份证、不动产登记证明","有效期内数据"]
[246,"抵押权转移登记","市级","居民身份证、不动产登记证明","有效期内数据"]
[247,"抵押权注销登记","市级","居民身份证、不动产登记证明","有效期内数据"]
[248,"不动产转移预告登记","市级","居民身份证、不动产权证","有效期内数据"]
[249,"预告登记变更","市级","居民身份证、不动产登记证明","有效期内数据"]
[250,"预告登记转移","市级","居民身份证、不动产登记证明","有效期内数据"]
[251,"预告登记注销","市级","居民身份证、不动产登记证明","有效期内数据"]
[252,"依申请更正登记","市级","居民身份证、不动产权证","有效期内数据"]
[253,"异议登记","市级","居民身份证","有效期内数据"]
[254,"注销异议登记","市级","居民身份证、不动产登记证明","有效期内数据"]
[255,"居住权首次登记","市级","居民身份证、不动产权证","有效期内数据"]
[256,"居住权变更登记","市级","居民身份证、不动产登记证明","有效期内数据"]
[257,"居住权注销登记","市级","居民身份证、不动产登记证明","有效期内数据"]
[258,"国有建设用地使用权及房屋所有权转移登记（存量房屋买卖）","市级","居民身份证、不动产权证","有效期内数据"]
[259,"国有建设用地使用权及房屋所有权转移登记（存量房屋赠与）","市级","居民身份证、不动产权证","有效期内数据"]
[260,"国有建设用地使用权及房屋所有权转移登记（企业间存量房屋）","市级","居民身份证、不动产权证","有效期内数据"]
[261,"国有建设用地使用权及房屋所有权转移登记（依生效法律文书）","市级","居民身份证、不动产权证","有效期内数据"]
[262,"国有建设用地使用权及房屋所有权转移登记（公有住房）","市级","居民身份证","有效期内数据"]
[263,"国有建设用地使用权及房屋所有权转移登记（其他）","市级","居民身份证、不动产权证","有效期内数据"]
[264,"预购房屋预告登记","市级","居民身份证","有效期内数据"]
[265,"抵押预告登记","市级","居民身份证","有效期内数据"]
[266,"换发登记","市级","居民身份证","有效期内数据"]
[267,"补发登记","市级","居民身份证","有效期内数据"]
[268,"依法查询、复制不动产登记资料","市级","居民身份证","有效期内数据"]
[269,"种子生产经营者在种子生产经营许可证载明的有效区域设立分支机构的，专门经营不再分装的包装种子的，或者受具有种子生产经营许可证的种子生产经营者以书面委托生产、代销其种子的备案","省级","营业执照","有效期内数据"]
[270,"建设项目用地以划拨方式使用国有土地审查","市级","居民身份证、营业执照","有效期内数据"]
[271,"农村集体经济组织兴办企业使用集体建设用地审核","市级","居民身份证、营业执照","有效期内数据"]
[272,"乡（镇）村公共设施、公益事业使用集体建设用地审核","市级","居民身份证、营业执照","有效期内数据"]
[273,"建设用地改变用途审核","省级","居民身份证、营业执照","有效期内数据"]
[274,"以划拨方式取得的土地使用权转让审查","市级","居民身份证、营业执照","有效期内数据"]
[275,"建设项目用地以有偿方式使用国有建设用地审查","国家级","居民身份证、营业执照","有效期内数据"]
[276,"测绘项目登记","省级","测绘资质证书、测绘作业证","有效期内数据"]
[277,"矿业权抵押备案","省级","采矿许可证","有效期内数据"]
[278,"房屋专项维修资金缴存","区县级","居民身份证、不动产权证书","有效期内数据"]
[279,"房屋专项维修资金退款","区县级","居民身份证","有效期内数据"]
[280,"企业改制出让","市级","营业执照","有效期内数据"]
[281,"不动产登记信息查询证明","市级","居民身份证","有效期内数据"]
[282,"查封登记","市级","居民身份证","有效期内数据"]
[283,"法人或者其他组织需要利用属于国家秘密的基础测绘成果审批","省级","居民身份证","有效期内数据"]
[284,"竣工规划核实","市级","建设工程竣工规划核实合格证","有效期内数据"]
[285,"植物检疫审批（引进林木种子、苗木检疫审批）","省级","身份证明、营业执照","有效期内数据"]
[286,"人工繁育重点保护野生动物许可（人工繁育国家重点保护野生动物许可）","省级","身份证明","有效期内数据"]
[287,"依申请政府信息公开（自然资源局）","区县级","身份证明","有效期内数据"]
[288,"开采矿产资源划定矿区范围审批","省级","营业执照","有效期内数据"]
[289,"采矿权注销登记","省级","营业执照","有效期内数据"]
[290,"采矿权延续登记","省级","营业执照","有效期内数据"]
[291,"采矿权新设登记","省级","营业执照","有效期内数据"]
[292,"临时用地审批","市级","身份证明、营业执照","有效期内数据"]
[293,"法院协助执行以划拨方式取得的土地使用权转让","市级","身份证明、营业执照","有效期内数据"]
[294,"房地产转让涉及的划拨土地使用权转让","市级","身份证明、营业执照","有效期内数据"]
[295,"划拨土地保持原用途出让","市级","身份证明、营业执照","有效期内数据"]
[296,"海域使用权首次登记（自然资源局）","市级","身份证","有效期内数据"]
[297,"矿业权抵押备案设立","省级","采矿许可证、营业执照","有效期内数据"]
[298,"不动产预告登记","市级","身份证","有效期内数据"]
[299,"海域使用权变更登记（自然资源局）","市级","身份证，不动产权证","有效期内数据"]
[300,"林地使用权/林木所有权首次登记 ","市级","身份证","有效期内数据"]
[301,"集体建设用地使用权及建筑物、构筑物所有权变更登记","市级","身份证，不动产权证","有效期内数据"]
[302,"林地承包经营权/林木所有权首次登记 ","市级","身份证","有效期内数据"]
[303,"海域使用权注销登记（自然资源局）","市级","身份证，不动产权证","有效期内数据"]
[304,"集体土地所有权首次登记","市级","身份证","有效期内数据"]
[305,"集体建设用地使用权及建筑物、构筑物所有权转移登记","市级","身份证，不动产权证","有效期内数据"]
[306,"林地经营权/林木所有权或者林地经营权/林木使用权转移登记 ","市级","身份证","有效期内数据"]
[307,"森林高火险期内，进入森林高火险区的活动审批 ","省级","居民身份证","有效期内数据"]
[308,"建设项目用地以出让方式使用国有建设用地审查","市级","居民身份证、营业执照","有效期内数据"]
[309,"建设项目用地以作价出资或者入股方式使用国有建设用地审查","市级","居民身份证、营业执照","有效期内数据"]
[310,"依申请不动产更正登记","市级","身份证，不动产权证","有效期内数据"]
[311,"林地经营权/林木所有权或者林地经营权/林木使用权首次登记","市级","身份证","有效期内数据"]
[312,"林地使用权/森林、林木使用权首次登记","市级","身份证","有效期内数据"]
[313,"集体建设用地使用权及建筑物、构筑物所有权首次登记","市级","身份证","有效期内数据"]
[314,"集体建设用地使用权及建筑物、构筑物所有权注销登记","市级","身份证，不动产权证","有效期内数据"]
[315,"国有建设用地使用权及房屋所有权转移登记","市级","税费缴纳凭证","有效期内数据"]
[316,"建设项目用地以租赁方式使用国有建设用地审查","市级","居民身份证、营业执照","有效期内数据"]
[317,"林权抵押登记","市级","身份证，不动产权证、采矿许可证、营业执照","有效期内数据"]
[318,"海域使用权转移登记","市级","身份证，不动产权证","有效期内数据"]
[319,"国有建设用地使用权出让后土地使用权分割转让批准（县级权限）"," 省级","不动产权证","有效期内数据"]
[320,"采矿权变更登记","省级","营业执照","有效期内数据"]
[321,"临时建设工程规划许可办理","市级","身份证","有效期内数据"]
[322,"临时建设工程规划许可变更","市级","身份证","有效期内数据"]
[323,"临时建设工程规划许可延期","市级","身份证","有效期内数据"]
[324,"临时建设用地规划许可注销","市级","身份证","有效期内数据"]
[325,"建设工程规划许可注销","市级","身份证","有效期内数据"]
[326,"建设用地规划许可注销","市级","身份证","有效期内数据"]
[327,"建设用地规划许可办理","市级","身份证","有效期内数据"]
[328,"建设工程规划许可变更","市级","身份证","有效期内数据"]
[329,"人工繁育省重点保护陆生野生动物许可新设","市级","身份证明","有效期内数据"]
[330,"建设工程规划许可延期","市级","身份证明","有效期内数据"]
[331,"建设用地规划许可变更","市级","身份证明","有效期内数据"]
[332,"临时建设工程规划许可注销","市级","身份证明","有效期内数据"]
[333,"人工繁育省重点保护陆生野生动物许可注销","市级","身份证明","有效期内数据"]
[334,"森林防火期内在森林防火区野外用火新办审批","市级","身份证明","有效期内数据"]
[335,"乡村建设规划许可变更","市级","身份证明","有效期内数据"]
[336,"临时占用草原新办审批","市级","身份证明","有效期内数据"]
[337,"开发未确定使用权的国有荒山、荒地、荒滩从事生产审查","市级","身份证明","有效期内数据"]
[338,"林木采伐许可证延续","市级","身份证明","有效期内数据"]
[339,"建设用地规划许可延期","市级","身份证明","有效期内数据"]
[340,"从事营利性治沙活动新办许可","市级","身份证明","有效期内数据"]
[341,"建设项目用地预审与选址意见书注销","市级","身份证明","有效期内数据"]
[342,"森林草原防火期内在森林草原防火区爆破、勘察和施工等活动新办审批","市级","身份证明","有效期内数据"]
[343,"乡村建设规划许可延期","市级","身份证明","有效期内数据"]
[344,"建设项目用地预审与选址意见书办理","市级","身份证明","有效期内数据"]
[345,"建设工程规划许可办理","市级","身份证明","有效期内数据"]
[346,"乡（镇）村公共设施、公益事业使用集体建设用地审批","市级","居民身份证、乡村建设规划许可证","有效期内数据"]
[347,"进入地方级自然保护区核心区从事科学研究观测、调查活动新办审批","市级","人员信息证明","有效期内数据"]
[348,"乡（镇）村企业使用集体建设用地审批","市级","身份证明","有效期内数据"]
[349,"森林高火险期内进入森林高火险区新办审批","市级","车辆行驶证、身份证明","有效期内数据"]
[350,"建设项目用地预审与选址意见书变更","市级","身份证明","有效期内数据"]
[351,"进入草原防火管制区延续审批","市级","车辆行驶证、身份证明","有效期内数据"]
[352,"出售、购买、利用省重点保护陆生野生动物及其制品审批","市级","身份证明","有效期内数据"]
[353,"乡村建设规划许可注销","市级","身份证明","有效期内数据"]
[354,"省内调运林草植物检疫证书新办核发","市级","身份证明","有效期内数据"]
[355,"进入草原防火管制区新办审批","市级","身份证明、中华人民共和国机动车行驶证","有效期内数据"]
[356,"乡村建设规划许可办理","市级","身份证明","有效期内数据"]
[357,"乡村建设规划许可注销（农村村民住宅）","市级","身份证明","有效期内数据"]
[358,"林草植物产地检疫证书新办核发","市级","身份证明","有效期内数据"]
[359,"林木采伐许可审批","市级","身份证明","有效期内数据"]
[360,"工商企业等社会资本通过流转取得林地经营权变更审批","市级","身份证明","有效期内数据"]
[361,"人工繁育省重点保护陆生野生动物许可变更","市级","身份证明","有效期内数据"]
[362,"草原防火期内因生产活动需要在草原上野外用火新办审批","市级","身份证明","有效期内数据"]
[363,"乡村建设规划许可办理（农村村民住宅）","市级","身份证明","有效期内数据"]
[364,"在草原上修建直接为草原保护和畜牧业生产服务的工程设施新办审批","市级","身份证明","有效期内数据"]
[365,"工商企业等社会资本通过流转取得林地经营权新办审批","市级","身份证明","有效期内数据"]
[366,"乡村建设规划许可延期（农村村民住宅）","市级","身份证明","有效期内数据"]
[367,"在自然保护区缓冲区从事非破坏性科研教学实习和标本采集新办审批","市级","身份证明","有效期内数据"]
[368,"森林高火险期内进入森林高火险区延续审批"," 省级","身份证明","有效期内数据"]
[369,"林木采伐许可证核发（县级权限）"," 省级","身份证明","有效期内数据"]
[370,"森林经营单位修筑直接为林业生产服务的工程设施占用林地审批"," 省级","身份证明","有效期内数据"]
[371,"用水报装","青岛市","营业执照、建设工程规划许可证","有效期内数据"]
[372,"房地产执法检查和业务办理","区级","房地产开发企业资质证书","有效期内数据"]
[373,"二级建造师注册资格认定企业单方申请注销注册","市级","中华人民共和国二级建造师注册证书","有效期内数据"]
[374,"建筑施工企业安全生产许可证新申请","市级","建筑施工企业安全生产管理人员安全生产考核合格证书、建筑施工企业安全生产许可证书、建筑业企业资质证书、营业执照","有效期内数据"]
[375,"协议出让","市级","营业执照或统一社会信用代码证","有效期内数据"]
[376,"新供地以作价入股或者作价出资方式供应","市级","法人证明文件","有效期内数据"]
[377,"新建住宅供热报装服务","市级","建设工程规划许可证","有效期内数据"]
[378,"工程监理企业资质许可丙级多项变更","市级","营业执照","有效期内数据"]
[379,"工程监理企业资质许可丙级变更企业名称","市级","营业执照","有效期内数据"]
[380,"工程监理企业资质许可丙级变更地址","市级","营业执照","有效期内数据"]
[381,"工程监理企业资质许可丙级变更注册资本金","市级","营业执照","有效期内数据"]
[382,"工程监理企业资质许可丙级变更经济性质","市级","营业执照","有效期内数据"]
[383,"工程监理企业资质许可丙级变更法定代表人","市级","营业执照","有效期内数据"]
[384,"工程监理企业资质许可丙级变更单位负责人","市级","营业执照","有效期内数据"]
[385,"工程监理企业资质许可丙级变更技术负责人","市级","营业执照","有效期内数据"]
[386,"工程监理企业资质许可乙级变更注册资本金","市级","营业执照","有效期内数据"]
[387,"工程监理企业资质许可乙级变更经济性质","市级","营业执照","有效期内数据"]
[388,"工程监理企业资质许可乙级延续","市级","营业执照","有效期内数据"]
[389,"工程监理企业资质许可乙级多项变更","市级","营业执照","有效期内数据"]
[390,"工程监理企业资质许可乙级变更企业名称","市级","营业执照","有效期内数据"]
[391,"工程监理企业资质许可乙级变更地址","市级","营业执照","有效期内数据"]
[392,"工程监理企业资质许可乙级变更法定代表人","市级","营业执照","有效期内数据"]
[393,"工程监理企业资质许可乙级变更单位负责人","市级","营业执照","有效期内数据"]
[394,"工程监理企业资质许可乙级变更技术负责人","市级","营业执照","有效期内数据"]
[395,"工程监理企业资质许可丙级增补","市级","身份证","有效期内数据"]
[396,"工程监理企业资质许可乙级增补","市级","身份证","有效期内数据"]
[397,"工程监理企业资质许可丙级注销","市级","道路运输经营许可证","有效期内数据"]
[398,"施工图审查机构认定法定代表人变更","市级","营业执照","有效期内数据"]
[399,"施工图审查机构认定注册资本变更","市级","营业执照","有效期内数据"]
[400,"施工图审查机构认定机构地址变更","市级","营业执照","有效期内数据"]
[401,"施工图审查机构认定机构名称变更","市级","营业执照","有效期内数据"]
[402,"施工图审查机构认定多项变更","市级","营业执照","有效期内数据"]
[403,"施工图审查机构认定增项","市级","营业执照","有效期内数据"]
[404,"施工图审查机构认定延续","市级","营业执照","有效期内数据"]
[405,"施工图审查机构认定升级","市级","营业执照","有效期内数据"]
[406,"施工图审查机构认定新设立","市级","营业执照","有效期内数据"]
[407,"施工图审查机构认定注销","市级","身份证","有效期内数据"]
[408,"建筑业企业资质（告知承诺方式）增项","市级","营业执照","有效期内数据"]
[409,"建筑业企业资质（告知承诺方式）新申请","市级","营业执照","有效期内数据"]
[410,"建筑业企业资质许可(企业全资子公司间重组分立的重新核定)","市级","建筑业企业资质证书","有效期内数据"]
[411,"建筑业企业资质（地市）（遗失补办）","市级","营业执照","有效期内数据"]
[412,"建筑业企业资质（地市）（注销）","市级","营业执照","有效期内数据"]
[413,"建筑业企业资质许可（地市）（简单变更）（多项变更）","市级","营业执照","有效期内数据"]
[414,"建筑业企业资质许可（地市）（简单变更）（注册资本变更）","市级","营业执照","有效期内数据"]
[415,"建筑业企业资质许可（地市）（简单变更）（经济性质变更）","市级","营业执照","有效期内数据"]
[416,"建筑业企业资质许可（地市）（简单变更）（企业名称变更）","市级","营业执照","有效期内数据"]
[417,"建筑业企业资质许可（地市）（简单变更）（企业地址变更）","市级","营业执照","有效期内数据"]
[418,"建筑业企业资质许可（地市）（简单变更）（法人变更）","市级","营业执照","有效期内数据"]
[419,"乡村建设规划许可（农村宅基地自建房项目新办）","市级","乡村建设规划许可证","有效期内数据"]
[420,"建设单位前期物业服务企业选聘招标备案","省级","营业执照；建设工程规划许可证","有效期内数据"]
[421,"物业服务合同备案","省级","营业执照","有效期内数据"]
[422,"前期物业管理备案","省级","建设工程规划许可证","有效期内数据"]
[423,"城建档案利用服务","市级","居民身份证；不动产权证书；不动产登记证明","有效期内数据"]
[424,"燃气工程竣工验收备案","区级","建设工程规划许可；证居民身份证；营业执照","有效期内数据"]
[425,"城市专用排水设施竣工验收","区级","居民身份证；建设工程规划许可证","有效期内数据"]
[426,"政府信息依申请公开（即墨区即墨区住房和城乡建设局）","青岛市","居民身份证、营业执照","有效期内数据"]
[427,"存量房屋买卖合同网签备案","市级","居民身份证、不动产权证书","有效期内数据"]
[428,"存量房屋买卖合同网签备案撤销登记","市级","居民身份证、不动产权证书","有效期内数据"]
[429,"商品房项目现售合同备案","市级","居民身份证、营业执照、房地产登记明细","有效期内数据"]
[430,"商品房预（现）售合同网签备案","市级","居民身份证、营业执照、房地产登记明细","有效期内数据"]
[431,"房产测绘成果备案","市级","居民身份证、营业执照、不动产权证书","有效期内数据"]
[432,"招标申请核准","市级","建设工程规划许可证","有效期内数据"]
[433,"招标人自行办理招标事宜备案","市级","营业执照","有效期内数据"]
[434,"建筑起重机械使用登记","市级","建筑施工特种作业操作资格证书    ","有效期内数据"]
[435,"建设工程消防验收（县级权限）（新设）","市级","居民身份证","有效期内数据"]
[436,"建筑起重机械使用登记（核发）","市级","建筑施工特种作业操作资格证书    ","有效期内数据"]
[437,"建筑起重机械使用登记（注销）","市级","居民身份证","有效期内数据"]
[438,"房屋建筑工程质量检测复检结果备案","市级","居民身份证","有效期内数据"]
[439,"特殊建设工程消防验收","市级","居民身份证","有效期内数据"]
[440,"公租房保障对象资格确认","市级","居民身份证","有效期内数据"]
[441,"公租房租赁补贴资格确认","市级","居民身份证","有效期内数据"]
[442,"维修资金应急使用","市级","营业执照、居民身份证","有效期内数据"]
[443,"建筑起重机械安装备案","市级","建筑施工特种作业操作资格证书    ","有效期内数据"]
[444,"维修资金一般使用","市级","营业执照、居民身份证","有效期内数据"]
[445,"建筑起重机械拆卸备案","市级","建筑施工特种作业操作资格证书    ","有效期内数据"]
[446,"租赁自住住房提取住房公积金","市级","身份证、结婚证、离婚证、居民户口簿","有效期内数据"]
[447,"租赁公共租赁住房提取住房公积金","市级","身份证、结婚证、离婚证、居民户口簿","有效期内数据"]
[448,"职工异地缴存本市公积金贷款","市级","身份证、结婚证、离婚证、居民户口簿、不动产权证书","有效期内数据"]
[449,"购买新建自住住房公积金贷款","市级","身份证、结婚证、离婚证、居民户口簿","有效期内数据"]
[450,"购买再交易自住住房公积金贷款","市级","身份证、结婚证、离婚证、居民户口簿、不动产权证书、出生医学证明","有效期内数据"]
[451,"政府信息依申请公开（即墨区政府办公室）","区县级","居民身份证、营业执照","有效期内数据"]
[452,"对口岸单位之间发生争议的裁决","县级","居民身份证、营业执照","有效期内数据"]
[453,"困难居民临时救助（镇、街实施）","县级","身份证","有效期内数据"]
[454,"非煤矿矿山企业安全生产许可证变更","区级","营业执照、非煤矿矿山安全生产许可证、采矿许可证","有效期内数据"]
[455,"危险化学品经营（带有储存设施且不构成重大危险源）许可首次申请、延期、重新申请","区县级","营业执照；安全生产知识和管理能力考核合格证;；特种作业人员操作资格证书；（不动产登记信息查询证明）","有效期内数据"]
[456,"危险化学品经营许可首次申请、延期、重新申请（无储存）","区县级","营业执照；安全生产知识和管理能力考核合格证；特种作业人员操作资格证书;（不动产登记信息查询证明）","有效期内数据"]
[457,"危险化学品经营许可证核发（变更危险化学品储存设施及其监控的申请）","区县级","营业执照；安全生产知识和管理能力考核合格证；特种作业人员操作资格证书（不动产登记信息查询证明）","有效期内数据"]
[458,"危险化学品经营许可证核发（变更注册地址申请）","区县级","营业执照；安全生产知识和管理能力考核合格证；特种作业人员操作资格证书；（不动产登记信息查询证明）","有效期内数据"]
[459,"危险化学品经营许可证核发（变更企业名称申请）","区县级","营业执照","有效期内数据"]
[460,"第三类非药品类易制毒化学品经营备案","区县级","营业执照","有效期内数据"]
[461,"危险化学品经营许可证核发（变更主要负责人申请）","区县级","营业执照；安全生产知识和管理能力考核合格证","有效期内数据"]
[462,"金属冶炼建设项目安全设施设计审查","区县级","设计资质证明文件","有效期内数据"]
[463,"危险化学品经营许可","市级、县级","安全生产知识和管理能力考核合格证、营业执照、气瓶充装许可证","有效期内数据"]
[464,"信息公开（应急管理局）","区级","居民身份证","有效期内数据"]
[465,"烟花爆竹、危险化学品等危险物品的生产、经营、储存单位，非煤矿矿山、金属冶炼等生产经营单位生产安全事故应急预案备案（其他企业） [其他]","区级","营业执照","有效期内数据"]
[466,"烟花爆竹经营(零售)许可","区级","营业执照","有效期内数据"]
[467,"自然灾害救助资金给付","区级","居民身份证","有效期内数据"]
[468,"危险化学品重大危险源备案","区级","安全生产知识和管理能力考核合格证","有效期内数据"]
[469,"危险化学品重大危险源核销","区级","安全生产知识和管理能力考核合格证","有效期内数据"]
[470,"对报告重大事故隐患或者举报安全生产违法行为的有功人员的奖励","区级","居民身份证","有效期内数据"]
[471,"非煤矿矿山建设项目安全设施设计审查 [许可]","区级","设计单位的设计资质证明文件","有效期内数据"]
[472,"公益性民间组织救灾捐赠款分配、使用方案的备案","区级","社会团体法人登记证书","有效期内数据"]
[473,"黑火药、引火线批发企业采购、销售记录备案","区级","营业执照","有效期内数据"]
[474,"接收可能与地震有关的异常现象报告、地震预测意见 [公共服务]","区级","营业执照","有效期内数据"]
[475,"人工爆破备案","区级","营业执照","有效期内数据"]
[476,"除国务院审批（核准、备案）的金属冶炼建设项目的安全设施设计审查（县级权限）","县级","设计单位的设计资质证明文件","有效期内数据"]
[477,"生产、储存烟花爆竹建设项目安全设施设计审查（县级权限）申请","县级","设计单位的设计资质证明文件","有效期内数据"]
[478,"石油天然气建设项目安全设施设计审查（县级权限）","县级","设计单位的设计资质证明文件","有效期内数据"]
[479,"烟花爆竹经营（零售）许可变更申请","县级","居民身份证","有效期内数据"]
[480,"烟花爆竹经营（零售）许可首次申请","县级","居民身份证","有效期内数据"]
[481,"烟花爆竹经营（零售）许可延期申请","县级","居民身份证","有效期内数据"]
[482,"烟花爆竹经营（零售）许可注销申请","县级","居民身份证","有效期内数据"]
[483,"其他非煤矿山建设项目安全设施设计审查（县级权限）","县级","设计单位的设计资质证明文件","有效期内数据"]
[484,"居民医保补收（镇街办理）","区级","身份证","有效期内数据"]
[485,"零售药店申请定点协议管理","省级","营业执照","有效期内数据"]
[486,"医疗机构申请定点协议管理","省级","营业执照","有效期内数据"]
[487,"医药机构申请定点协议管理","省级","药品经营许可证","有效期内数据"]
[488,"参保单位参保信息查询","市级、县级","营业执照、民办非企业单位法人登记证书、基金会法人登记证书、社会团体法人登记证书","有效期内数据"]
[489,"城乡居民参保登记、城乡居民参保信息变更登记","市级、县级","居民身份证","有效期内数据"]
[490,"生育保险待遇核准支付","市级、县级","出生医学证明","有效期内数据"]
[491,"产前检查费支付","市级、县级","居民身份证或社保卡或医保电子凭证；计划生育服务手册","有效期内数据"]
[492,"单位参保登记","市级、县级","营业执照","有效期内数据"]
[493,"单位参保信息变更登记","市级、县级","营业执照","有效期内数据"]
[494,"单位医疗保险工资申报","市级、县级","营业执照","有效期内数据"]
[495,"缓缴医疗保险费、生育保险费审核","市级、县级","营业执照","有效期内数据"]
[496,"基本医疗保险参保人员享受门诊慢特病病种待遇认定","市级、县级","居民身份证或社保卡或医保电子凭证","有效期内数据"]
[497,"计划生育医疗费支付","市级、县级","居民身份证或社保卡或医保电子凭证","有效期内数据"]
[498,"临时外出就医人员备案","市级、县级","居民身份证或社保卡或医保电子凭证","有效期内数据"]
[499,"企业职工医疗保险费、生育保险费的申报核定","市级、县级","居民身份证或社保卡或医保电子凭证","有效期内数据"]
[500,"生育津贴支付","市级、县级","居民身份证或社保卡或医保电子凭证","有效期内数据"]
[501,"生育医疗费支付","市级、县级","居民身份证或社保卡或医保电子凭证","有效期内数据"]
[502,"医疗保险参保人员个人账户一次性支取","市级、县级","居民身份证或社保卡或医保电子凭证","有效期内数据"]
[503,"医疗保险关系转出","市级、县级","居民身份证或社保卡或医保电子凭证","有效期内数据"]
[504,"医疗保险关系转入","市级、县级","居民身份证或社保卡或医保电子凭证","有效期内数据"]
[505,"异地长期居住人员备案","市级、县级","居民身份证或社保卡或医保电子凭证","有效期内数据"]
[506,"职工参保登记","市级、县级","居民身份证或社保卡或医保电子凭证","有效期内数据"]
[507,"职工参保信息变更登记","市级、县级","居民身份证或社保卡或医保电子凭证","有效期内数据"]
[508,"门诊统筹签约","市级、县级","居民身份证","有效期内数据"]
[509,"参保人员参保信息查询（人社镇、街实施）","市级、县级","身份证","有效期内数据"]
[510,"职工基本医疗保险参保登记人员（减员）","市级、县级","居民身份证","有效期内数据"]
[511,"城乡居民基本医疗保险参保登记（减员）","市级、县级","居民身份证","有效期内数据"]
[512,"灵活就业人员基本医疗保险参保登记（增员）","市级、县级","居民身份证","有效期内数据"]
[513,"灵活就业人员基本医疗保险参保登记（减员）","市级、县级","居民身份证","有效期内数据"]
[514,"血费报销","区级","无偿献血证","有效期内数据"]
[515,"本人无偿献血","区级","无偿献血证","有效期内数据"]
[516,"拆除环境卫生设施许可首次申请","市级","身份证","有效期内数据"]
[517,"县级文物保护单位改变用途审批","市级","居民身份证","有效期内数据"]
[518,"其他主要农作物种子生产经营许可（县级权限）","国家级","居民身份证","有效期内数据"]
[519,"合伙企业分支机构变更登记（备案）","市级","居民身份证、营业执照","有效期内数据"]
[520,"因公司合并（分立）申请设立、变更或注销登记","市级","营业执照","有效期内数据"]
[521,"高危险性体育项目经营许可（县级权限）","市级","营业执照、职业资格证明","有效期内数据"]
[522,"分公司设立登记","市级","居民身份证、营业执照","有效期内数据"]
[523,"分公司变更登记（备案）","市级","居民身份证、营业执照","有效期内数据"]
[524,"撤销变更登记","市级","营业执照","有效期内数据"]
[525,"因公司的股东发生合并（分立），公司申请变更登记","市级","营业执照","有效期内数据"]
[526,"分公司注销登记","市级","营业执照","有效期内数据"]
[527,"合伙企业分支机构注销登记","市级","营业执照","有效期内数据"]
[528,"设置X射线影像诊断项目许可（变更）","市级","医疗机构执业许可证","有效期内数据"]
[529,"公司注销登记","市级","营业执照","有效期内数据"]
[530,"中医医疗机构注销登记（县级权限）","国家级","医疗机构执业许可证","有效期内数据"]
[531,"公墓注销审批","市级","居民身份证","有效期内数据"]
[532,"临时占用城市绿地用地审批（设区的市级权限）新申请","市级","居民身份证","有效期内数据"]
[533,"使用载客十二人以下船舶从事水路运输经营许可（证件补发）","市级","身份证明","有效期内数据"]
[534,"合伙企业设立登记","市级","居民身份证、营业执照","有效期内数据"]
[535,"《药品经营许可证》（零售）换发","省级","营业执照","有效期内数据"]
[536,"城市建筑垃圾处置核准（运输企业法人代表变更）","市级","营业执照","有效期内数据"]
[537,"城市建筑垃圾处置核准（运输企业法人名称变更）","市级","营业执照","有效期内数据"]
[538,"合伙企业变更登记","市级","居民身份证、营业执照","有效期内数据"]
[539,"第三类医疗器械经营首次许可","省级","营业执照","有效期内数据"]
[540,"兽药经营许可证核发（县级权限）","市级","居民身份证","有效期内数据"]
[541,"公司变更登记","市级","居民身份证、营业执照","有效期内数据"]
[542,"人民防空工程质量监督登记","市级","身份证","有效期内数据"]
[543,"合伙企业注销登记","市级","营业执照","有效期内数据"]
[544,"市政基础设施工程竣工验收备案","市级","居民身份证","有效期内数据"]
[545,"公司设立登记","市级","居民身份证、营业执照","有效期内数据"]
[546,"合伙企业分支机构设立登记","市级","居民身份证、营业执照","有效期内数据"]
[547,"《药品经营许可证》（零售）许可事项变更","省级","营业执照","有效期内数据"]
[548,"农药经营许可（县级权限）新设","市级","居民身份证","有效期内数据"]
[549,"中介机构从事代理记账业务审批（县级财政部门）","国家级","身份证","有效期内数据"]
[550,"中医医疗机构执业登记（县级权限）","国家级","居民身份证","有效期内数据"]
[551,"从事供水范围在县级行政区域内的饮用水供水单位卫生许可（变更）","市级","居民身份证","有效期内数据"]
[552,"食品经营许可延续审批（县级权限）","省级","《食品经营许可证正本、副本》、营业执照","有效期内数据"]
[553,"承担国家法定计量检定机构任务授权（县级权限）首次申请","省级","居民身份证","有效期内数据"]
[554,"设立外资电影放映单位审批","市级","产权证","有效期内数据"]
[555,"设置X射线影像诊断项目许可（新办）","市级","医疗机构执业许可证","有效期内数据"]
[556,"城镇污水排入排水管网许可（县级权限）首次申请","市级","居民身份证","有效期内数据"]
[557,"医师执业注册（延续）","国家级","医师执业证书","有效期内数据"]
[558,"个体工商户变更登记注册","市级","居民身份证、营业执照","有效期内数据"]
[559,"人民防空通信、警报设施拆除（迁移）审批","市级","身份证","有效期内数据"]
[560,"临时性建筑物搭建、堆放物料、占道施工审批（县级权限）（初次申请）","市级","身份证","有效期内数据"]
[561,"设置大型户外广告审批（县级权限）（延续）","市级","营业执照、身份证","有效期内数据"]
[562,"义务教育学校变更审批（县级权限）","市级","身份证","有效期内数据"]
[563,"食品生产许可（县级权限）","省级","营业执照","有效期内数据"]
[564,"生鲜乳收购站许可（变更）","国家级","居民身份证","有效期内数据"]
[565,"猎捕国家二级保护陆生野生动物新办审批","市级","居民身份证","有效期内数据"]
[566,"设置X射线影像诊断项目许可（注销）","市级","医疗机构执业许可证","有效期内数据"]
[567,"除长江宜宾以下干流外的河道采砂许可（县级权限）（变更）","市级","居民身份证","有效期内数据"]
[568,"使用浮桥从事水路运输经营许可（变更）","市级","营业执照、固定场所使用证明","有效期内数据"]
[569,"依附于城市道路建设各种管线、杆线等设施审批（县级权限）变更申请","市级","居民身份证","有效期内数据"]
[570,"食品经营许可新办审批（县级权限）","省级","营业执照、身份证","有效期内数据"]
[571,"城市建筑垃圾处置核准申请变更经营主体、法定代表人、注册地址","市级","居民身份证","有效期内数据"]
[572,"生产建设项目水土保持方案报告表审批（县级权限）（变更申请）","市级","居民身份证","有效期内数据"]
[573,"计量标准器具撤销核准（设区的市级权限）","省级","居民身份证","有效期内数据"]
[574,"县级骨灰堂注销审批","市级","居民身份证","有效期内数据"]
[575,"非公司企业法人变更登记注册（县级权限）","市级","居民身份证、营业执照","有效期内数据"]
[576,"医疗机构购用麻醉药品、第一类精神药品许可（变更）","省级","医疗机构执业许可证","有效期内数据"]
[577,"设立健身气功活动站点审批","市级","职业资格证明、合法身份证明","有效期内数据"]
[578,"拆除、改动、迁移城市公共供水设施审核（县级权限）","市级","居民身份证","有效期内数据"]
[579,"设立电影放映单位审批","市级","产权证","有效期内数据"]
[580,"承担国家法定计量检定机构任务授权（县级权限）申请扩项","省级","居民身份证","有效期内数据"]
[581,"社会团体注销登记（县级权限）","市级","社会团体法人登记证书","有效期内数据"]
[582,"从事班线客运（含定线旅游客运）经营（毗邻县行政区域间、县域内）许可（变更）","市级","身份证明、营业执照","有效期内数据"]
[583,"结合民用建筑修建防空地下室建设条件审批","市级","身份证","有效期内数据"]
[584,"取水许可证核发（县级权限）（延续申请）","市级","取水许可证、身份证","有效期内数据"]
[585,"确有专长的中医医师执业注册（县级权限）","国家级","医师执业证书","有效期内数据"]
[586,"民办职业培训学校筹设审批（县级权限）","市级","居民身份证","有效期内数据"]
[587,"生产建设项目水土保持方案报告书审批（县级权限）（首次申请）","市级","居民身份证","有效期内数据"]
[588,"社会团体成立登记（县级权限）","市级","不动产权证书","有效期内数据"]
[589,"猎捕国家二级保护陆生野生动物延续审批","市级","身份证","有效期内数据"]
[590,"临时性建筑物搭建、堆放物料、占道施工审批（县级权限）（延续）","市级","身份证","有效期内数据"]
[591,"确有专长的中医医师注销注册（县级权限）","国家级","医师执业证书","有效期内数据"]
[592,"企业投资列入国家批准的相关规划的煤炭、矿石、油气专用泊位项目核准","市级","居民身份证","有效期内数据"]
[593,"农民专业合作社注销登记注册","市级","营业执照","有效期内数据"]
[594,"新建计量标准器具核准（县级权限）","省级","居民身份证","有效期内数据"]
[595,"种畜禽生产经营许可（县级权限）变更","市级","居民身份证","有效期内数据"]
[596,"申请增加、减少证照","市级","营业执照","有效期内数据"]
[597,"拆除人民防空工程审批","市级","身份证","有效期内数据"]
[598,"动物诊疗许可证变更（县级权限）","市级","居民身份证","有效期内数据"]
[599,"在区、县范围内进行公路超限运输许可","市级","道路运输经营许可证、申请人身份证明材料、挂车车辆行驶证、牵引车车辆道路运输证、挂车车辆道路运输证、牵引车车辆行驶证","有效期内数据"]
[600,"城市建筑垃圾处置核准首次申请","市级","居民身份证","有效期内数据"]
[601,"医疗保健机构开展助产技术、结扎手术和终止妊娠手术技术服务的许可（延续）","市级","医疗机构执业许可证、医师执业证书","有效期内数据"]
[602,"义务教育学校设立审批（县级权限）","市级","身份证","有效期内数据"]
[603,"设置X射线影像诊断建设项目放射性职业病危害预评价报告审核","市级","医疗机构执业许可证","有效期内数据"]
[604,"城市建筑垃圾运输核准申请变更运输工具数量及标识号","市级","居民身份证","有效期内数据"]
[605,"公益性墓地变更审批","市级","身份证","有效期内数据"]
[606,"兽药经营许可证变更（县级权限）","市级","居民身份证","有效期内数据"]
[607,"农药经营许可（县级权限）变更","市级","居民身份证","有效期内数据"]
[608,"城市建筑垃圾产生核准申请变更产生种类及数量","市级","居民身份证","有效期内数据"]
[609,"县级骨灰堂建设审批","市级","身份证","有效期内数据"]
[610,"城市建筑垃圾产生核准有效期届满申请延续","市级","居民身份证","有效期内数据"]
[611,"医疗保健机构开展婚前医学检查技术服务、产前筛查技术服务的许可（新办）","市级","医疗机构执业许可证、医师执业证书","有效期内数据"]
[612,"城市建筑垃圾处置核准有效期届满申请延续","市级","居民身份证","有效期内数据"]
[613,"计量标准器具复查核准（设区的市级权限）","省级","居民身份证","有效期内数据"]
[614,"第三类医疗器械经营许可证注销（依申请注销）","省级","营业执照","有效期内数据"]
[615,"社会团体修改章程核准（县级权限）","市级","居民身份证","有效期内数据"]
[616,"取水许可证核发（县级权限）（变更申请）","市级","身份证","有效期内数据"]
[617,"医疗机构执业登记（延续）","国家级","医疗机构执业许可证","有效期内数据"]
[618,"中医医疗机构设置审批（县级权限）","国家级","身份证","有效期内数据"]
[619,"医疗保健机构开展婚前医学检查技术服务、产前筛查技术服务的许可（变更）","市级","医疗机构执业许可证、医师执业证书","有效期内数据"]
[620,"从事供水范围在县级行政区域内的饮用水供水单位卫生许可（延续）","市级","居民身份证","有效期内数据"]
[621,"特殊车辆在城市道路上行驶审批（县级权限）变更申请","市级","居民身份证","有效期内数据"]
[622,"农民专业合作社变更登记注册","市级","居民身份证、营业执照","有效期内数据"]
[623,"《船舶营业运输证》换发","市级","身份证明","有效期内数据"]
[624,"新建计量标准器具核准（设区的市级权限）","省级","居民身份证","有效期内数据"]
[625,"从事婚前医学检查的人员资格认定（新办）","市级","居民身份证","有效期内数据"]
[626,"生鲜乳收购站许可（延续）","国家级","居民身份证","有效期内数据"]
[627,"《药品经营许可证》（零售）核发","省级","营业执照","有效期内数据"]
[628,"城市桥梁上架设各类市政管线审批（县级权限）首次申请","市级","居民身份证","有效期内数据"]
[629,"农民专业合作社设立登记注册","市级","居民身份证、营业执照","有效期内数据"]
[630,"临时使用林地新办审批（县级权限）","国家级","居民身份证","有效期内数据"]
[631,"跨越、穿越公路修建桥梁、渡槽或者架设、埋设管道、电缆等设施许可（县级权限）","市级","居民身份证","有效期内数据"]
[632,"商品房预售许可（县级权限）注销","市级","居民身份证","有效期内数据"]
[633,"设置X射线影像诊断项目许可（校验）","市级","居民身份证、《医疗机构执业许可证》副本","有效期内数据"]
[634,"内资互联网上网服务营业场所筹建审批","国家级","营业执照、居民身份证","有效期内数据"]
[635,"医疗机构购用麻醉药品、第一类精神药品许可（新办）","省级","医疗机构执业许可证","有效期内数据"]
[636,"城镇污水排入排水管网许可（县级权限）重新申请","市级","居民身份证","有效期内数据"]
[637,"第三类医疗器械经营变更许可","省级","营业执照","有效期内数据"]
[638,"占用农业灌溉水源、灌排工程设施审批（县级权限）","市级","居民身份证","有效期内数据"]
[639,"利用公路桥梁、公路隧道、涵洞铺设电缆等设施许可（县级权限）","市级","居民身份证","有效期内数据"]
[640,"个人独资企业设立登记注册（县级权限）","市级","居民身份证","有效期内数据"]
[641,"民办非企业单位变更登记（县级权限）","市级","民办非企业单位登记证书、不动产权证书","有效期内数据"]
[642,"公共场所卫生许可（延续）","市级","居民身份证","有效期内数据"]
[643,"企业投资新建通用机场项目、扩建军民合用机场（增建跑道除外）项目核准","市级","居民身份证","有效期内数据"]
[644,"股权出质设立登记","市级","居民身份证、营业执照","有效期内数据"]
[645,"农业野生植物采集、出售、收购、野外考察审批","市级","居民身份证","有效期内数据"]
[646,"计量标准器具封存核准（设区的市级权限）","省级","居民身份证","有效期内数据"]
[647,"市政基础设施工程施工许可证核发（质量安全登记并联审批）","市级","居民身份证","有效期内数据"]
[648,"内资从事互联网上网服务经营活动审批","国家级","营业执照、居民身份证","有效期内数据"]
[649,"特殊车辆在城市道路上行驶审批（县级权限）首次申请","市级","居民身份证","有效期内数据"]
[650,"猎捕非国家重点保护陆生野生动物新办审批（县级权限）","市级","居民身份证","有效期内数据"]
[651,"医师执业注册（新办）","国家级","身份证","有效期内数据"]
[652,"企业迁移调档","市级","营业执照","有效期内数据"]
[653,"砍伐城市树木、迁移古树名木审批（县级权限）新申请","市级","居民身份证","有效期内数据"]
[654,"在公路用地范围内架设、埋设管道、电缆等设施许可（县级权限）","市级","居民身份证","有效期内数据"]
[655,"《药品经营许可证》（零售）登记事项变更","省级","营业执照","有效期内数据"]
[656,"公共场所卫生许可（新办）","市级","居民身份证","有效期内数据"]
[657,"公共场所卫生许可（变更）","市级","居民身份证","有效期内数据"]
[658,"民办非企业单位修改章程核准（县级权限）","市级","民办非企业单位章程核准表、章程","有效期内数据"]
[659,"计量标准器具更换核准（设区的市级权限）","省级","居民身份证","有效期内数据"]
[660,"《药品经营许可证》（零售）注销（依申请注销）","省级","营业执照","有效期内数据"]
[661,"医疗机构购用麻醉药品、第一类精神药品许可（延续）","省级","医疗机构执业许可证","有效期内数据"]
[662,"占用、挖掘城市道路审批（县级权限）变更申请","市级","居民身份证","有效期内数据"]
[663,"《船舶营业运输证》注销","市级","身份证明","有效期内数据"]
[664,"第三类医疗器械经营延续许可","省级","营业执照","有效期内数据"]
[665,"计量标准器具复查核准（县级权限）","省级","居民身份证","有效期内数据"]
[666,"城市建筑垃圾运输核准有效期届满申请延续","市级","居民身份证","有效期内数据"]
[667,"乡道、村道建设项目施工许可","市级","居民身份证","有效期内数据"]
[668,"巡游出租汽车经营许可（县级权限）变更","市级","身份证明、营业执照、道路运输经营许可证、固定场所使用证明","有效期内数据"]
[669,"猎捕非国家重点保护陆生野生动物变更审批（县级权限）","市级","居民身份证","有效期内数据"]
[670,"公益性墓地建设审批","市级","居民身份证","有效期内数据"]
[671,"公司变更登记注册（县级权限）","市级","居民身份证、营业执照","有效期内数据"]
[672,"个体工商户注销登记注册","市级","营业执照","有效期内数据"]
[673,"计量标准器具更换核准（县级权限）","省级","居民身份证","有效期内数据"]
[674,"公墓建设审批","市级","居民身份证","有效期内数据"]
[675,"农村集体经济组织修建水库审批（县级权限）","市级","居民身份证","有效期内数据"]
[676,"合伙企业备案","市级","居民身份证","有效期内数据"]
[677,"从事包车客运（含非定线旅游客运）经营（县域内）许可","高级","身份证明","有效期内数据"]
[678,"民办职业培训学校办学许可（县级权限）（分立、合并）","市级","身份证明","有效期内数据"]
[679,"设置大型户外广告审批（县级权限）（初次申请）","市级","营业执照、身份证","有效期内数据"]
[680,"医疗保健机构开展助产技术、结扎手术和终止妊娠手术技术服务的许可（新办）","市级","医疗机构执业许可证、医师执业证书","有效期内数据"]
[681,"临时占用城市绿化用地审批（县级权限）延续","市级","身份证明","有效期内数据"]
[682,"因修建铁路、机场、供电、水利、通信等建设工程需要占用、挖掘公路、公路用地或者使公路改线许可（县级权限）","市级","申请人的身份证件；代理申请的提供授权委托书和经办人身份证件 、申请人营业执照 ","有效期内数据"]
[683,"股权出质变更登记","市级","居民身份证、营业执照","有效期内数据"]
[684,"公墓变更审批","市级","居民身份证","有效期内数据"]
[685,"砍伐城市树木、迁移古树名木审批（设区的市级权限）延续","市级","居民身份证","有效期内数据"]
[686,"县级文物保护单位建设控制地带内建设工程设计方案审批","市级","居民身份证","有效期内数据"]
[687,"乡村医生执业注册","省级","居民身份证、学历证书","有效期内数据"]
[688,"公益性墓地注销审批","市级","居民身份证","有效期内数据"]
[689,"社会团体变更登记（县级权限）","市级","社会团体法人登记证书、不动产权证书","有效期内数据"]
[690,"确有专长的中医医师增加执业机构（县级权限）","国家级","医师执业证书","有效期内数据"]
[691,"临时占用城市绿化用地审批（县级权限）新申请","市级","居民身份证","有效期内数据"]
[692,"医师执业注册（注销）","国家级","医师执业证书","有效期内数据"]
[693,"劳务派遣经营许可（县级权限）（延续）","市级","劳务派遣经营许可证","有效期内数据"]
[694,"从事供水范围在县级行政区域内的饮用水供水单位卫生许可（新办）","市级","居民身份证","有效期内数据"]
[695,"乡村医生执业注销注册","省级","居民身份证","有效期内数据"]
[696,"确有专长的中医医师变更注册（县级权限）","国家级","医师执业证书","有效期内数据"]
[697,"合伙企业注销登记注册（县级权限）","市级","营业执照","有效期内数据"]
[698,"城镇污水排入排水管网许可（县级权限）变更或延续","市级","居民身份证","有效期内数据"]
[699,"《船舶营业运输证》补发","市级","身份证明","有效期内数据"]
[700,"种畜禽生产经营许可（县级权限）","市级","居民身份证","有效期内数据"]
[701,"其他主要农作物种子生产经营许可（县级权限）变更","国家级","居民身份证","有效期内数据"]
[702,"单采血浆站设置审批（新办）","国家级","居民身份证","有效期内数据"]
[703,"商品房预售许可（县级权限）核发","市级","居民身份证","有效期内数据"]
[704,"城市建筑垃圾产生核准申请变更运输单位及运输车辆","市级","居民身份证","有效期内数据"]
[705,"使用载客十二人以下船舶从事水路运输经营许可（终止经营）","市级","身份证明","有效期内数据"]
[706,"利用跨越公路的设施悬挂非公路标志许可（县级权限）","市级","身份证、营业执照","有效期内数据"]
[707,"农药经营许可（县级权限）延续","市级","居民身份证、营业执照","有效期内数据"]
[708,"护士执业注册（延续注册）","国家级","护士执业证书","有效期内数据"]
[709,"在城市建筑物、设施上悬挂、张贴宣传品审批（县级权限）（初次申请）","市级","营业执照、身份证","有效期内数据"]
[710,"在电力设施周围或者电力设施保护区内进行可能危及电力设施安全作业审批（县级权限）","市级","身份证","有效期内数据"]
[711,"医疗机构执业登记（新办）","国家级","居民身份证","有效期内数据"]
[712,"个体工商户设立登记注册","市级","居民身份证","有效期内数据"]
[713,"出版物零售业务经营许可","市级","居民身份证、营业执照","有效期内数据"]
[714,"校车使用许可（县级权限）（行政审批局）","市级","行驶证、道路运营许可证、身份证","有效期内数据"]
[715,"取水许可审批（县级权限）（首次申请）","市级","身份证","有效期内数据"]
[716,"娱乐经营许可证延续","国家级","营业执照","有效期内数据"]
[717,"兽药经营许可证换发（县级权限）","市级","身份证","有效期内数据"]
[718,"网络预约出租汽车经营许可申请（县级权限）","市级","身份证明、营业执照、固定场所使用证明","有效期内数据"]
[719,"义务教育学校筹设审批（县级权限）","市级","身份证","有效期内数据"]
[720,"固定资产投资项目节能审查（县级权限、变更）","市级","身份证","有效期内数据"]
[721,"食用菌栽培种生产经营许可变更","市级","身份证","有效期内数据"]
[722,"人民防空工程竣工验收备案","市级","身份证","有效期内数据"]
[723,"医疗机构设置审批（变更）","国家级","居民身份证","有效期内数据"]
[724,"从事婚前医学检查的人员资格认定（变更）","市级","居民身份证","有效期内数据"]
[725,"城市建筑垃圾运输核准首次申请","市级","居民身份证","有效期内数据"]
[726,"普通林草种子生产经营许可证变更","国家级","居民身份证","有效期内数据"]
[727,"猎捕国家二级保护陆生野生动物变更审批","市级","居民身份证","有效期内数据"]
[728,"生鲜乳准运证明核发","国家级","居民身份证","有效期内数据"]
[729,"猎捕非国家重点保护陆生野生动物延续审批（县级权限）","市级","居民身份证","有效期内数据"]
[730,"食品经营许可补证审批（县级权限）","省级","营业执照","有效期内数据"]
[731,"城市建筑垃圾处置核准申请变更处理内容","市级","居民身份证","有效期内数据"]
[732,"城市建筑垃圾产生核准首次申请","市级","居民身份证","有效期内数据"]
[733,"民办职业培训学校办学许可（县级权限）（终止）","市级","身份证明","有效期内数据"]
[734,"设置X射线影像诊断的建设项目放射性职业病防护设施竣工验收","市级","医疗机构执业许可证","有效期内数据"]
[735,"动物诊疗许可证核发（县级权限）","市级","法定代表人（负责人）身份证明 、执业兽医资格证书 ","有效期内数据"]
[736,"城市建筑垃圾产生核准申请变更产生周期","市级","身份证明","有效期内数据"]
[737,"企业投资涉及不跨县河流、不跨县水资源配置调整的水利工程项目核准","市级","居民身份证","有效期内数据"]
[738,"燃气经营许可(县级权限)变更","市级","身份证明","有效期内数据"]
[739,"固定资产投资项目节能审查（县级权限、新设）","市级","身份证","有效期内数据"]
[740,"食品小餐饮登记","省级","身份证、营业执照、健康证明","有效期内数据"]
[741,"燃气经营者改动市政燃气设施审批(县级权限)","市级","身份证明","有效期内数据"]
[742,"幼儿园筹设审批","市级","身份证","有效期内数据"]
[743,"依附于城市道路建设各种管线、杆线等设施审批（县级权限）首次申请","市级","身份证","有效期内数据"]
[744,"民办职业培训学校办学许可（县级权限）（变更、延续）","市级","身份证明","有效期内数据"]
[745,"在公路上增设或者改造平面交叉道口许可（县级权限）","市级","身份证、营业执照","有效期内数据"]
[746,"合伙企业设立登记注册（县级权限）","市级","居民身份证、营业执照","有效期内数据"]
[747,"使用载客十二人以下船舶从事水路运输经营许可（变更）","市级","营业执照、固定场所使用证明","有效期内数据"]
[748,"建设工程消防设计审查（县级权限）（新设）","市级","身份证明","有效期内数据"]
[749,"非公司企业法人注销登记注册（县级权限）","市级","营业执照","有效期内数据"]
[750,"砍伐城市树木、迁移古树名木审批（县级权限）延续","市级","身份证明","有效期内数据"]
[751,"中等及以下其他教育机构变更审批（县级权限）","市级","身份证","有效期内数据"]
[752,"乡道更新采伐护路林审批","市级","身份证","有效期内数据"]
[753,"实施其他文化教育的民办学校变更审批（县级权限）","市级","身份证","有效期内数据"]
[754,"个人独资企业注销登记注册（县级权限）","市级","营业执照","有效期内数据"]
[755,"生鲜乳收购站许可（首次申请）","国家级","居民身份证","有效期内数据"]
[756,"燃气经营许可(县级权限)延续","市级","居民身份证","有效期内数据"]
[757,"生产建设项目水土保持方案报告表审批（县级权限）（首次申请）","市级","居民身份证","有效期内数据"]
[758,"普通林草种子生产经营许可证延续","国家级","居民身份证","有效期内数据"]
[759,"外国人对省重点保护陆生野生动物进行野外考察或者在野外拍摄电影、录像审批","市级","居民身份证","有效期内数据"]
[760,"使用浮桥从事水路运输经营许可（延续）","市级","身份证明、营业执照","有效期内数据"]
[761,"使用浮桥从事水路运输经营许可（终止经营）","市级","身份证明","有效期内数据"]
[762,"取水许可证核发（县级权限）（首次申请）","市级","身份证","有效期内数据"]
[763,"劳务派遣经营许可（县级权限）（注销）","市级","身份证明","有效期内数据"]
[764,"食品经营许可注销审批（县级权限）","省级","《食品经营许可证正本、副本》","有效期内数据"]
[765,"巡游出租汽车经营许可（县级权限）延续","市级","身份证明、道路运输经营许可证","有效期内数据"]
[766,"承担国家法定计量检定机构任务授权（县级权限）有效期届满申请延续","省级","居民身份证","有效期内数据"]
[767,"巡游出租汽车经营许可（县级权限）首次申请","市级","营业执照、从业资格证、行驶证、身份证、驾驶证、固定场所使用证明","有效期内数据"]
[768,"县级殡仪服务站变更审批","市级","身份证","有效期内数据"]
[769,"临时使用林地延续审批（县级权限）","国家级","身份证明","有效期内数据"]
[770,"公司注销登记注册（县级权限）","市级","营业执照","有效期内数据"]
[771,"《船舶营业运输证》变更","市级","身份证明","有效期内数据"]
[772,"使用载客十二人以下船舶从事水路运输经营许可（延续）","市级","身份证明、营业执照","有效期内数据"]
[773,"设置大型户外广告审批（县级权限）（变更）","市级","营业执照、身份证","有效期内数据"]
[774,"使用浮桥从事水路运输经营许可（新增）","市级","身份证明、固定场所使用证明","有效期内数据"]
[775,"拆除、改动城镇排水与污水处理设施审核（县级权限）","市级","身份证明","有效期内数据"]
[776,"医疗机构执业登记（注销）","国家级","医疗机构执业许可证","有效期内数据"]
[777,"慈善组织公开募捐资格审批（县级权限）","市级","居民身份证","有效期内数据"]
[778,"护士执业注册（变更注册）","国家级","护士执业证书","有效期内数据"]
[779,"县级殡仪服务站建设审批","市级","居民身份证","有效期内数据"]
[780,"医师执业注册（变更）","国家级","医师执业证书","有效期内数据"]
[781,"实施其他文化教育的民办学校设立审批（县级权限）","市级","身份证","有效期内数据"]
[782,"非公司企业法人设立登记注册（县级权限）","市级","居民身份证、营业执照","有效期内数据"]
[783,"乡村医生执业变更注册","省级","居民身份证","有效期内数据"]
[784,"生产建设项目水土保持方案报告书审批（县级权限）（变更申请）","市级","居民身份证","有效期内数据"]
[785,"建筑工程施工许可（县级权限）","市级","居民身份证","有效期内数据"]
[786,"修筑直接为林业生产经营服务的工程设施占用林地新办审批（县级权限）","国家级","居民身份证","有效期内数据"]
[787,"《船舶营业运输证》配发","市级","身份证明","有效期内数据"]
[788,"中等及以下其他教育机构设立审批（县级权限）","市级","身份证","有效期内数据"]
[789,"城市建筑垃圾产生核准申请变更处理设施","市级","居民身份证","有效期内数据"]
[790,"个人独资企业变更登记注册（县级权限）","市级","居民身份证、营业执照","有效期内数据"]
[791,"城市建筑垃圾运输核准申请变更企业名称、法定代表人、注册地址、经营范围","市级","居民身份证","有效期内数据"]
[792,"临时使用林地变更审批（县级权限）","国家级","居民身份证","有效期内数据"]
[793,"医疗机构执业登记（变更）","国家级","医疗机构执业许可证、营业执照、医师执业证书","有效期内数据"]
[794,"县级殡仪服务站注销审批","市级","居民身份证","有效期内数据"]
[795,"护士执业注册（首次注册）","国家级","居民身份证","有效期内数据"]
[796,"食品小作坊登记","省级","身份证、营业执照、健康证明","有效期内数据"]
[797,"合伙企业变更登记注册（县级权限）","市级","居民身份证、营业执照","有效期内数据"]
[798,"从事班线客运（含定线旅游客运）经营（毗邻县行政区域间、县域内）许可（新设）","市级","身份证明、营业执照","有效期内数据"]
[799,"防空地下室易地建设许可文件核发","市级","居民身份证","有效期内数据"]
[800,"使用浮桥从事水路运输经营许可（证件补发）","市级","身份证明","有效期内数据"]
[801,"临时占用城市绿地用地审批（设区的市级权限）延续","市级","居民身份证","有效期内数据"]
[802,"除长江宜宾以下干流外的河道采砂许可（县级权限）（初始申请）","市级","居民身份证","有效期内数据"]
[803,"劳务派遣经营许可（县级权限）（变更）","市级","身份证明、固定场所使用证明","有效期内数据"]
[804,"医疗保健机构开展助产技术、结扎手术和终止妊娠手术技术服务的许可（变更）","市级","医疗机构执业许可证、医师执业证书","有效期内数据"]
[805,"医疗机构设置审批（新办）","国家级","居民身份证","有效期内数据"]
[806,"医疗保健机构开展婚前医学检查技术服务、产前筛查技术服务的许可（延续）","市级","医疗机构执业许可证、医师执业证书","有效期内数据"]
[807,"普通林草种子生产经营许可证新办","国家级","居民身份证","有效期内数据"]
[808,"砍伐城市树木、迁移古树名木审批（设区的市级权限）新申请","市级","居民身份证","有效期内数据"]
[809,"县级骨灰堂变更审批","市级","居民身份证","有效期内数据"]
[810,"中医医疗机构变更登记（县级权限）","国家级","医疗机构执业许可证、营业执照、医师执业证书","有效期内数据"]
[811,"取水许可证核发（县级权限）（注销申请）","市级","身份证","有效期内数据"]
[812,"承担国家法定计量检定机构任务授权（县级权限）申请变更","省级","居民身份证","有效期内数据"]
[813,"道路货物运输经营许可（除使用4500千克及以下普通货运车辆从事普通货运经营外）","市级","身份证明、行驶证、驾驶证、从业资格证、道路运输经营许可证","有效期内数据"]
[814,"商品房预售许可（县级权限）变更","市级","居民身份证","有效期内数据"]
[815,"取水许可审批（县级权限）（重新申请）","市级","居民身份证","有效期内数据"]
[816,"使用载客十二人以下船舶从事水路运输经营许可（新增）","市级","身份证明、营业执照、固定场所使用证明","有效期内数据"]
[817,"非主要农作物种子生产经营许可（县级权限）变更","国家级","居民身份证","有效期内数据"]
[818,"企业实行不定时工作制和综合计算工时工作制审批（县级权限）","市级","营业执照","有效期内数据"]
[819,"在公路建筑控制区内埋设管道、电缆等设施许可（县级权限）","市级","居民身份证","有效期内数据"]
[820,"民办非企业单位成立登记（县级权限）","市级","不动产权证书","有效期内数据"]
[821,"由于工程施工、设备维修等原因确需停止供水的审批（县级权限）","市级","居民身份证","有效期内数据"]
[822,"食用菌栽培种生产经营许可（新设）","市级","居民身份证","有效期内数据"]
[823,"劳务派遣经营许可（县级权限）（新设）","市级","不动产登记证","有效期内数据"]
[824,"计量标准器具封存核准（县级权限）","省级","居民身份证","有效期内数据"]
[825,"计量标准器具撤销核准（县级权限）","省级","居民身份证","有效期内数据"]
[826,"城市桥梁上架设各类市政管线审批（县级权限）变更申请","市级","居民身份证","有效期内数据"]
[827,"更换建标单位名称核准（县级权限）","省级","居民身份证","有效期内数据"]
[828,"在县级文物保护单位保护范围内进行其他建设工程或者爆破、钻探、挖掘等作业审批","市级","身份证","有效期内数据"]
[829,"公司设立登记注册（县级权限）","市级","居民身份证、营业执照","有效期内数据"]
[830,"物、设施上悬挂、张贴宣传品审批（县级权限）（延续）","市级","营业执照、身份证","有效期内数据"]
[831,"占用、挖掘城市道路审批（县级权限）首次申请","市级","居民身份证","有效期内数据"]
[832,"文艺表演团体设立审批（内资）","国家级","营业执照、居民身份证","有效期内数据"]
[833,"招投标","区级","工程勘察资质证书；建筑工程质量检测机构资质证书","有效期内数据"]
[834,"在城市建筑物、设施上张挂、张贴宣传品审批","市级","营业执照、居民身份证","有效期内数据"]
[835,"宗教活动场所法人成立登记","市级","居民身份证、宗教活动场所法人登记证书","有效期内数据"]
[836,"开展助产技术服务、结扎手术和终止妊娠手术的医疗保健机构执业许可","市级","医疗机构执业许可证、医师执业证书","有效期内数据"]
[837,"开展婚前医学检查的医疗保健机构执业许可","市级","医疗机构执业许可证、医师执业证书","有效期内数据"]
[838,"开展产前筛查的医疗机构执业许可","市级","医疗机构执业许可证、居民身份证、营业执照","有效期内数据"]
[839,"开展产前筛查的医疗机构许可变更法定代表人","市级","医疗机构执业许可证、居民身份证、母婴保健技术服务执行许可证","有效期内数据"]
[840,"开展产前筛查的医疗机构许可变更机构名称","市级","医疗机构执业许可证、居民身份证、母婴保健技术服务执行许可证","有效期内数据"]
[841,"开展产前产前筛查的医疗机构许可变更地址门牌号","市级","医疗机构执业许可证、居民身份证、母婴保健技术服务执行许可证","有效期内数据"]
[842,"开展助产技术服务、结扎手术和终止妊娠手术的医疗保健机构校验","市级","医疗机构执业许可证、医师执业证书、母婴保健技术服务执行许可证","有效期内数据"]
[843,"开展产前筛查的医疗机构执业校验","市级","医疗机构执业许可证、医师执业证书、母婴保健技术服务执行许可证","有效期内数据"]
[844,"开展婚前医学检查的医疗保健机构校验","市级","医疗机构执业许可证、医师执业证书、母婴保健技术服务执行许可证","有效期内数据"]
[845,"护士执业注册及延续注册（首次注册）","国家级","居民身份证、学历证书","有效期内数据"]
[846,"护士执业注册及延续注册（重新注册）","国家级","居民身份证","有效期内数据"]
[847,"护士执业注册及延续注册（丢失补证）","国家级","居民身份证","有效期内数据"]
[848,"乡村医生-执业注册","省级","居民身份证、学历证书","有效期内数据"]
[849,"乡村医生变更注册","省级","居民身份证","有效期内数据"]
[850,"乡村医生执业再注册","省级","居民身份证","有效期内数据"]
[851,"从事助产技术服务、结扎手术和终止妊娠手术的人员资格认定","市级","医师执业证书","有效期内数据"]
[852,"公共场所卫生许可证新申请","市级","居民身份证","有效期内数据"]
[853,"公共场所卫生许可证延续","市级","居民身份证","有效期内数据"]
[854,"公共场所卫生许可证变更单位名称","市级","居民身份证","有效期内数据"]
[855,"公共场所卫生许可证变更法人","市级","居民身份证","有效期内数据"]
[856,"公共场所卫生许可证注销","市级","居民身份证","有效期内数据"]
[857,"集中式供水单位卫生许可新申请","市级","居民身份证","有效期内数据"]
[858,"集中式供水单位卫生许可换证","市级","居民身份证","有效期内数据"]
[859,"集中式供水单位卫生许可变更法人","市级","居民身份证","有效期内数据"]
[860,"集中式供水单位卫生许可变更名称","市级","居民身份证","有效期内数据"]
[861,"集中式供水单位卫生许可注销","市级","居民身份证","有效期内数据"]
[862,"二次供水设施管理责任单位卫生许可延续","市级","居民身份证","有效期内数据"]
[863,"二次供水设施管理责任单位卫生许可新申请","市级","居民身份证","有效期内数据"]
[864,"二次供水设施管理责任单位卫生许可证变更法定代表人","市级","居民身份证","有效期内数据"]
[865,"二次供水设施管理单位责任卫生许可证变更单位名称","市级","居民身份证","有效期内数据"]
[866,"单采血浆站设置审批","国家级","不动产登记证明、居民身份证","有效期内数据"]
[867,"单采血浆站执业登记","国家级","营业执照","有效期内数据"]
[868,"单采血浆站执业延续登记","国家级","营业执照","有效期内数据"]
[869,"单采血浆站变更地址（迁址）","国家级","营业执照","有效期内数据"]
[870,"在演出场所进行的营业性演出","国家级","居民身份证、营业执照","有效期内数据"]
[871,"在歌舞娱乐等非演出场所进行营业性演出","国家级","居民身份证、营业执照","有效期内数据"]
[872,"营业性演出变更参加演出的文艺表演团体、演员","国家级","居民身份证","有效期内数据"]
[873,"娱乐场所改建、扩建营业场所或变更场地","国家级","居民身份证、营业执照","有效期内数据"]
[874,"娱乐场所变更单位名称","国家级","营业执照","有效期内数据"]
[875,"娱乐场所补发《娱乐经营许可证》","国家级","营业执照","有效期内数据"]
[876,"娱乐场所变更单位法定代表人或主要负责人","国家级","居民身份证、营业执照","有效期内数据"]
[877,"电影放映单位（含外资）设立","市级","居民身份证、营业执照","有效期内数据"]
[878,"电影放映单位变更法定代表人","市级","居民身份证、营业执照","有效期内数据"]
[879,"电影放映单位变更单位名称","市级","营业执照","有效期内数据"]
[880,"电影放映单位变更经营地址","市级","营业执照","有效期内数据"]
[881,"设立文艺表演团体审批","国家级","居民身份证、营业执照","有效期内数据"]
[882,"文艺表演团体变更名称","国家级","居民身份证、营业执照","有效期内数据"]
[883,"文艺表演团体延续《营业性演出许可证》","国家级","居民身份证、营业执照、营业性演出许可证","有效期内数据"]
[884,"文艺表演团体补发《营业性演出许可证》","国家级","居民身份证、营业执照","有效期内数据"]
[885,"文艺表演团体变更经营场所","国家级","居民身份证、营业执照","有效期内数据"]
[886,"文艺表演团体变更法定代表人或主要负责人","国家级","居民身份证、营业执照","有效期内数据"]
[887,"文艺表演团体变更经营范围","国家级","居民身份证、营业执照","有效期内数据"]
[888,"从事出版物零售业务许可","市级","居民身份证、营业执照","有效期内数据"]
[889,"从事出版物零售业务变更经营地址","市级","居民身份证、营业执照","有效期内数据"]
[890,"从事出版物零售业务变更名称法定代表人或经营负责人","市级","居民身份证、营业执照","有效期内数据"]
[891,"从事出版物零售业务变更经营范围","市级","居民身份证、营业执照","有效期内数据"]
[892,"校车使用许可（新申请）","市级","居民身份证、民办非企业法人登记证、营业执照","有效期内数据"]
[893,"校车使用许可（提供校车服务车辆停止运营）","市级","居民身份证","有效期内数据"]
[894,"校车使用许可（变更校车行驶线路（站点））","市级","居民身份证","有效期内数据"]
[895,"校车使用许可（变更校车驾驶人）","市级","居民身份证","有效期内数据"]
[896,"麻醉药品和第一类精神药品购用审批（新发、延续）","省级","医疗机构执业许可证","有效期内数据"]
[897,"麻醉药品和第一类精神药品购用审批（变更、补办）","省级","医疗机构执业许可证","有效期内数据"]
[898,"成品油零售经营企业设立许可","市级","居民身份证、营业执照","有效期内数据"]
[899,"变更成品油零售经营企业名称","市级","营业执照","有效期内数据"]
[900,"成品油零售经营批准证书换发","市级","营业执照","有效期内数据"]
[901,"成品油零售经营批准证书补办","市级","营业执照","有效期内数据"]
[902,"变更成品油零售经营企业法人或负责人","市级","居民身份证、营业执照","有效期内数据"]
[903,"不设床位或者床位不满100张的医疗机构的校验","国家级","医疗机构执业许可证","有效期内数据"]
[904,"不设床位或者床位不满100张的医疗机构变更诊疗科目","国家级","医疗机构执业登记证、医师执业证书","有效期内数据"]
[905,"不设床位或者床位不满100张的医疗机构变更法定代表人（负责人）","国家级","医疗机构执业许可证、营业执照、医师执业证书","有效期内数据"]
[906,"不设床位或者床位不满100张的医疗机构变更执业地点（迁址、增加执业地点、注销执业地点）","国家级","医疗机构执业许可证","有效期内数据"]
[907,"不设床位或者床位不满100张的医疗机构变更执业地点（地址门牌号）","国家级","医疗机构执业许可证","有效期内数据"]
[908,"不设床位或者床位不满100张的医疗机构变更床位（牙椅）数","国家级","医疗机构执业许可证","有效期内数据"]
[909,"不设床位或者床位不满100张的医疗机构变更名称","国家级","医疗机构执业许可证","有效期内数据"]
[910,"不设床位或者床位不满100张的医疗机构变更所有制形式","国家级","医疗机构执业许可证","有效期内数据"]
[911,"不设床位或者床位不满100张的医疗机构变更注册资金","国家级","医疗机构执业许可证、营业执照","有效期内数据"]
[912,"不设床位或者床位不满100张的医疗机构停业","国家级","医疗机构执业许可证","有效期内数据"]
[913,"不设床位或者床位不满100张的医疗机构注销","国家级","医疗机构执业许可证","有效期内数据"]
[914,"不设床位或者床位不满100张的医疗机构有效期满延续注册","国家级","医疗机构执业许可证","有效期内数据"]
[915,"食品经营许可（新发）","省级","营业执照","有效期内数据"]
[916,"食品经营许可（变更经营项目）（需现场核查）","省级","营业执照","有效期内数据"]
[917,"食品经营许可（变更企业名称、法定代表人）","省级","营业执照","有效期内数据"]
[918,"种畜禽生产经营许可（变更名称、地址、增加或者更换种畜禽品种）","市级","营业执照、居民身份证","有效期内数据"]
[919,"种畜禽生产经营许可（延续）","市级","营业执照、居民身份证","有效期内数据"]
[920,"种畜禽生产经营许可","市级","营业执照、居民身份证","有效期内数据"]
[921,"房屋建筑工程公共建筑装饰装修、管线及设备安装等施工许可（质量安全登记并联审批）","市级","居民身份证、不动产登记证明、不动产权证书、建设工程规划许可证、企业名称变更、住所（经营场所）变更证明、建筑施工企业安全生产许可证书、建筑业企业资质证书","有效期内数据"]
[922,"市政基础设施工程施工许可证核发 （质量安全登记并联审批）","市级","居民身份证、不动产登记证明、不动产权证书、建设工程规划许可证、企业名称变更、住所（经营场所）变更证明、建筑施工企业安全生产许可证书、建筑业企业资质证书","有效期内数据"]
[923,"城市建筑垃圾处置核准（处置场设置）","市级","营业执照","有效期内数据"]
[924,"城市建筑垃圾处置核准（经营性运输许可建筑垃圾运输车辆增加、更新）","市级","营业执照、中华人民共和国道路运输证","有效期内数据"]
[925,"城市建筑垃圾处置核准（经营性运输许可企业法人代表变更）","市级","营业执照、中华人民共和国道路运输证","有效期内数据"]
[926,"城市建筑垃圾处置核准（经营性运输许可企业法人名称变更）","市级","营业执照、中华人民共和国道路运输证","有效期内数据"]
[927,"城市建筑垃圾回填登记","市级","营业执照","有效期内数据"]
[928,"食用菌菌种生产经营许可（延续）","市级","营业执照、居民身份证；食品经营许可证","有效期内数据"]
[929,"食用菌菌种生产经营许可（审核）","市级","营业执照、居民身份证；食品经营许可证","有效期内数据"]
[930,"食用菌菌种生产经营许可（变更）","市级","营业执照、居民身份证；食品经营许可证","有效期内数据"]
[931,"食用菌菌种生产经营许可（核发）","市级","营业执照、居民身份证；","有效期内数据"]
[932,"兽药经营许可证审批（非兽用生物制品）变更企业名称、法定代表人","市级","居民身份证、营业执照、 兽药经营许可证","有效期内数据"]
[933,"兽药经营许可证审批（非兽用生物制品）变更经营范围、经营地址","市级","居民身份证、营业执照、 兽药经营许可证","有效期内数据"]
[934,"第三类医疗器械经营许可（核发）","省级","营业执照","有效期内数据"]
[935,"第三类医疗器械经营许可（延续）","省级","营业执照","有效期内数据"]
[936,"第三类医疗器械经营许可（注销）","省级","营业执照","有效期内数据"]
[937,"第三类医疗器械经营许可（变更法定代表人、企业负责人）","省级","营业执照","有效期内数据"]
[938,"第三类医疗器械经营许可（变更企业名称、住所）","省级","营业执照","有效期内数据"]
[939,"第二类医疗器械经营备案核发","省级","营业执照","有效期内数据"]
[940,"医师执业证书遗失补办","国家级","居民身份证","有效期内数据"]
[941,"医师执业多机构备案","国家级","居民身份证、医师资格证、医师执业证书","有效期内数据"]
[942,"股权出质设立登记(行政审批服务局)","市级","居民身份证","有效期内数据"]
[943,"股权出质变更登记（行政审批服务局）","市级","居民身份证","有效期内数据"]
[944,"歌舞娱乐场所从事歌舞娱乐场所经营活动审批","国家级","居民身份证、营业执照","有效期内数据"]
[945,"游艺娱乐场所从事游艺娱乐场所经营活动审批","国家级","居民身份证、营业执照","有效期内数据"]
[946,"劳务派遣经营设立许可（正常办理）","市级","不动产登记证","有效期内数据"]
[947,"劳务派遣经营变更许可","市级","居民身份证、营业执照","有效期内数据"]
[948,"放射源诊疗技术和医用辐射机构变更项目、设备、核素等","市级","《医疗机构执业许可证》副本","有效期内数据"]
[949,"放射源诊疗技术和医用辐射机构许可","市级","《医疗机构执业许可证》副本","有效期内数据"]
[950,"放射源诊疗技术和医用辐射机构变更机构名称","市级","《医疗机构执业许可证》副本","有效期内数据"]
[951,"放射源诊疗技术和医用辐射机构变更法定代表人（负责人）","市级","《医疗机构执业许可证》副本","有效期内数据"]
[952,"放射源诊疗技术和医用辐射机构变更地址（地址门牌号）","市级","《医疗机构执业许可证》副本","有效期内数据"]
[953,"放射源诊疗技术和医用辐射机构注销","市级","《医疗机构执业许可证》副本","有效期内数据"]
[954,"放射源诊疗技术和医用辐射机构校验","市级","居民身份证、《医疗机构执业许可证》副本、卫生许可证","有效期内数据"]
[955,"经营性人力资源服务机构从事职业中介活动许可（正常办理）","市级","场所、设施的所有权证明、营业执照","有效期内数据"]
[956,"经营性人力资源服务机构从事职业中介活动许可（告知承诺办理）","市级","营业执照","有效期内数据"]
[957,"经营性人力资源服务机构从事职业中介活动许可变更","市级","场所所有权或使用权证明、变更后的法定代表人（负责人）居民身份证明","有效期内数据"]
[958,"经营性人力资源服务机构从事职业中介活动许可延续","市级","营业执照、人力资源服务许可证","有效期内数据"]
[959,"经营性人力资源服务机构从事职业中介活动许可注销","市级","营业执照","有效期内数据"]
[960,"民办职业培训机构设立审批（告知承诺制办理）","市级","居民身份证、营业执照","有效期内数据"]
[961,"民办职业培训机构设立审批（正常办理）","市级","居民身份证、营业执照","有效期内数据"]
[962,"民办非企业单位法定代表人变更登记","区县级","民办非企业单位法人登记证书","有效期内数据"]
[963,"举办健身气功活动审批","市级","居民身份证","有效期内数据"]
[964,"设立健身气功站点审批","市级","居民身份证","有效期内数据"]
[965,"互联网上网服务经营活动审批（设立）","国家级","居民身份证、营业执照","有效期内数据"]
[966,"互联网上网服务经营活动审批（变更）","国家级","营业执照、不动产权证","有效期内数据"]
[967,"道路货物运输经营许可（含网络货运）-新增/扩大经营范围","省级","居民身份证、道路运输从业人员从业资格证（青岛市内）、机动车行驶证、机动车驾驶证","有效期内数据"]
[968,"道路货物运输经营许可（延续）","省级","居民身份证","有效期内数据"]
[969,"道路货物运输经营许可（证件补发）","省级","居民身份证","有效期内数据"]
[970,"道路货物运输经营许可（终止经营）","省级","居民身份证","有效期内数据"]
[971,"城市公共汽（电）车客运经营许可（核发）","省级","居民身份证、机动车行驶证、机动车驾驶证","有效期内数据"]
[972,"城市公共汽（电）车客运经营许可（换发）","省级","居民身份证","有效期内数据"]
[973,"城市公共汽（电）车客运经营许可（补发）","省级","居民身份证","有效期内数据"]
[974,"城市公共汽（电）车客运经营许可（注销）","省级","居民身份证","有效期内数据"]
[975,"城市公交线路经营许可（新增）","省级","居民身份证、机动车行驶证、机动车驾驶证","有效期内数据"]
[976,"城市公交线路经营许可（变更）","省级","居民身份证","有效期内数据"]
[977,"城市公交线路经营许可（暂停/终止）","省级","居民身份证","有效期内数据"]
[978,"道路客运经营许可（核发/扩大经营范围）","省级","居民身份证","有效期内数据"]
[979,"道路客运经营许可（换发）","省级","居民身份证","有效期内数据"]
[980,"道路客运经营许可（补发）","省级","居民身份证","有效期内数据"]
[981,"道路客运经营许可（增加运力）","省级","居民身份证","有效期内数据"]
[982,"道路客运经营许可（注销）","省级","居民身份证","有效期内数据"]
[983,"道路客运班线经营许可（新增/变更经营主体、起讫地和日发班次下限）","省级","居民身份证","有效期内数据"]
[984,"道路客运班线经营许可（变更中途停靠地客运站点、车辆数量及要求）","省级","居民身份证","有效期内数据"]
[985,"道路客运班线经营许可（暂停经营）","省级","居民身份证","有效期内数据"]
[986,"道路客运班线经营许可（终止经营）","省级","居民身份证","有效期内数据"]
[987,"民办教育培训机构筹设审批","市级","居民身份证","有效期内数据"]
[988,"民办义务教育阶段学校筹设审批","市级","居民身份证","有效期内数据"]
[989,"民办幼儿园筹设审批","市级","居民身份证","有效期内数据"]
[990,"个体工商户设立登记","市级","居民身份证","有效期内数据"]
[991,"个体工商户变更登记（备案）","市级","居民身份证、营业执照","有效期内数据"]
[992,"个体工商户注销登记","市级","营业执照","有效期内数据"]
[993,"公司设立登记（行政审批服务局）","市级","居民身份证","有效期内数据"]
[994,"公司变更登记（行政审批服务局）","市级","营业执照","有效期内数据"]
[995,"公司备案（行政审批服务局）","市级","居民身份证、营业执照","有效期内数据"]
[996,"公司注销登记（行政审批服务局）","市级","营业执照","有效期内数据"]
[997,"撤销变更登记-审批局","市级","营业执照","有效期内数据"]
[998,"分公司设立登记-审批局","市级","居民身份证、营业执照","有效期内数据"]
[999,"分公司变更登记（备案）审批局","市级","居民身份证、营业执照","有效期内数据"]
[1000,"分公司注销登记（行政审批服务局）","市级","营业执照","有效期内数据"]
[1001,"因公司合并（分立）申请设立、变更或注销登记（行政审批服务局）","市级","营业执照","有效期内数据"]
[1002,"因公司的股东发生合并（分立），公司申请变更登记（行政审批服务局）","市级","营业执照","有效期内数据"]
[1003,"非公司企业法人设立登记","市级","营业执照","有效期内数据"]
[1004,"非公司企业法人变更登记","市级","营业执照","有效期内数据"]
[1005,"非公司企业法人备案","市级","居民身份证","有效期内数据"]
[1006,"非公司企业法人注销登记","市级","营业执照","有效期内数据"]
[1007,"非公司企业法人分支机构设立登记","市级","居民身份证、营业执照","有效期内数据"]
[1008,"非公司企业法人分支机构变更登记（备案）","市级","居民身份证、营业执照","有效期内数据"]
[1009,"非公司企业法人分支机构注销登记","市级","营业执照","有效期内数据"]
[1010,"非公司企业法人按《公司法》改制登记","市级","居民身份证、营业执照","有效期内数据"]
[1011,"合伙企业设立登记（行政审批服务局）","市级","居民身份证","有效期内数据"]
[1012,"合伙企业变更登记（行政审批服务局）","市级","营业执照","有效期内数据"]
[1013,"合伙企业备案（行政审批服务局）","市级","居民身份证","有效期内数据"]
[1014,"合伙企业注销登记（行政审批服务局）","市级","营业执照","有效期内数据"]
[1015,"合伙企业分支机构设立登记（行政审批服务局）","市级","居民身份证、营业执照","有效期内数据"]
[1016,"合伙企业分支机构变更登记（备案）（行政审批服务局）","市级","营业执照","有效期内数据"]
[1017,"合伙企业分支机构注销登记（行政审批服务局）","市级","营业执照","有效期内数据"]
[1018,"个人独资企业设立登记","市级","居民身份证","有效期内数据"]
[1019,"个人独资企业变更登记（备案）","市级","营业执照","有效期内数据"]
[1020,"个人独资企业注销登记","市级","营业执照","有效期内数据"]
[1021,"个人独资企业分支机构设立登记","市级","居民身份证","有效期内数据"]
[1022,"个人独资企业分支机构变更登记（备案）","市级","营业执照","有效期内数据"]
[1023,"个人独资企业分支机构注销登记","市级","营业执照","有效期内数据"]
[1024,"农民专业合作社（联合社）设立登记","市级","居民身份证","有效期内数据"]
[1025,"农民专业合作社（联合社）变更登记","市级","居民身份证、营业执照","有效期内数据"]
[1026,"农民专业合作社（联合社）备案","市级","居民身份证、营业执照","有效期内数据"]
[1027,"农民专业合作社（联合社）注销登记","市级","营业执照","有效期内数据"]
[1028,"农民专业合作社（联合社）分支机构设立登记","市级","居民身份证、营业执照","有效期内数据"]
[1029,"农民专业合作社（联合社）分支机构变更登记（备案）","市级","居民身份证、营业执照","有效期内数据"]
[1030,"农民专业合作社（联合社）分支机构注销登记","市级","营业执照","有效期内数据"]
[1031,"企业迁移调档（行政审批服务局）","市级","营业执照","有效期内数据"]
[1032,"申请增加、减少证照（行政审批服务局）","市级","营业执照、外国企业常驻代表机构登记证","有效期内数据"]
[1033,"证照遗失补领、换发","市级","营业执照","有效期内数据"]
[1034,"使用浮桥从事水路运输经营许可","市级","营业执照","有效期内数据"]
[1035,"使用载客十二人以下船舶从事水路运输经营许可","市级","营业执照","有效期内数据"]
[1036,"建筑废弃物资源化利用方案备案（新建、改建工程）","市级","建设工程规划许可证","有效期内数据"]
[1037,"建筑废弃物资源化利用方案备案（市政、道路工程）","市级","建设工程规划许可证","有效期内数据"]
[1038,"药品经营许可证（零售）核发","省级","营业执照","有效期内数据"]
[1039,"农药经营许可（适用于首次申请，经营范围增加限制使用农药、 改变营业场所或仓储场所地址）","市级","居民身份证、营业执照","有效期内数据"]
[1040,"农药经营许可证补发","市级","居民身份证、营业执照","有效期内数据"]
[1041,"农药经营许可证延续","市级","居民身份证、营业执照","有效期内数据"]
[1042,"农药经营许可证变更（适用于改变经营者名称、法定代表人或负责人、住所， 调整分支机构，或者减少经营范围等变更）","市级","居民身份证、营业执照","有效期内数据"]
[1043,"在公路用地范围内设置非公路标志许可","市级","居民身份证","有效期内数据"]
[1044,"巡游出租汽车客运经营许可（核发）","省级","营业执照、居民身份证、机动车行驶证、机动车驾驶证","有效期内数据"]
[1045,"道路旅客运输站经营许可","省级","营业执照、居民身份证","有效期内数据"]
[1046,"企业实行不定时工作制和综合计算工时工作制审批","市级","营业执照","有效期内数据"]
[1047,"城市大型户外广告设置审核","市级","营业执照、居民身份证","有效期内数据"]
[1048,"经营高危险性体育项目许可","市级","营业执照","有效期内数据"]
[1049,"民办职业培训机构筹设","市级","营业执照、居民身份证","有效期内数据"]
[1050,"网络预约出租汽车经营许可","省级","营业执照、居民身份证","有效期内数据"]
[1051,"放射工作人员证核发","市级","居民身份证","有效期内数据"]
[1052,"市政设施建设类审批","市级","建设工程规划许可证","有效期内数据"]
[1053,"动物诊疗许可","市级","营业执照、居民身份证","有效期内数据"]
[1054,"生鲜乳准运许可","国家级","营业执照、居民身份证","有效期内数据"]
[1055,"生鲜乳收购许可","国家级","营业执照、居民身份证","有效期内数据"]
[1056,"公路建设项目施工许可","市级","居民身份证","有效期内数据"]
[1057,"涉路施工许可","市级","居民身份证","有效期内数据"]
[1058,"外国人对重点保护野生动物进行野外考察或者在野外拍摄电影、录像审批（外国人对国家重点保护野生动物进行野外考察、标本采集或者在野外拍摄电影、录像的审批）","市级","营业执照、居民身份证","有效期内数据"]
[1059,"农作物种子生产经营许可","国家级","营业执照、居民身份证","有效期内数据"]
[1060,"建设项目使用林地、草原及在森林和野生动物类型国家级自然保护区建设审批（核）","国家级","营业执照、居民身份证","有效期内数据"]
[1061,"采集农业主管部门管理的国家一级保护野生植物审批","市级","营业执照、居民身份证","有效期内数据"]
[1062,"林草种子生产经营许可证审核","国家级","营业执照、居民身份证","有效期内数据"]
[1063,"取水许可变更","市级","营业执照","有效期内数据"]
[1064,"开发利用人防工程和设施审批","市级","营业执照","有效期内数据"]
[1065,"防空地下室易地建设审批","市级","不动产权证明","有效期内数据"]
[1066,"关闭、闲置、拆除城市环卫设施许可","市级","建设工程规划许可证、营业执照","有效期内数据"]
[1067,"雨水、污水设施及专用排水设施接入城市排水管网方案备案","市级","身份证","有效期内数据"]
[1068,"房屋建筑拆除工程施工备案","市级","居民身份证","有效期内数据"]
[1069,"防空地下室设计意见书","市级","建设工程规划许可证","有效期内数据"]
[1070,"食品生产许可（补发）","省级","营业执照","有效期内数据"]
[1071,"食品生产许可注销","省级","营业执照","有效期内数据"]
[1072,"食品生产许可核发","省级","营业执照","有效期内数据"]
[1073,"食品生产许可延续","省级","营业执照","有效期内数据"]
[1074,"食品生产许可变更（生产条件发生变化、变更产品明细、增加产品类别）","省级","营业执照、食品生产许可证","有效期内数据"]
[1075,"食品生产许可变更（申请人名称变更、生产地址名称变更、住所变更、法人变更）","省级","营业执照","有效期内数据"]
[1076,"食品经营许可（延续）","省级","营业执照","有效期内数据"]
[1077,"食品经营许可（补发）","省级","营业执照","有效期内数据"]
[1078,"食品经营许可（注销）","省级","营业执照","有效期内数据"]
[1079,"第三类医疗器械经营许可（补发）","省级","营业执照","有效期内数据"]
[1080,"第三类医疗器械经营许可（变更经营范围）","省级","营业执照","有效期内数据"]
[1081,"第三类医疗器械经营许可（变更经营方式）","省级","营业执照","有效期内数据"]
[1082,"第三类医疗器械经营许可（变更经营场所、库房地址（包括增减面积））","省级","营业执照","有效期内数据"]
[1083,"药品经营许可证（零售）（增加经营范围）","省级","营业执照","有效期内数据"]
[1084,"药品经营许可证（零售）（变更仓库地址、增加仓库）","省级","营业执照","有效期内数据"]
[1085,"药品经营许可证（零售）（变更企业法定代表人）","省级","营业执照","有效期内数据"]
[1086,"药品经营许可证（零售）（变更企业负责人或质量负责人）","省级","营业执照","有效期内数据"]
[1087,"药品经营许可证（零售）补发","省级","营业执照","有效期内数据"]
[1088,"药品经营许可证（零售）（变更企业名称、企业性质等登记事项）","省级","营业执照","有效期内数据"]
[1089,"药品经营许可证（零售）（变更注册地址）","省级","营业执照","有效期内数据"]
[1090,"药品经营许可证（零售）换证","省级","营业执照","有效期内数据"]
[1091,"药品经营许可证（零售）注销","省级","营业执照","有效期内数据"]
[1092,"第二类医疗器械经营备案变更（法定代表人、企业负责人、企业名称、住所）","省级","营业执照","有效期内数据"]
[1093,"第二类医疗器械经营备案变更（经营场所、库房地址）","省级","营业执照","有效期内数据"]
[1094,"第二类医疗器械经营备案变更（经营方式）","省级","营业执照","有效期内数据"]
[1095,"第二类医疗器械经营备案变更（经营范围）","省级","营业执照","有效期内数据"]
[1096,"第二类医疗器械经营备案凭证补发","省级","营业执照","有效期内数据"]
[1097,"民办职业培训机构变更审批（正常办理）","市级","不动产登记证明、居民身份证","有效期内数据"]
[1098,"民办教育培训机构设立审批","市级","不动产权证书","有效期内数据"]
[1099,"民办义务教育阶段学校设立审批","市级\n","不动产权证书","有效期内数据"]
[1100,"民办幼儿园设立审批","市级\n","不动产权证书","有效期内数据"]
[1101,"民办义务教育阶段学校变更审批","市级\n","不动产权证书","有效期内数据"]
[1102,"民办幼儿园变更审批","市级","不动产权证书","有效期内数据"]
[1103,"狩猎证核发","市级","居民身份证","有效期内数据"]
[1104,"从事出版物零售业务延续《出版物经营许可证》","市级","居民身份证、营业执照","有效期内数据"]
[1105,"从事出版物零售业务补发《出版物经营许可证》","市级","居民身份证、营业执照","有效期内数据"]
[1106,"从事出版物零售业务注销《出版物经营许可证》","市级","居民身份证、营业执照","有效期内数据"]
[1107,"文艺表演团体注销《营业性演出许可证》","国家级","居民身份证、营业执照","有效期内数据"]
[1108,"医师执业许可注册（重新注册）","国家级","医疗机构执业许可证、居民身份证","有效期内数据"]
[1109,"医师执业注册-首次注册","国家级","医疗机构执业许可证、居民身份证","有效期内数据"]
[1110,"医师执业注册及变更注册（认定类医师资格证书遗失补办及信息更正初审）","国家级","居民身份证","有效期内数据"]
[1111,"医师执业注册及变更注册（军队医师换领地方医师资格初审）","国家级","居民身份证","有效期内数据"]
[1112,"医师执业注销","国家级","医师执业证书","有效期内数据"]
[1113,"娱乐场所延续《娱乐经营许可证》","国家级","营业执照","有效期内数据"]
[1114,"房屋建筑和市政基础设施工程施工图设计文件审查告知性备案","市级","建设工程施工图设计文件审查合格书","有效期内数据"]
[1115,"营业性演出变更演出时间","国家级","居民身份证、营业执照","有效期内数据"]
[1116,"营业性演出变更演出地点","国家级","居民身份证、营业执照","有效期内数据"]
[1117,"营业性演出变更演出节目内容","国家级","居民身份证、营业执照","有效期内数据"]
[1118,"营业性演出增加演出地（演出举办后六个月内）","国家级","居民身份证、营业执照","有效期内数据"]
[1119,"营业性演出取消演出","国家级","居民身份证、营业执照","有效期内数据"]
[1120,"娱乐场所注销《娱乐经营许可证》","国家级","居民身份证、营业执照","有效期内数据"]
[1121,"娱乐场所变更单位设施设备","国家级","居民身份证、营业执照","有效期内数据"]
[1122,"电影放映经营单位换发《电影放映经营许可证》","市级","居民身份证、营业执照","有效期内数据"]
[1123,"电影放映经营单位补发《电影放映经营许可证》","市级","居民身份证、营业执照","有效期内数据"]
[1124,"电影放映经营单位注销《电影放映经营许可证》","市级","居民身份证、营业执照","有效期内数据"]
[1125,"在文物保护单位保护范围内进行其他建设工程或爆破、钻探、挖掘等作业审核","市级","居民身份证","有效期内数据"]
[1126,"医师执业地点变更","国家级","医疗机构执业许可证、医师执业证书、居民身份证","有效期内数据"]
[1127,"医师执业范围变更","国家级","医疗机构执业许可证、医师执业证书、居民身份证","有效期内数据"]
[1128,"房屋建筑工程新建、改建、扩建施工许可（质量安全与人防质监登记并联审批）","市级","居民身份证、建设工程规划许可证、不动产登记证明、不动产权证书","有效期内数据"]
[1129,"食品经营许可（变更经营项目（增、减经营项目））（不需现场核查）","省级","营业执照","有效期内数据"]
[1130,"互联网上网服务经营活动审批（改建、扩建）","国家级","不动产登记证","有效期内数据"]
[1131,"互联网上网服务经营活动审批（注销）","国家级","居民身份证、营业执照","有效期内数据"]
[1132,"因工程建设需要拆除、改动、迁移供水、排水与污水处理设施审核","市级","营业执照","有效期内数据"]
[1133,"计量标准器具核准","省级","居民身份证","有效期内数据"]
[1134,"护士执业注册及延续注册（变更注册）","国家级","护士执业证","有效期内数据"]
[1135,"护士执业注册及延续注册（延续注册）","国家级","护士执业证","有效期内数据"]
[1136,"人防工程质量监督登记","市级","居民身份证","有效期内数据"]
[1137,"人防警报设施拆除审批","市级","中华人民共和国居民身份证","有效期内数据"]
[1138,"取水许可延续","市级","居民身份证、取水许可证","有效期内数据"]
[1139,"取水许可申请（验收阶段）","市级","居民身份证","有效期内数据"]
[1140,"取水许可申请（水资源论证阶段）","市级","居民身份证","有效期内数据"]
[1141,"劳务派遣经营注销许可","市级","身份证","有效期内数据"]
[1142,"劳务派遣经营延续许可","市级","身份证","有效期内数据"]
[1143,"供水企业因工程施工、设备维修等原因停止供水十八小时以内备案","市级","居民身份证","有效期内数据"]
[1144,"由于工程施工、设备维修等原因确需停止供水的审批","市级","居民身份证","有效期内数据"]
[1145,"居民用户未按照规定交纳水费情节严重的，在一定时间内停止供水","市级","居民身份证","有效期内数据"]
[1146,"供水企业对欠费的单位用户停止供水备案","市级","居民身份证","有效期内数据"]
[1147,"供水企业停业歇业许可","市级","居民身份证","有效期内数据"]
[1148,"河道采砂许可","市级","居民身份证","有效期内数据"]
[1149,"华侨回国定居审批","市级","不动产登记信息查询证明","有效期内数据"]
[1150,"在江河湖泊上新建、扩建以及改建并调整原有功能的水工程（原水工程规划同意书审核）","市级","身份证","有效期内数据"]
[1151,"医疗机构放射性职业病危害建设项目预评价报告审核","市级","居民身份证、放射诊疗许可证","有效期内数据"]
[1152,"乡村医生注销注册","省级","居民身份证","有效期内数据"]
[1153,"单建人防工程五十米范围内采石、取土、爆破、挖洞作业审批","市级","身份证","有效期内数据"]
[1154,"中介机构从事代理记账业务审批","国家级","身份证","有效期内数据"]
[1155,"民办非企业单位名称变更登记","市级","民办非企业单位登记证书","有效期内数据"]
[1156,"民办非企业单位业务范围变更登记","市级","民办非企业单位登记证书","有效期内数据"]
[1157,"民办非企业单位开办资金变更登记","市级","民办非企业单位登记证书","有效期内数据"]
[1158,"民办非企业单位住所变更登记","市级","民办非企业单位登记证书","有效期内数据"]
[1159,"民办非企业单位业务主管单位变更登记","市级","民办非企业单位登记证书","有效期内数据"]
[1160,"民办非企业单位成立登记","市级","不动产权证书","有效期内数据"]
[1161,"民办非企业单位注销登记","市级","民办非企业单位登记证书","有效期内数据"]
[1162,"慈善组织公开募捐资格审批","市级","慈善组织公开募捐资格证书申领表","有效期内数据"]
[1163,"社会团体登记证书到期换发","市级","社会团体法人登记证书","有效期内数据"]
[1164,"社会团体登记证书遗失补发","市级","社会团体法人登记证书","有效期内数据"]
[1165,"民办非企业单位登记证书到期换发","市级","民办非企业单位登记证书","有效期内数据"]
[1166,"民办非企业单位登记证书遗失补发","市级","民办非企业单位登记证书","有效期内数据"]
[1167,"慈善组织公开募捐资格证书到期换发","市级","慈善组织公开募捐资格证书","有效期内数据"]
[1168,"社会团体注销登记","市级","社会团体法人登记证书","有效期内数据"]
[1169,"社会团体住所变更登记","市级","社会团体法人登记证书","有效期内数据"]
[1170,"社会团体业务主管单位变更登记","市级","社会团体法人登记证书","有效期内数据"]
[1171,"社会团体业务范围变更登记","市级","社会团体法人登记证书","有效期内数据"]
[1172,"社会团体名称变更登记","市级","社会团体法人登记证书","有效期内数据"]
[1173,"宗教活动场所法人变更登记","市级","宗教活动场所法人登记证书","有效期内数据"]
[1174,"宗教活动场所法人注销登记","市级","宗教活动场所法人登记证书","有效期内数据"]
[1175,"民办教育培训机构变更审批","市级","青岛市居民身份证","有效期内数据"]
[1176,"国有文物保护单位改变用途审核","市级","青岛市居民身份证","有效期内数据"]
[1177,"应由市、县级部门立项审批或涉及不可移动文物的基本建设工程项目立项、选址","市级","青岛市居民身份证","有效期内数据"]
[1178,"民办教育培训机构终止审批","市级","青岛市居民身份证","有效期内数据"]
[1179,"民办义务教育阶段学校终止审批","市级\n","青岛市居民身份证","有效期内数据"]
[1180,"民办幼儿园终止审批","市级","青岛市居民身份证","有效期内数据"]
[1181,"民办教育培训机构分立审批","市级","青岛市居民身份证","有效期内数据"]
[1182,"民办义务教育阶段学校分立审批","市级\n","青岛市居民身份证","有效期内数据"]
[1183,"民办幼儿园分立审批","市级","青岛市居民身份证","有效期内数据"]
[1184,"民办教育培训机构合并审批","市级","青岛市居民身份证","有效期内数据"]
[1185,"变更成品油零售经营企业地址","市级","居民身份证、营业执照、成品油零售经营批准证书 、不动产权证书、危险化学品经营许可证","有效期内数据"]
[1186,"民办幼儿园合并审批","市级","青岛市居民身份证","有效期内数据"]
[1187,"县道、乡道公路用地范围内护路林更新采伐许可","市级","青岛市居民身份证","有效期内数据"]
[1188,"工程建设涉及城市绿地、树木审批","市级","营业执照","有效期内数据"]
[1189,"城市建筑垃圾处置核准（计划）","市级","营业执照","有效期内数据"]
[1190,"燃气经营者停业、歇业审批","市级","营业执照、居民身份证","有效期内数据"]
[1191,"燃气经营者改动燃气设施审核","市级","营业执照、居民身份证","有效期内数据"]
[1192,"供热经营许可证核发（企业法定代表人变更）","市级","营业执照","有效期内数据"]
[1193,"供热经营许可证核发（企业名称变更）","市级","营业执照","有效期内数据"]
[1194,"供热经营许可证核发（企业注册地址变更）","市级","营业执照","有效期内数据"]
[1195,"供热经营许可证核发（企业注册资金变更）","市级","营业执照","有效期内数据"]
[1196,"供热经营许可证核发（延期）","市级","营业执照","有效期内数据"]
[1197,"供热经营许可证核发","市级","营业执照；建筑工程施工许可证；燃气工程施工许可证","有效期内数据"]
[1198,"燃气经营许可证核发（燃气经营企业登记注册地址变更）","市级","营业执照、居民身份证","有效期内数据"]
[1199,"燃气经营许可证核发（燃气经营企业法人代表变更）","市级","营业执照、居民身份证","有效期内数据"]
[1200,"燃气经营许可证核发（燃气经营企业名称变更）","市级","营业执照、居民身份证","有效期内数据"]
[1201,"燃气经营许可证核发（延续燃气经营许可证有效期）","市级","营业执照、居民身份证","有效期内数据"]
[1202,"燃气经营许可证核发","市级","营业执照、居民身份证","有效期内数据"]
[1203,"临时占用林地审批","国家级","采矿许可证、矿产资源勘查许可证、营业执照、中华人民共和国居民身份证","有效期内数据"]
[1204,"民办义务教育阶段学校合并审批","市级\n","中华人民共和国民办学校办学许可证、青岛市居民身份证、营业执照、在社会组织申请筹设或正式设立营利性民办学校时，不再要求提交由会计师事务所出具的该社会组织近2年的年度财务会计报告审计结果等材料、在民办学校举办者再次申请举办营利性民办学校时，不再要求提交近2年年度检查的证明材料和有资质的会计师事务所出具的学校上年度财务会计报告审计结果。","有效期内数据"]
[1205,"道路货物运输经营许可（变更）","省级","居民身份证、营业执照","有效期内数据"]
[1206,"巡游出租汽车客运经营许可（终止经营）","省级","居民身份证","有效期内数据"]
[1207,"巡游出租汽车客运经营许可（换发、补发）","省级","居民身份证","有效期内数据"]
[1208,"巡游出租汽车客运经营许可（延续经营）","省级","居民身份证","有效期内数据"]
[1209,"巡游出租汽车客运经营许可（变更）","省级","居民身份证、营业执照","有效期内数据"]
[1210,"不设床位或者床位不满100张的医疗机构的执业登记","国家级","居民身份证","有效期内数据"]
[1211,"诊所备案","国家级","居民身份证","有效期内数据"]
[1212,"护士执业注册及延续注册（注销注册）","国家级","居民身份证","有效期内数据"]
[1213,"医疗机构放射性职业病危害建设项目竣工验收","青岛级","居民身份证","有效期内数据"]
[1214,"医师执业注册（备案）","国家级","居民身份证","有效期内数据"]
[1215,"生产建设项目水土保持方案审批","市级","居民身份证","有效期内数据"]
[1216,"用水计划调整","市级","居民身份证","有效期内数据"]
[1217,"新增用水计划","市级","居民身份证","有效期内数据"]
[1218,"基本建设及其他临时用水计划","市级","居民身份证","有效期内数据"]
[1219,"特殊车辆在城市道路上行驶审核","市级","居民身份证","有效期内数据"]
[1220,"河道管理范围内建设项目工程建设方案审查","市级","居民身份证","有效期内数据"]
[1221,"一般工程抗震设防要求审定","市级","居民身份证","有效期内数据"]
[1222,"地震观测环境保护范围内建设工程项目审批","市级","居民身份证","有效期内数据"]
[1223,"农村集体经济组织修建水库审批","市级","居民身份证","有效期内数据"]
[1224,"占用农业灌溉水源、灌排工程设施审批","市级","居民身份证","有效期内数据"]
[1225,"商品房预售许可","市级","居民身份证","有效期内数据"]
[1226,"改变绿化规划、绿化用地的使用性质审批","市级","居民身份证","有效期内数据"]
[1227,"城市二次供水设计方案意见确定","市级","居民身份证","有效期内数据"]
[1228,"住宅小区等群体房地产开发项目基础设施投入使用证明文件备案","市级","居民身份证","有效期内数据"]
[1229,"城镇污水排入排水管网许可","市级","居民身份证","有效期内数据"]
[1230,"再生水利用设施建设工程的设计方案及其变更备案","市级","居民身份证","有效期内数据"]
[1231,"再生水供水单位因工程施工、设备维修等原因停止供水报批","市级","居民身份证","有效期内数据"]
[1232,"非防洪建设项目洪水影响评价报告审批","市级","居民身份证","有效期内数据"]
[1233,"建设跨河、穿河、穿堤、临河的桥梁、码头、道路、渡口、管道、缆线、取水、排水等工程设施（原河道管理范围内建设项目工程建设方案审批）","市级","居民身份证","有效期内数据"]
[1234,"在洪泛区、蓄滞洪区内建设非防洪建设项目（原非防洪建设项目洪水影响评价报告审批）","市级","居民身份证","有效期内数据"]
[1235,"防空地下室方案设计文件审查","市级","居民身份证","有效期内数据"]
[1236,"人防工程拆除报废审批","市级","居民身份证","有效期内数据"]
[1237,"取水许可证注销","市级","居民身份证","有效期内数据"]
[1238,"新建民用建筑项目减免防空地下室易地建设费审查","市级","居民身份证","有效期内数据"]
[1239,"人防工程竣工验收备案","市级","居民身份证","有效期内数据"]
[1240,"对与架空电力导线的垂直距离小于安全距离的运输机械及装载物通过架空电力线路保护区的许可","市级","居民身份证","有效期内数据"]
[1241,"对在电力线路保护区内进行农田水利基本建设，从事起重、升降机械作业及打桩、钻探、挖掘等可能危及电力线路设施安全作业的许可","市级","居民身份证","有效期内数据"]
[1242,"对在电力设施周围水平距离五百米范围内从事爆破作业的许可","市级","居民身份证","有效期内数据"]
[1243,"企业投资6吨/9座以下通用飞机和3吨以下直升机制造项目核准","市级","居民身份证","有效期内数据"]
[1244,"企业投资城镇污水处理、生活垃圾处理等其他城建项目核准","市级","居民身份证","有效期内数据"]
[1245,"企业投资国家级风景名胜区、国家自然保护区、全国重点文物保护单位区域内总投资5000万元及以上旅游开发和资源保护项目，世界自然和文化遗产保护区内总投资3000万元及以上项目核准","市级","居民身份证","有效期内数据"]
[1246,"企业投资火电站（含自备电站）项目核准","市级","居民身份证","有效期内数据"]
[1247,"企业投资进口液化天然气接收、储运设施改扩建\n（不含新建和异地扩建）项目核准","市级","居民身份证","有效期内数据"]
[1248,"企业投资列入国家批准的相关规划的集装箱专用码头项目核准","市级","居民身份证","有效期内数据"]
[1249,"企业投资列入国家批准的相关规划的煤炭、矿石、\n油气专用泊位项目核准","市级","居民身份证","有效期内数据"]
[1250,"企业投资涉及不跨县河流、不跨县水资源配置调整的水利工\n程项目核准","市级","居民身份证","有效期内数据"]
[1251,"企业投资新建通用机场项目、扩建军民合用机场\n（增建跑道除外）项目核准","市级","居民身份证","有效期内数据"]
[1252,"蓄滞洪区避洪设施建设审批","市级","居民身份证","有效期内数据"]
[1253,"成品油零售经营企业经营资格注销","市级","居民身份证","有效期内数据"]
[1254,"成品油零售经营企业暂时歇（停）业","市级","居民身份证","有效期内数据"]
[1255,"市场主体歇业备案","市级","居民身份证","有效期内数据"]
[1256,"计量授权","省级","居民身份证","有效期内数据"]
[1257,"慈善组织认定","市级","社会团体法人登记证书、民办非企业单位登记证书","有效期内数据"]
[1258,"建设经营性公墓审批受理","市级","不动产权证书、营业执照","有效期内数据"]
[1259,"民办非企业单位成立申请预审服务","市级","《医疗机构执业许可证》","有效期内数据"]
[1260,"民办非企业单位修改章程核准","市级","民办非企业单位章程核准表、章程","有效期内数据"]
[1261,"民办非企业单位银行账号备案","市级","民办非企业单位银行账号备案表","有效期内数据"]
[1262,"民办非企业单位印章式样备案","市级","民办非企业单位印章式样备案表","有效期内数据"]
[1263,"社会团体成立登记","市级","社会团体法人登记申请表","有效期内数据"]
[1264,"社会团体修改章程核准","市级","社会团体章程核准表","有效期内数据"]
[1265,"社会团体银行账号备案","市级","社会团体银行账号备案表","有效期内数据"]
[1266,"社会团体印章式样备案","市级","社会团体印章备案表","有效期内数据"]
[1267,"社会团体注册资金变更登记","市级","社会团体法人登记证书","有效期内数据"]
[1268,"在街道两侧和公共场所临时堆放物料、搭建非永久性建筑物、构筑物或其他设施审核","市级","身份证","有效期内数据"]
[1269,"民办职业培训机构延续审批（正常办理）","市级","身份证","有效期内数据"]
[1270,"民办职业培训机构终止办学审批（正常办理）","市级","身份证","有效期内数据"]
[1271,"民办职业培训机构变更审批（告知承诺制办理）","市级","身份证","有效期内数据"]
[1272,"民办职业培训机构终止办学审批（告知承诺制办理）","市级","身份证","有效期内数据"]
[1273,"食品小作坊登记（注销）","省级","营业执照","有效期内数据"]
[1274,"食品小作坊登记（延续）","省级","营业执照","有效期内数据"]
[1275,"食品小作坊登记（变更）","省级","营业执照","有效期内数据"]
[1276,"食品小作坊登记（登记）","省级","营业执照","有效期内数据"]
[1277,"食品小作坊登记（补发）","省级","营业执照","有效期内数据"]
[1278,"小餐饮登记（注销）","省级","营业执照","有效期内数据"]
[1279,"小餐饮登记（延续）","省级","营业执照","有效期内数据"]
[1280,"小餐饮登记（变更）","省级","营业执照","有效期内数据"]
[1281,"小餐饮登记（登记）","省级","营业执照","有效期内数据"]
[1282,"小餐饮登记（补发）","省级","营业执照","有效期内数据"]
[1283,"房屋建筑工程和市政基础设施工程竣工验收备案","市级","居民身份证","有效期内数据"]
[1284,"房屋建筑和市政基础设施起重机械备案","市级","营业执照","有效期内数据"]
[1285,"竣工结算文件备案","市级","居民身份证","有效期内数据"]
[1286,"建设工程消防设计审查","市级","居民身份证","有效期内数据"]
[1287,"供热企业停业许可","市级","居民身份证","有效期内数据"]
[1288,"《燃气经营许可证》年检","市级","居民身份证","有效期内数据"]
[1289,"供热合同备案","市级","居民身份证","有效期内数据"]
[1290,"招标控制价备案","市级","居民身份证","有效期内数据"]
[1291,"办理施工安全监督手续","市级","居民身份证","有效期内数据"]
[1292,"办理工程质量监督手续","市级","居民身份证","有效期内数据"]
[1293,"依法必须进行招标的相关工程建设项目招标范围、招标方式、招标组织形式核准","市级","居民身份证","有效期内数据"]
[1294,"年度取（用）水计划核定","市级","居民身份证","有效期内数据"]
[1295,"工业企业技术改造投资项目备案（不含新增产能危险化学品项目新设）","市级","居民身份证","有效期内数据"]
[1296,"婚前医学检查技术服务人员资格认定","市级","居民身份证","有效期内数据"]
[1297,"兽药经营许可证审批（非兽用生物制品）注销","市级","居民身份证","有效期内数据"]
[1298,"道路货物运输经营许可-新增（告知承诺制）","省级","居民身份证","有效期内数据"]
[1299,"超限运输车辆行驶公路许可业务申请","市级","居民身份证","有效期内数据"]
[1300,"超限运输车辆行驶公路许可自行撤销/提前结束业务申请","市级","居民身份证","有效期内数据"]
[1301,"个人独资企业备案","市级","居民身份证","有效期内数据"]
[1302,"合伙企业分支机构备案","市级","居民身份证","有效期内数据"]
[1303,"农民专业合作社（联合社）分支机构备案","市级","居民身份证","有效期内数据"]
[1304,"非公司企业法人分支机构备案","市级","居民身份证","有效期内数据"]
[1305,"个体工商户备案","市级","居民身份证","有效期内数据"]
[1306,"分公司备案","市级","居民身份证","有效期内数据"]
[1307,"个人独资企业分支机构备案","市级","居民身份证","有效期内数据"]
[1308,"采集农业主管部门管理的国家二级保护野生植物审批","市级","身份证","有效期内数据"]
[1309,"房屋建筑和市政基础设施工程竣工验收备案","市级","身份证","有效期内数据"]
[1310,"节能审查（年综合能源消费量1000-10000吨标准煤或年电力消费量500万千瓦时以上）","市级","身份证","有效期内数据"]
[1311,"节能审查（民用建筑）","市级","身份证","有效期内数据"]
[1312,"水工程建设规划同意书审核","市级","身份证","有效期内数据"]
[1313,"建筑废弃物资源化利用方案备案（拆除工程）","市级","身份证","有效期内数据"]
[1314,"建筑废弃物资源化利用方案备案(市政道路)","市级","身份证","有效期内数据"]
[1315,"股权出质注销/撤销登记","市级","营业执照","有效期内数据"]
[1316,"建筑废弃物资源化利用方案备案（改建工程）","市级","身份证","有效期内数据"]
[1317,"建筑废弃物资源化利用方案备案","市级","身份证","有效期内数据"]
[1318,"网络食品交易第三方平台提供者备案、通过自建网站交易的食品生产经营者备案","省级","营业执照","有效期内数据"]
[1319,"房屋建筑和市政基础设施起重机械备案注销","市级","营业执照","有效期内数据"]
[1320,"公司备案","市级","居民身份证","有效期内数据"]
[1321,"城市建筑垃圾处置核准（运输）","市级","营业执照、道路运输经营许可证、行驶证、道路运输证","有效期内数据"]
[1322,"兽药经营许可证审批（非兽用生物制品）核发","市级","营业执照、不动产权证、身份证","有效期内数据"]
[1323,"医师执业-取消多机构备案","国家级","居民身份证","有效期内数据"]
[1324,"经营性人力资源服务机构设立分支机构书面报告","市级","营业执照","有效期内数据"]
[1325,"经营性人力资源服务机构开展人力资源服务业务备案","市级","营业执照、不动产权证明","有效期内数据"]
[1326,"医疗机构校验","国家级","居民身份证","有效期内数据"]
[1327,"企业投资进口液化天然气接收、储运设施改扩建（不含新建和异地扩建）项目核准","市级","居民身份证","有效期内数据"]
[1328,"种畜禽生产经营许可证补发","市级","居民身份证、营业执照、种畜禽生产经营许可证","有效期内数据"]
[1329,"娱乐场所从事娱乐场所经营活动审批（注销）","国家级","营业执照、中华人民共和国居民身份证、娱乐经营许可证","有效期内数据"]
[1330,"公众聚集场所投入使用、营业前消防安全检查","区级","营业执照","有效期内数据"]
[1331,"广播电视节目制作经营单位变更主要登记事项备案","市级","居民身份证、广播电视节目制作经营许可证","有效期内数据"]
[1332,"行政处罚案卷资料审核",null,"建设用地规划许可证、工程设计资质证书","有效期内数据"]
[1333,"进入公办A级景区","县级","老年人优待证","有效期内数据"]
[1334,"个体演出经纪人备案证明核发","市级","不动产权证书；营业执照；居民身份证","有效期内数据"]
[1335,"个体演出经纪人备案证明补发","市级","不动产权证书；营业执照；居民身份证","有效期内数据"]
[1336,"个体演出经纪人备案证明注销","市级","不动产权证书；营业执照；居民身份证","有效期内数据"]
[1337,"个体演员备案证明核发","市级","不动产权证书；营业执照；居民身份证","有效期内数据"]
[1338,"个体演员备案证明补发","市级","不动产权证书；营业执照；居民身份证","有效期内数据"]
[1339,"个体演员备案证明注销","市级","不动产权证书；营业执照；居民身份证","有效期内数据"]
[1340,"演出场所经营单位备案证明核发","市级","不动产权证书；营业执照；居民身份证","有效期内数据"]
[1341,"演出场所经营单位改建、扩建备案","市级","不动产权证书；营业执照；居民身份证","有效期内数据"]
[1342,"演出场所经营单位变更法人代表或主要负责人备案","市级","不动产权证书；营业执照；居民身份证","有效期内数据"]
[1343,"演出场所经营单位备案证明注销","市级","不动产权证书；营业执照；居民身份证","有效期内数据"]
[1344,"演出场所经营单位备案证明补发","市级","不动产权证书；营业执照；居民身份证","有效期内数据"]
[1345,"旅行社分社注销备案","国家级","不动产权证书；营业执照；居民身份证","有效期内数据"]
[1346,"旅行社分社变更备案","国家级","不动产权证书；营业执照；居民身份证","有效期内数据"]
[1347,"旅行社分社设立备案","国家级","不动产权证书；营业执照；居民身份证","有效期内数据"]
[1348,"政府信息依申请公开（文旅）","区县级","不动产权证书；营业执照；居民身份证","有效期内数据"]
[1349,"非物质文化遗产代表性项目及代表性传承人的认定","市级","不动产权证书；营业执照；居民身份证","有效期内数据"]
[1350,"接收不可移动文物管理使用权和相关资料","市级","不动产权证书；营业执照；居民身份证","有效期内数据"]
[1351,"变更文物保护单位隶属关系的审核、备案","市级","不动产权证书；营业执照；居民身份证","有效期内数据"]
[1352,"博物馆陈列展览主题、展品说明、讲解词等的备案","市级","不动产权证书；营业执照；居民身份证","有效期内数据"]
[1353,"发现文物后提出处理意见","市级","不动产权证书；营业执照；居民身份证","有效期内数据"]
[1354,"非国有不可移动文物有损毁危险给予帮助","市级","不动产权证书；营业执照；居民身份证","有效期内数据"]
[1355,"利用不可移动文物举办展览、展销、演出等活动的许可","市级","不动产权证书；营业执照；居民身份证","有效期内数据"]
[1356,"提供文物复制、拓印模具和技术资料审核","市级","不动产权证书；营业执照；居民身份证","有效期内数据"]
[1357,"文物保护单位、文物保护区申报、审核、备案","省级","不动产权证书；营业执照；居民身份证","有效期内数据"]
[1358,"文物保护单位保护范围和建设控制地带划定","省级","不动产权证书；营业执照；居民身份证","有效期内数据"]
[1359,"文物保护工程变更或补充技术设计的备案、批准","省级","不动产权证书；营业执照；居民身份证","有效期内数据"]
[1360,"文物收藏单位、国家机关、部队和国有企业、事业组织等藏品档案备案","省级","不动产权证书；营业执照；居民身份证","有效期内数据"]
[1361,"文物收藏单位管理制度备案","省级","不动产权证书；营业执照；居民身份证","有效期内数据"]
[1362,"文物认定","省级","不动产权证书；营业执照；居民身份证","有效期内数据"]
[1363,"非国有文物保护单位转让、抵押、改变用途备案","省级","不动产权证书；营业执照；居民身份证","有效期内数据"]
[1364,"文物保护单位原址保护措施审批","省级","不动产权证书；营业执照；居民身份证","有效期内数据"]
[1365,"电子身份证“亮码”进景区","区级","中华人民共和国居民身份证","有效期内数据"]
[1366,"著作权专有许可使用合同备案","省级","不动产权证书；营业执照；居民身份证","有效期内数据"]
[1367,"电影放映单位年检","省级","不动产权证书；营业执照；居民身份证","有效期内数据"]
[1368,"电影放映单位变更名称、法定代表人（主要负责人）备案","省级","不动产权证书；营业执照；居民身份证","有效期内数据"]
[1369,"非法人出版物发行分支机构设立备案","省级","不动产权证书；营业执照；居民身份证","有效期内数据"]
[1370,"著作权转让合同备案","省级","不动产权证书；营业执照；居民身份证","有效期内数据"]
[1371,"电影放映单位终止电影放映经营活动备案","省级","不动产权证书；营业执照；居民身份证","有效期内数据"]
[1372,"对《营业性演出许可证》相关信息变更的备案","省级","不动产权证书；营业执照；居民身份证","有效期内数据"]
[1373,"表彰为促进电影产业发展作出突出贡献的组织、个人","省级","不动产权证书；营业执照；居民身份证","有效期内数据"]
[1374,"终止出版物发行经营活动备案","省级","不动产权证书；营业执照；居民身份证","有效期内数据"]
[1375,"外商投资电影院年检","省级","不动产权证书；营业执照；居民身份证","有效期内数据"]
[1376,"社会艺术水平考级活动前的备案","省级","不动产权证书；营业执照；居民身份证","有效期内数据"]
[1377,"从事出版物出租业务备案","省级","不动产权证书；营业执照；居民身份证","有效期内数据"]
[1378,"奖励优秀电影","省级","不动产权证书；营业执照；居民身份证","有效期内数据"]
[1379,"出版物发行单位设立临时零售点开展出版物销售活动备案","省级","不动产权证书；营业执照；居民身份证","有效期内数据"]
[1380,"从事政府购买电影流动放映的备案","省级","不动产权证书；营业执照；居民身份证","有效期内数据"]
[1381,"著作权作品登记","省级","不动产权证书；营业执照；居民身份证","有效期内数据"]
[1382,"演出场所经营单位备案证明载明事项的变更","省级","不动产权证书；营业执照；居民身份证","有效期内数据"]
[1383,"通过互联网等信息网络从事出版物零售业务备案","省级","不动产权证书；营业执照；居民身份证","有效期内数据"]
[1384,"对非物质文化遗产项目保护单位的组织推荐评审认定","省级","不动产权证书；营业执照；居民身份证","有效期内数据"]
[1385,"企业、社会团体、民办非企业等单位退休职工独生子女父母年老奖励扶助","区级","退休证","有效期内数据"]
[1386,"农村部分计划生育家庭奖励扶助（双女户）","区级","社会保险个人权益记录单、社会保险个人参保缴费证明","有效期内数据"]
[1387,"再生育审批","区级","居民身份证；婚姻登记记录证明","有效期内数据"]
[1388,"独生子女死亡家庭扶助金","区级","离婚证","有效期内数据"]
[1389,"独生子女伤残家庭扶助金","区级","离婚证","有效期内数据"]
[1390,"传统医学医术确有专长考核","省级","居民身份证","有效期内数据"]
[1391,"中医医术确有专长人员医师资格考核","省级","居民身份证","有效期内数据"]
[1392,"精神残疾人服药（住院）救助","区级","身份证、残疾人证","有效期内数据"]
[1393,"采购疾控中心疫苗","区县级","事业单位法人证书","有效期内数据"]
[1394,"无用人单位的城镇独生子女父母奖励扶助","省级","退休证","有效期内数据"]
[1395,"药品采购","区县级","辐射安全许可证","有效期内数据"]
[1396,"献血者凭“青岛市无偿献血荣誉卡（证）”（或电子卡）或“山东省无偿献血荣誉证”到医院门诊窗口现场挂号，免交普通门诊诊查费。","区县级","山东省无偿献血荣誉证","有效期内数据"]
[1397,"防疫卫生督查","区县级","涉及饮用水卫生安全产品卫生许可批件","有效期内数据"]
[1398,"采购药品（企业资质留档备查）","区县级","药品生产许可证","有效期内数据"]
[1399,"办理聘书、职称竞聘【卫生健康系统（事业单位、公立医疗机构）使用】","区县级","职称证书（含山东省高级职称证书、山东省中级职称证书、山东省初级职称证书）","有效期内数据"]
[1400,"办理乡医参保补助","区县级","社会保险个人权益记录单、社会保险个人参保缴费证明、医疗保险个人缴费证明","有效期内数据"]
[1401,"传统医学师承出师考核","省级","居民身份证、执业医师证、执业医师资格证","有效期内数据"]
[1402,"医疗机构名称裁定","区县级","居民身份证、医疗机构执业许可证","有效期内数据"]
[1403,"医疗机构等级评审","区县级","居民身份证、医疗机构执业许可证","有效期内数据"]
[1404,"医疗机构开展限制类技术临床应用备案","区县级","居民身份证、医疗机构执业许可证","有效期内数据"]
[1405,"出生医学证明办理","省级","居民身份证","有效期内数据"]
[1406,"法律法规规定需要提供健康合格证明的相关从业人员健康合格证明","省级","居民身份证、健康证明","有效期内数据"]
[1407,"医疗事故争议处理","区县级","居民身份证、医师执业证","有效期内数据"]
[1408,"养老机构内部设置医疗机构备案","国家级","居民身份证、医师执业证","有效期内数据"]
[1409,"中医诊所备案","国家级","居民身份证、医师执业证、营业执照","有效期内数据"]
[1410,"死亡医学证明办理","区县级","居民身份证","有效期内数据"]
[1411,"提供妊娠十四周以上的妇女终止妊娠证明","区县级","居民身份证","有效期内数据"]
[1412,"义诊活动备案","区县级","居民身份证","有效期内数据"]
[1413,"职业病危害项目申报","国家级","居民身份证","有效期内数据"]
[1414,"住院病历查阅","区县级","居民身份证","有效期内数据"]
[1415,"住院病历复制","区县级","居民身份证","有效期内数据"]
[1416,"医疗纠纷行政调解","区县级","居民身份证","有效期内数据"]
[1417,"盲人医疗按摩人员执业备案","区级","居民身份证","有效期内数据"]
[1418,"农村部分计划生育家庭奖励扶助","国家级","离婚证","有效期内数据"]
[1419,"采购医疗器械（企业资质留档备查）","区级","医疗器械经营许可证、第一类医疗器械生产备案凭证、医疗器械生产许可证、医疗器械注册证","有效期内数据"]
[1420,"确有专长的中医医师资格认定","省级","居民身份证","有效期内数据"]
[1421,"医师定期考核","无","居民身份证","有效期内数据"]
[1422,"免疫规划疫苗预防接种异常反应补偿","无","身份证、户口本","有效期内数据"]
[1423,"计划生育手术并发症鉴定","无","居民身份证","有效期内数据"]
[1424,"计划生育家庭特别扶助金","无","身份证、户口本、结婚证","有效期内数据"]
[1425,"城镇其他居民独生子女父母退休养老补助（镇街）","无","身份证、户口本、结婚证","有效期内数据"]
[1426,"发放享受定期抚恤金人员丧葬补助费","区级","居民身份证、火化（殡葬）证明","有效期内数据"]
[1427,"发放定期抚恤金","区级","中华人民共和国残疾军人证、定期抚恤金领取证、伤残人民警察证、残疾消防救援人员证、伤残预备役人员伤残民工证、因公伤残人员证","有效期内数据"]
[1428,"发放烈士褒扬金、发放一次性抚恤金","区级","中华人民共和国烈士证明书、军人因公牺牲证明书、军人病故证明书","有效期内数据"]
[1429,"发放移交政府安置的军队离休退休干部丧葬费","区级","火化（殡葬）证明","有效期内数据"]
[1430,"发放一次性抚恤金","区级","中华人民共和国烈士证明书、军人因公牺牲证明书、军人病故证明书","有效期内数据"]
[1431,"带病回乡退伍军人的认定","省级","居民身份证","有效期内数据"]
[1432,"部分烈士子女的确认","国家","居民身份证","有效期内数据"]
[1433,"部分农村籍退役士兵的确认","区级","居民身份证","有效期内数据"]
[1434,"法律、行政法规规定应当由退役军人事务部门负责伤残抚恤的其他人员评定残疾等级","区级","居民身份证","有效期内数据"]
[1435,"光荣院集中供养审核","区级","居民身份证","有效期内数据"]
[1436,"核发残疾军人康复辅助器具","区级","居民身份证","有效期内数据"]
[1437,"核发移交政府安置的军队退休干部护理费","区级","居民身份证","有效期内数据"]
[1438,"军队（含中国人民武装警察部队）离休、退休干部和退休士官病故一次性抚恤","区级","居民身份证","有效期内数据"]
[1439,"烈士评定","区级","居民身份证","有效期内数据"]
[1440,"烈士遗属、因公牺牲军人遗属、病故军人遗属定期抚恤金的给付","区级","居民身份证","有效期内数据"]
[1441,"烈士遗属、因公牺牲军人遗属、病故军人遗属一次性抚恤金的给付","区级","居民身份证","有效期内数据"]
[1442,"其他因公伤残人员的残疾抚恤金发放","区级","居民身份证","有效期内数据"]
[1443,"伤残人民警察的残疾抚恤金发放","区级","居民身份证","有效期内数据"]
[1444,"伤残预备役人员和民兵民工的残疾抚恤金发放","区级","居民身份证","有效期内数据"]
[1445,"伤残证件换发或补发","区级","居民身份证","有效期内数据"]
[1446,"退出现役残疾军人的残疾抚恤金发放","区级","居民身份证","有效期内数据"]
[1447,"退役军人补办评定残疾等级","区级","居民身份证","有效期内数据"]
[1448,"为抢救和保护国家财产、人民生命财产致残的人员评定残疾等级","区级","居民身份证","有效期内数据"]
[1449,"为维护社会治安同违法犯罪分子进行斗争致残的人员评定残疾等级","区级","居民身份证","有效期内数据"]
[1450,"因参战、参加军事演习、军事训练和执行军事勤务致残的预备役人员、民兵、民工以及其他人员评定残疾等级","区级","居民身份证","有效期内数据"]
[1451,"因战因公负伤时为行政编制的人民警察评定残疾等级","区级","居民身份证","有效期内数据"]
[1452,"在乡老复员军人的确认","省级","居民身份证","有效期内数据"]
[1453,"  依申请政府信息公开","区级","居民身份证","有效期内数据"]
[1454,"宗教临时活动地点审批","省级","居民身份证","有效期内数据"]
[1455,"宗教活动场所成立管理组织备案","省级","居民身份证","有效期内数据"]
[1456,"宗教教职人员备案","省级","居民身份证","有效期内数据"]
[1457,"宗教活动场所登记、终止或者变更登记内容","省级","居民身份证","有效期内数据"]
[1458,"宗教教职人员担任、离任宗教活动场所主要教职的备案","省级","居民身份证","有效期内数据"]
[1459,"对经济普查违法行为举报有功的个人给予奖励 （依申请）","市级","居民身份证","有效期内数据"]
[1460,"对农业普查违法行为举报有功人员给予奖励","市级","居民身份证","有效期内数据"]
[1461,"统计信息咨询","区级","居民身份证","有效期内数据"]
[1462,"对检举统计弄虚作假行为的表彰奖励","市级","居民身份证","有效期内数据"]
[1463,"律师事务所（分所）变更名称","省级","律师事务所分所执业许可证、律师执业证","有效期内数据"]
[1464,"学历公证申请","省级","学位证明、学历证明","有效期内数据"]
[1465,"颁发公职律师工作证","市级","中华人民共和国居民身份证","有效期内数据"]
[1466,"律师执业许可","省级","中华人民共和国居民身份证","有效期内数据"]
[1467,"赡养协议公证申请","省级","结婚证","有效期内数据"]
[1468,"基层法律服务所变更","省级","居民身份证、律师事务所执业许可证","有效期内数据"]
[1469,"司法鉴定人延续登记","省级","司法鉴定人执业证","有效期内数据"]
[1470,"法律援助实施","省级","居民身份证","有效期内数据"]
[1471,"履行行政复议机构职责","省级","营业执照、居民身份证","有效期内数据"]
[1472,"信息公开（即墨区司法局）","区县级","营业执照、居民身份证","有效期内数据"]
[1473,"房屋买卖合同公证申请","省级","不动产权证书","有效期内数据"]
[1474,"夫妻财产约定协议公证申请","省级","结婚证","有效期内数据"]
[1475,"抚养事实公证申请","省级","出生医学证明","有效期内数据"]
[1476,"公证员执业许可","区级","居民身份证","有效期内数据"]
[1477,"婚前财产约定协议公证申请","省级","机动车驾驶证","有效期内数据"]
[1478,"机动车驾驶证公证申请","省级","机动车驾驶证","有效期内数据"]
[1479,"劳动合同公证申请","省级","营业执照","有效期内数据"]
[1480,"知识产权合同公证申请","省级","营业执照","有效期内数据"]
[1481,"建设用地使用权出让合同公证申请","省级","营业执照","有效期内数据"]
[1482,"建设用地使用权转让合同公证申请","省级","营业执照","有效期内数据"]
[1483,"建筑工程合同公证申请","省级","营业执照","有效期内数据"]
[1484,"签名式样公证申请","省级","营业执照","有效期内数据"]
[1485,"亲属关系公证申请","省级","结婚证","有效期内数据"]
[1486,"丧偶未再婚公证申请","省级","结婚证","有效期内数据"]
[1487,"涉及其他不动产的委托公证事项","省级","不动产权证书","有效期内数据"]
[1488,"涉及集体土地上的房屋的委托公证机构申请","省级","不动产登记证明","有效期内数据"]
[1489,"涉及建设用地的委托公证申请","省级","营业执照","有效期内数据"]
[1490,"涉及城青岛市房屋的委托公证申请","省级","不动产权证书","有效期内数据"]
[1491,"事实收养公证申请","省级","出生医学证明","有效期内数据"]
[1492,"收入状况公证申请","省级","居民身份证","有效期内数据"]
[1493,"死亡户籍注销公证申请","省级","火化（殡葬）证明","有效期内数据"]
[1494,"土地使用权出让招拍挂公证申请","省级","营业执照","有效期内数据"]
[1495,"文本相符公证申请","省级","营业执照","有效期内数据"]
[1496,"文书上的签名（印鉴）公证申请","省级","营业执照","有效期内数据"]
[1497,"污染防治协议公证申请","省级","居民身份证","有效期内数据"]
[1498,"无犯罪记录公证申请","省级","居民身份证","有效期内数据"]
[1499,"小额继承公证申请","省级","居民身份证","有效期内数据"]
[1500,"协议监护公证申请","省级","居民身份证","有效期内数据"]
[1501,"宣告死亡公证申请","省级","火化（殡葬）证明","有效期内数据"]
[1502,"遗产分割协议公证申请","省级","居民身份证","有效期内数据"]
[1503,"遗赠扶养协议公证申请","省级","居民身份证","有效期内数据"]
[1504,"遗嘱继承（接受遗赠）公证申请","省级","居民身份证","有效期内数据"]
[1505,"遗嘱的变更和撤回公证申请","省级","居民身份证","有效期内数据"]
[1506,"已婚公证申请","省级","结婚证","有效期内数据"]
[1507,"印鉴式样公证申请","省级","居民身份证","有效期内数据"]
[1508,"有犯罪记录公证申请","省级","居民身份证","有效期内数据"]
[1509,"又名、别名、译名、笔名、网名等公证申请","省级","居民身份证","有效期内数据"]
[1510,"招标、投标公证申请","省级","营业执照","有效期内数据"]
[1511,"正常死亡公证申请","省级","火化（殡葬）证明","有效期内数据"]
[1512,"证书（执照）公证申请","省级","营业执照","有效期内数据"]
[1513,"住所地（居住地）公证申请","省级","居民身份证","有效期内数据"]
[1514,"司法鉴定人执业登记","省级","中华人民共和国居民身份证","有效期内数据"]
[1515,"基层法律服务工作者注销许可","市级","居民身份证","有效期内数据"]
[1516,"基层法律服务工作者执业许可","市级","居民身份证","有效期内数据"]
[1517,"对基层法律服务所注销的审核","市级","身份证","有效期内数据"]
[1518,"涉税专业服务协议信息采集","市级","居民身份证","有效期内数据"]
[1519,"涉税专业服务协议信息变更及终止","市级","居民身份证","有效期内数据"]
[1520,"涉税专业服务业务信息采集","市级","居民身份证","有效期内数据"]
[1521,"财务报表数据转换","市级","居民身份证","有效期内数据"]
[1522,"发票防伪用品领购（税控公司）","市级","居民身份证","有效期内数据"]
[1523,"发票防伪用品核销（税控公司）","市级","居民身份证","有效期内数据"]
[1524,"退税代理机构结算核准","市级","居民身份证","有效期内数据"]
[1525,"延（分）期缴纳罚款申请审批","市级","居民身份证","有效期内数据"]
[1526,"财务报表报送与信息采集（企业会计准则）","市级","居民身份证","有效期内数据"]
[1527,"财务报表报送与信息采集（小企业会计准则）","市级","居民身份证","有效期内数据"]
[1528,"财务报表报送与信息采集（企业会计制度）","市级","居民身份证","有效期内数据"]
[1529,"财务报表报送与信息采集（政府会计准则制度）","市级","居民身份证","有效期内数据"]
[1530,"财务报表报送与信息采集（其他会计制度）","市级","居民身份证","有效期内数据"]
[1531,"企业集团合并财务报表报送与信息采集","市级","居民身份证","有效期内数据"]
[1532,"货物运输业小规模纳税人异地代开增值税专用发票备案","市级","居民身份证","有效期内数据"]
[1533,"发票遗失、损毁报告","市级","居民身份证","有效期内数据"]
[1534,"发票票种核定","市级","居民身份证","有效期内数据"]
[1535,"发票验（交）旧","市级","居民身份证","有效期内数据"]
[1536,"红字增值税专用发票开具及作废","市级","居民身份证","有效期内数据"]
[1537,"确定发票印制企业","市级","居民身份证","有效期内数据"]
[1538,"增值税专用发票（增值税税控系统）最高开票限额审批","市级","居民身份证","有效期内数据"]
[1539,"发票领用","市级","居民身份证","有效期内数据"]
[1540,"代开增值税专用发票","市级","居民身份证","有效期内数据"]
[1541,"代开增值税普通发票","市级","居民身份证","有效期内数据"]
[1542,"代开发票作废","市级","居民身份证","有效期内数据"]
[1543,"发票缴销","市级","居民身份证","有效期内数据"]
[1544,"综合所得个人所得税代扣代缴（预扣预缴）申报","市级","居民身份证","有效期内数据"]
[1545,"扣缴义务人集中办理综合所得个人所得税汇算清缴申报","市级","居民身份证","有效期内数据"]
[1546,"综合所得个人所得税年度自行申报","市级","居民身份证","有效期内数据"]
[1547,"综合所得个人所得税年度汇算委托代理申报","市级","居民身份证","有效期内数据"]
[1548,"集中办理综合所得个人所得税汇算清缴缴款","市级","居民身份证","有效期内数据"]
[1549,"赔偿申请撤回","市级","居民身份证","有效期内数据"]
[1550,"个人所得税扣缴手续费申请","市级","居民身份证","有效期内数据"]
[1551,"开具个人所得税完税记录","市级","居民身份证","有效期内数据"]
[1552,"个人所得税异议申诉（“被收入”“被任职”“被财务”）","市级","居民身份证","有效期内数据"]
[1553,"纳税人（扣缴义务人，含自然人）身份信息报告","市级","居民身份证","有效期内数据"]
[1554,"出口退（免）税企业备案信息报告","市级","居民身份证","有效期内数据"]
[1555,"退税商店资格信息报告","市级","居民身份证","有效期内数据"]
[1556,"出口企业放弃退（免）税权报告","市级","居民身份证","有效期内数据"]
[1557,"存款账户账号报告","市级","居民身份证","有效期内数据"]
[1558,"财务会计制度及核算软件备案报告","市级","居民身份证","有效期内数据"]
[1559,"综合税源信息报告","市级","居民身份证","有效期内数据"]
[1560,"增量房房源信息报告","市级","居民身份证","有效期内数据"]
[1561,"水资源税税源信息报告","市级","居民身份证","有效期内数据"]
[1562,"税务建筑业项目报告","市级","居民身份证","有效期内数据"]
[1563,"税务注销建筑业项目报告","市级","居民身份证","有效期内数据"]
[1564,"税务不动产项目报告","市级","居民身份证","有效期内数据"]
[1565,"税务注销不动产项目报告","市级","居民身份证","有效期内数据"]
[1566,"房地产税收一体化信息报告","市级","居民身份证","有效期内数据"]
[1567,"跨区域涉税事项报告","市级","居民身份证","有效期内数据"]
[1568,"涉税专业服务机构（人员）基本信息采集","市级","居民身份证","有效期内数据"]
[1569,"文化事业建设费缴费信息报告","市级","居民身份证","有效期内数据"]
[1570,"企业所得税汇总纳税信息报告","市级","居民身份证","有效期内数据"]
[1571,"关联业务往来年度报告申报","市级","居民身份证","有效期内数据"]
[1572,"扣缴企业所得税报告","市级","居民身份证","有效期内数据"]
[1573,"印花税票代售报告","市级","居民身份证","有效期内数据"]
[1574,"委托代征证券交易印花税报告","市级","居民身份证","有效期内数据"]
[1575,"委托代征报告","市级","居民身份证","有效期内数据"]
[1576,"欠税人处置不动产或者大额资产报告","市级","居民身份证","有效期内数据"]
[1577,"合并分立报告","市级","居民身份证","有效期内数据"]
[1578,"跨境应税行为免征增值税报告","市级","居民身份证","有效期内数据"]
[1579,"核定征收企业所得税重大变化报告","市级","居民身份证","有效期内数据"]
[1580,"增值税、消费税汇总纳税报告","市级","居民身份证","有效期内数据"]
[1581,"非居民企业间接转让财产事项报告","市级","居民身份证","有效期内数据"]
[1582,"出口已使用过设备免退税申报核准","市级","居民身份证","有效期内数据"]
[1583,"航天发射业务免退税申报核准","市级","居民身份证","有效期内数据"]
[1584,"生产企业出口非自产货物消费税退税申报核准","市级","居民身份证","有效期内数据"]
[1585,"出口货物劳务免抵退税申报核准","市级","居民身份证","有效期内数据"]
[1586,"增值税零税率应税服务免抵退税申报核准","市级","居民身份证","有效期内数据"]
[1587,"生产企业进料加工业务免抵退税核销","市级","居民身份证","有效期内数据"]
[1588,"出口退（免）税凭证信息查询申请","市级","居民身份证","有效期内数据"]
[1589,"出口退税资料报送与信息采集","市级","居民身份证","有效期内数据"]
[1590,"纳税信用补评","市级","居民身份证","有效期内数据"]
[1591,"纳税信用复评","市级","居民身份证","有效期内数据"]
[1592,"对采取实际利润额预缴以外的其他企业所得税预缴方式的核定","市级","居民身份证","有效期内数据"]
[1593,"变更税务行政许可","市级","居民身份证","有效期内数据"]
[1594,"税收减免核准","市级","居民身份证","有效期内数据"]
[1595,"定期定额户申请核定及调整定额","市级","居民身份证","有效期内数据"]
[1596,"农产品增值税进项税额扣除标准核定","市级","居民身份证","有效期内数据"]
[1597,"纳税信用修复","市级","居民身份证","有效期内数据"]
[1598,"入库减免退抵税","市级","居民身份证","有效期内数据"]
[1599,"汇算清缴结算多缴退抵税","市级","居民身份证","有效期内数据"]
[1600,"车辆购置税退税","市级","居民身份证","有效期内数据"]
[1601,"车船税退抵税","市级","居民身份证","有效期内数据"]
[1602,"增值税期末留抵税额退税","市级","居民身份证","有效期内数据"]
[1603,"石脑油、燃料油消费税退税","市级","居民身份证","有效期内数据"]
[1604,"逾期增值税抵扣凭证抵扣管理","市级","居民身份证","有效期内数据"]
[1605,"未按期申报抵扣增值税扣税凭证抵扣管理","市级","居民身份证","有效期内数据"]
[1606,"出口货物劳务免退税申报核准","市级","居民身份证","有效期内数据"]
[1607,"外贸企业外购应税服务免退税申报核准","市级","居民身份证","有效期内数据"]
[1608,"外贸综合服务企业代办退税申报核准","市级","居民身份证","有效期内数据"]
[1609,"购进自用货物免退税申报核准","市级","居民身份证","有效期内数据"]
[1610,"一照一码户信息确认","市级","居民身份证","有效期内数据"]
[1611,"个体工商户信息确认","市级","居民身份证","有效期内数据"]
[1612,"两证整合个体工商户信息变更","市级","居民身份证","有效期内数据"]
[1613,"一照一码户信息变更","市级","居民身份证","有效期内数据"]
[1614,"境内机构和个人发包工程作业或劳务项目备案 ","市级","居民身份证","有效期内数据"]
[1615,"开具个人所得税纳税记录","市级","居民身份证","有效期内数据"]
[1616,"欠税人处置不动产或大额资产报告","市级","居民身份证","有效期内数据"]
[1617,"涉税专业服务机构（人员）基本信息报送 ","市级","居民身份证","有效期内数据"]
[1618,"增值税一般纳税人登记 ","市级","居民身份证","有效期内数据"]
[1619,"自然人自主报告身份信息","市级","居民身份证","有效期内数据"]
[1620,"存根联数据采集","市级","居民身份证","有效期内数据"]
[1621,"纳税服务投诉处","市级","居民身份证","有效期内数据"]
[1622,"社会公众涉税公开信息查询 ","市级","居民身份证","有效期内数据"]
[1623,"纳税信用复核","市级","居民身份证","有效期内数据"]
[1624,"出口退（免）税分类管理评定申请","市级","居民身份证","有效期内数据"]
[1625,"非正常户解除","市级","居民身份证","有效期内数据"]
[1626,"涉税专业服务机构（人员）信用复核","市级","居民身份证","有效期内数据"]
[1627,"中国税收居民身份证明的开具","市级","居民身份证","有效期内数据"]
[1628,"税收统计调查数据采集","市级","居民身份证","有效期内数据"]
[1629,"税务证件增补发 ","市级","居民身份证","有效期内数据"]
[1630,"发票真伪鉴定","市级","居民身份证","有效期内数据"]
[1631,"临时开票权限办理","市级","居民身份证","有效期内数据"]
[1632,"合伙制创业投资企业单一投资基金核算方式报告","市级","居民身份证","有效期内数据"]
[1633,"同期资料报告","市级","居民身份证","有效期内数据"]
[1634,"增值税税控系统专用设备注销发行","市级","居民身份证","有效期内数据"]
[1635,"服务贸易等项目对外支付税务备案","市级","居民身份证","有效期内数据"]
[1636,"涉税专业服务协议要素信息报送","市级","居民身份证","有效期内数据"]
[1637,"中国居民（国民）申请启动税务相互协商程序","市级","居民身份证","有效期内数据"]
[1638,"其他出口退（免）税备案","市级","居民身份证","有效期内数据"]
[1639,"纳税人涉税信息查询","市级","居民身份证","有效期内数据"]
[1640,"个人所得税递延纳税报告","市级","居民身份证","有效期内数据"]
[1641,"纳税网络咨询","市级","居民身份证","有效期内数据"]
[1642,"个人所得税分期缴纳报告","市级","居民身份证","有效期内数据"]
[1643,"财产和行为税税源信息报告","市级","居民身份证","有效期内数据"]
[1644,"跨区域涉税事项信息反馈","市级","居民身份证","有效期内数据"]
[1645,"注销扣缴税款登记","市级","居民身份证","有效期内数据"]
[1646,"银税三方（委托）划缴协议","市级","居民身份证","有效期内数据"]
[1647,"纳税面对面咨询","市级","居民身份证","有效期内数据"]
[1648,"纳税人合并分立情况报告","市级","居民身份证","有效期内数据"]
[1649,"纳税人（扣缴义务人）身份信息报告","市级","居民身份证","有效期内数据"]
[1650,"开具无欠税证明","市级","居民身份证","有效期内数据"]
[1651,"非居民企业股权转让适用特殊性税务处理的备案","市级","居民身份证","有效期内数据"]
[1652,"选择按小规模纳税人纳税的情况说明","市级","居民身份证","有效期内数据"]
[1653,"定期定额户复业登记 ","市级","居民身份证","有效期内数据"]
[1654,"科技成果转化暂不征收个人所得税备案","市级","居民身份证","有效期内数据"]
[1655,"注销税务登记（适用于“一照一码”“两证整合”以外的纳税人）","市级","居民身份证","有效期内数据"]
[1656,"定期定额户停业登记","市级","居民身份证","有效期内数据"]
[1657,"涉税专业服务年度报告报送","市级","居民身份证","有效期内数据"]
[1658,"增值税税控系统专用设备变更发行","市级","居民身份证","有效期内数据"]
[1659,"境外注册中资控股企业居民身份认定申请","市级","居民身份证","有效期内数据"]
[1660,"开具税收完税证明","市级","居民身份证","有效期内数据"]
[1661,"第三方涉税保密信息查询","市级","居民身份证","有效期内数据"]
[1662,"个人所得税抵扣情况报告","市级","居民身份证","有效期内数据"]
[1663,"申报错误更正","市级","居民身份证","有效期内数据"]
[1664,"软件产品增值税即征即退进项分摊方式资料报送与信息报告","市级","居民身份证","有效期内数据"]
[1665,"财务会计报告报送","市级","居民身份证","有效期内数据"]
[1666,"税务注销即时办理","市级","居民身份证","有效期内数据"]
[1667,"软件和集成电路产业企业所得税优惠事项资料报告","市级","居民身份证","有效期内数据"]
[1668,"纳税电话咨询","市级","居民身份证","有效期内数据"]
[1669,"增值税税控系统专用设备初始发行 ","市级","居民身份证","有效期内数据"]
[1670,"解除相关人员关联关系","市级","居民身份证","有效期内数据"]
[1671,"跨区域涉税事项报验","市级","居民身份证","有效期内数据"]
[1672,"涉税专业服务专项报告报送 ","市级","居民身份证","有效期内数据"]
[1673,"红字增值税专用发票开具申请","市级","居民身份证","有效期内数据"]
[1674,"转开印花税票销售凭证","市级","居民身份证","有效期内数据"]
[1675,"纳税服务投诉处理","市级","居民身份证","有效期内数据"]
[1676,"增值税防伪税控系统最高开票限额审批","市级","居民身份证","有效期内数据"]
[1677,"水利基建项目重大设计变更初步设计文件审批","市级","居民身份证、营业执照","有效期内数据"]
[1678,"水土保持补偿费核定","区级","居民身份证、营业执照","有效期内数据"]
[1679,"水事纠纷裁决","市级","居民身份证、营业执照","有效期内数据"]
[1680,"上报和下达调整取用水计划","市级","居民身份证、营业执照","有效期内数据"]
[1681,"对水库大坝（水闸）安全鉴定意见的审定","市级","居民身份证、营业执照","有效期内数据"]
[1682,"临时应急取（排）水备案","市级","居民身份证、营业执照、临时身份证明","有效期内数据"]
[1683,"水利工程开工备案","市级","居民身份证、营业执照","有效期内数据"]
[1684,"水利工程验收备案","市级","居民身份证、营业执照","有效期内数据"]
[1685,"水利工程质量事故调查、调查结果批准及核备","市级","居民身份证、营业执照","有效期内数据"]
[1686,"临时应急取水审批","市级","居民身份证、营业执照","有效期内数据"]
[1687,"中央财政水利发展资金水土保持工程实施方案审批","市级","居民身份证、营业执照","有效期内数据"]
[1688,"水利工程建设项目验收-水土保持工程建设项目验收","市级","居民身份证、营业执照","有效期内数据"]
[1689,"水利工程建设项目验收-水利基本建设项目验收","市级","居民身份证、营业执照","有效期内数据"]
[1690,"乡（镇）集中供水备案","市级","居民身份证、营业执照","有效期内数据"]
[1691,"河道管理范围内有关活动（不含河道采砂）审批","市级","居民身份证、营业执照","有效期内数据"]
[1692,"利用堤顶、戗台兼做公路审批","市级","居民身份证、营业执照","有效期内数据"]
[1693,"坝顶兼做公路审批","市级","居民身份证、营业执照","有效期内数据"]
[1694,"在大坝管理和保护范围内修建码头、渔塘许可","市级","居民身份证、营业执照","有效期内数据"]
[1695,"水利工程安全生产措施方案备案","市级","居民身份证、营业执照","有效期内数据"]
[1696,"水利工程招标备案","市级","居民身份证、营业执照","有效期内数据"]
[1697,"水利基建项目初步设计文件审批（新申请）","市级","居民身份证、营业执照","有效期内数据"]
[1698,"部门信息公开（水利局）","市级","居民身份证、营业执照","有效期内数据"]
[1699,"生产建设项目水土保持设施自主验收报备","市级","居民身份证、营业执照","有效期内数据"]
[1700,"﻿坝顶兼做公路审批（县级权限）","市级","社会信用代码证复印件、身份证明","有效期内数据"]
[1701,"﻿大坝管理和保护范围内修建码头、渔塘许可（县级权限）","市级","﻿法定身份证明文件","有效期内数据"]
[1702,"河道管理范围内特定活动审批（县级权限）","市级","居民身份证","有效期内数据"]
[1703,"﻿水利基建项目初步设计文件审批（县级权限）","市级","无用证材料","有效期内数据"]
[1704,"市场主体歇业备案（市场监督管理局）","市级","居民身份证","有效期内数据"]
[1705,"公司设立登记（市场监督管理局）","市级","居民身份证、营业执照","有效期内数据"]
[1706,"公司变更登记（市场监督管理局）","市级","居民身份证、营业执照","有效期内数据"]
[1707,"公司备案（市场监督管理局）","市级","居民身份证","有效期内数据"]
[1708,"公司注销登记（市场监督管理局）","市级","营业执照","有效期内数据"]
[1709,"撤销变更登记（市场监督管理局）","市级","营业执照","有效期内数据"]
[1710,"分公司设立登记（市场监督管理局）","市级","居民身份证、营业执照","有效期内数据"]
[1711,"分公司变更登记（备案）（市场监督管理局）","市级","居民身份证、营业执照","有效期内数据"]
[1712,"分公司注销登记（市场监督管理局）","市级","营业执照","有效期内数据"]
[1713,"因公司合并（分立）申请设立、变更或注销登记（市场监督管理局）","市级","营业执照","有效期内数据"]
[1714,"因公司的股东发生合并（分立），公司申请变更登记（市场监督管理局）","市级","营业执照","有效期内数据"]
[1715,"合伙企业设立登记（市场监督管理局）","市级","居民身份证、营业执照","有效期内数据"]
[1716,"合伙企业变更登记（市场监督管理局）","市级","居民身份证、营业执照","有效期内数据"]
[1717,"合伙企业备案（市场监督管理局）","市级","居民身份证","有效期内数据"]
[1718,"合伙企业注销登记（市场监督管理局）","市级","营业执照","有效期内数据"]
[1719,"合伙企业分支机构设立登记（市场监督管理局）","市级","居民身份证、营业执照","有效期内数据"]
[1720,"合伙企业分支机构变更登记（备案）（市场监督管理局）","市级","居民身份证、营业执照","有效期内数据"]
[1721,"合伙企业分支机构注销登记（市场监督管理局）","市级","营业执照","有效期内数据"]
[1722,"股权出质设立登记（市场监督管理局）","市级","居民身份证、营业执照","有效期内数据"]
[1723,"股权出质变更登记(市场监督管理局)","市级","居民身份证、营业执照","有效期内数据"]
[1724,"股权出质注销/撤销登记（市场监督管理局）","市级","营业执照","有效期内数据"]
[1725,"企业迁移调档(市场监督管理局)","市级","营业执照","有效期内数据"]
[1726,"申请增加、减少证照(市场监督管理局)","市级","营业执照","有效期内数据"]
[1727,"证照遗失补领、换发申请（市场监督管理局）","市级","营业执照","有效期内数据"]
[1728,"特种设备使用登记（报废）特种设备使用登记（报废）","市级","居民身份证、营业执照","有效期内数据"]
[1729,"特种设备使用登记（停用）","市级","居民身份证、营业执照","有效期内数据"]
[1730,"特种设备使用登记（达到设计使用年限继续使用的变更）","市级","居民身份证、营业执照","有效期内数据"]
[1731,"特种设备使用登记（更名变更）","市级","居民身份证、营业执照","有效期内数据"]
[1732,"特种设备使用登记（单位变更）","市级","居民身份证、营业执照","有效期内数据"]
[1733,"特种设备使用登记（跨登记机关行政区域移装变更）","市级","居民身份证、营业执照","有效期内数据"]
[1734,"特种设备使用登记（在登记机关行政区域内移装变更）","市级","居民身份证、营业执照","有效期内数据"]
[1735,"特种设备使用登记（改造变更）","市级","居民身份证、营业执照","有效期内数据"]
[1736,"特种设备使用登记（按单位办理）","市级","居民身份证、营业执照","有效期内数据"]
[1737,"特种设备使用登记（按台套办理）","市级","居民身份证、营业执照","有效期内数据"]
[1738,"计量纠纷调解","区县级","营业执照","有效期内数据"]
[1739,"政府信息公开（金融监管）","县级","居民身份证","有效期内数据"]
[1740,"药品违法行为举报奖励","区县级","居民身份证","有效期内数据"]
[1741,"特种设备使用登记（设区的市级权限）申请变更","省级","居民身份证","有效期内数据"]
[1742,"特种设备安全管理和作业人员资格认定（县级权限）补领证书","省级","居民身份证","有效期内数据"]
[1743,"科研和教学用毒性药品购买审批（县级）","省级","学校或科研用单位资质","有效期内数据"]
[1744,"特种设备安全管理和作业人员资格认定（县级权限）有效期届满申请延续","省级","居民身份证","有效期内数据"]
[1745,"特种设备安全管理和作业人员资格认定（县级权限）首次申请","省级","居民身份证","有效期内数据"]
[1746,"特种设备使用登记（设区的市级权限）申请扩项","省级","居民身份证","有效期内数据"]
[1747,"特种设备使用登记（设区的市级权限）首次申请","省级","居民身份证","有效期内数据"]
[1748,"特种设备使用登记（设区的市级权限）有效期届满申请延续","省级","居民身份证","有效期内数据"]
[1749,"生产、销售、使用放射性同位素和射线装置的许可-颁发(Ⅳ类、Ⅴ类放射源，Ⅱ类、Ⅲ类射线装置，丙级非密封放射性物质工作场所）","市级","营业执照、学历证明","有效期内数据"]
[1750,"生产、销售、使用放射性同位素和射线装置的许可-变更(Ⅳ类、Ⅴ类放射源，Ⅱ类、Ⅲ类射线装置，丙级非密封放射性物质工作场所）","市级","营业执照","有效期内数据"]
[1751,"消耗臭氧层物质经营活动备案","国家级","身份证、营业执照","有效期内数据"]
[1752,"在江河、湖泊新建、改建、扩建排污口的审批","市级","身份证","有效期内数据"]
[1753,"拆除或者闲置污染防治设施审批","市级","身份证、营业执照","有效期内数据"]
[1754,"对土壤污染重点监管单位拆除活动污染防治方案备案","省级","营业执照","有效期内数据"]
[1755,"对自愿实施清洁生产审核的单位进行认定","市级","身份证、营业执照","有效期内数据"]
[1756,"辐射类项目环境影响评价文件审批（环境影响报告表）","市级","身份证、营业执照","有效期内数据"]
[1757,"海洋工程建设项目环保设施竣工验收","市级","身份证、营业执照","有效期内数据"]
[1758,"海洋工程建设项目环境影响报告表核准","市级","身份证、营业执照","有效期内数据"]
[1759,"海洋工程建设项目环境影响报告书核准","市级","身份证、营业执照","有效期内数据"]
[1760,"环境影响登记表备案","国家级","营业执照","有效期内数据"]
[1761,"建设项目环境影响登记表备案","国家级","营业执照","有效期内数据"]
[1762,"建设项目环境影响评价审批(环境影响报告表)","市级","营业执照","有效期内数据"]
[1763,"建设项目环境影响评价审批(环境影响报告书)","市级","营业执照","有效期内数据"]
[1764,"排污许可证变更","国家级","身份证、营业执照","有效期内数据"]
[1765,"排污许可证核发","国家级","身份证、营业执照","有效期内数据"]
[1766,"排污许可证延续","国家级","身份证、营业执照","有效期内数据"]
[1767,"企业事业单位突发环境事件应急预案备案","国家级","身份证","有效期内数据"]
[1768,"生产、销售、使用放射性同位素和射线装置的许可-延续(Ⅳ类、Ⅴ类放射源，Ⅱ类、Ⅲ类射线装置，丙级非密封放射性物质工作场所）","市级","身份证、营业执照","有效期内数据"]
[1769,"生产、销售、使用放射性同位素和射线装置的许可-注销(Ⅳ类、Ⅴ类放射源，Ⅱ类、Ⅲ类射线装置，丙级非密封放射性物质工作场所）","市级","身份证、营业执照","有效期内数据"]
[1770,"危险废物管理计划备案","市级","营业执照","有效期内数据"]
[1771,"危险废物经营许可证变更","市级","营业执照","有效期内数据"]
[1772,"危险废物经营许可证换证","市级","营业执照","有效期内数据"]
[1773,"危险废物经营许可证申请","市级","营业执照","有效期内数据"]
[1774,"危险废物经营许可证注销","市级","营业执照","有效期内数据"]
[1775," 危险废物申报备案","市级","营业执照","有效期内数据"]
[1776,"污染土壤转运计划备案","市级","营业执照","有效期内数据"]
[1777,"畜禽养殖场、养殖小区畜禽养殖品种、规模以及畜禽养殖废弃物的产生、排放和综合利用等情况备案 ","市级","营业执照","有效期内数据"]
[1778," 夜间产生环境噪声污染的连续建筑施工作业许可 ","市级","身份证、营业执照","有效期内数据"]
[1779,"一般建设项目环境影响评价审批（县级权限）","市级","身份证","有效期内数据"]
[1780,"海洋工程建设项目环境影响评价审批（县级权限）","市级","身份证","有效期内数据"]
[1781,"核与辐射类建设项目环境影响评价审批（县级权限）","市级","身份证","有效期内数据"]
[1782,"海洋工程建设项目环境保护设施竣工验收（县级权限）","市级","身份证","有效期内数据"]
[1783,"江河、湖泊新建排污口审批（县级权限）","市级","身份证","有效期内数据"]
[1784,"江河、湖泊改建排污口审批（县级权限）","市级","身份证","有效期内数据"]
[1785,"江河、湖泊扩大排污口审批（县级权限）","市级","身份证","有效期内数据"]
[1786,"拆除或闲置海洋工程环境保护设施审批（县级权限）","市级","身份证","有效期内数据"]
[1787,"申请变更法人名称、法定代表人、住所","市级","营业执照、危险废物经营许可证","有效期内数据"]
[1788,"申请延续危险废物收集经营许可证","市级","营业执照、危险废物经营许可证","有效期内数据"]
[1789,"重新申请领取危险废物收集经营许可证","市级","营业执照","有效期内数据"]
[1790,"申请领取危险废物收集经营许可证","市级","营业执照","有效期内数据"]
[1791,"放射性核素排放许可（县级权限）","市级","身份证","有效期内数据"]
[1792,"关闭、闲置、拆除城市环境卫生设施许可首次申请","市级","身份证、营业执照","有效期内数据"]
[1793,"涉外劳务纠纷投诉举报处置","区级","身份证","有效期内数据"]
[1794,"单用途商业预付卡其他发卡企业（集团发卡企业、品牌发卡企业、规模发卡企业除外）备案","商务部","企业法人营业执照副本","有效期内数据"]
[1795,"相关商务举报投诉服务","区级","身份证","有效期内数据"]
[1796,"洗染业经营者备案（新办）","市级","身份证","有效期内数据"]
[1797,"洗染业经营者备案（注销）","市级","身份证","有效期内数据"]
[1798,"洗染业经营者备案（补发）","市级","身份证","有效期内数据"]
[1799,"洗染业经营者备案（变更）","市级","身份证","有效期内数据"]
[1800,"自由类技术进出口合同登记","商务部","签约双方法律地位的证明文件","有效期内数据"]
[1801,"软件出口合同登记","商务部","营业执照","有效期内数据"]
[1802,"再生资源经营者备案","商务部","身份证","有效期内数据"]
[1803,"二手车交易市场经营者和二手车经营主体备案","商务部","身份证","有效期内数据"]
[1804,"服务外包信息管理","商务部","身份证","有效期内数据"]
[1805,"女性领取失业保险金人员生育补助申领服务","县级","居民身份证","有效期内数据"]
[1806,"居民养老保险信息变更（镇、街实施）","镇、街","身份证","有效期内数据"]
[1807,"居民养老保险注销登记及一次性待遇核定支付（镇、街实施）","镇、街","身份证","有效期内数据"]
[1808,"居民养老保险待遇核定支付（镇、街实施）","镇、街","身份证","有效期内数据"]
[1809,"招聘登记（镇、街实施）","市级","身份证","有效期内数据"]
[1810,"“双零家庭”认定","省级","中华人民共和国居民身份证或社保卡","有效期内数据"]
[1811,"招聘派遣制工作人员","县级","劳务派遣经营许可证","有效期内数据"]
[1812,"高级职称评审【（事业单位、公立医疗机构、民营医疗机构）使用】。","省级","职称证书（含山东省高级职称证书、山东省中级职称证书、山东省初级职称证书）、社会保险个人权益记录单、社会保险个人参保缴费证明","有效期内数据"]
[1813,"卫生类资格考试报名审验（单位统一报名使用）","国家级","职称证书（含山东省高级职称证书、山东省中级职称证书、山东省初级职称证书）","有效期内数据"]
[1814,"招聘工作人员","县级","职称证书（含山东省高级职称证书、山东省中级职称证书、山东省初级职称证书）","有效期内数据"]
[1815,"机关事业单位养老保险关系转入","省级","居民身份证","有效期内数据"]
[1816,"居民基本养老保险关系转续","省级","居民身份证","有效期内数据"]
[1817,"企业养老保险关系转入","省级","居民身份证","有效期内数据"]
[1818,"退役军人养老保险关系转入","省级","居民身份证","有效期内数据"]
[1819,"社会保障卡领取、补换、临时挂失、密码重置","省级","居民身份证","有效期内数据"]
[1820,"参保人员因病、特殊工种提前退休领取基本养老保险待遇资格确认","省级","居民身份证","有效期内数据"]
[1821,"待遇发放账号信息维护","省级","居民身份证","有效期内数据"]
[1822,"待遇领取证明查询打印","省级","居民身份证","有效期内数据"]
[1823,"个人参保缴费证明查询打印","省级","居民身份证","有效期内数据"]
[1824,"个人权益记录查询打印","省级","居民身份证","有效期内数据"]
[1825,"个体工商户、灵活就业人员基本养老保险参保登记","省级","居民身份证","有效期内数据"]
[1826,"居民基本信息变更","省级","居民身份证","有效期内数据"]
[1827,"居民养老保险参保登记","省级","居民身份证","有效期内数据"]
[1828,"企业职工参保登记","省级","营业执照","有效期内数据"]
[1829,"养老保险待遇终止拨付","省级","居民身份证","有效期内数据"]
[1830,"职工基本信息变更","省级","居民身份证","有效期内数据"]
[1831,"参保人员延长缴费申请","省级","居民身份证","有效期内数据"]
[1832,"军转干退休资格申请","省级","居民身份证","有效期内数据"]
[1833,"事业转企退休资格申请","省级","居民身份证","有效期内数据"]
[1834,"企业特殊工种退休资格申请","省级","居民身份证","有效期内数据"]
[1835,"企业职工养老待遇申请","省级","居民身份证","有效期内数据"]
[1836,"青年见习补贴申领","市级","居民身份证、营业执照","有效期内数据"]
[1837,"流动人员人事档案接收","省级","居民身份证","有效期内数据"]
[1838,"依据档案记载出具相关证明","省级","居民身份证","有效期内数据"]
[1839,"参保人员失业保险关系迁移证明打印","省级","居民身份证","有效期内数据"]
[1840,"单位就业转失业人员失业登记","省级","居民身份证","有效期内数据"]
[1841,"个体经营或灵活就业人员失业登记","省级","居民身份证","有效期内数据"]
[1842,"失业保险金申领","省级","居民身份证","有效期内数据"]
[1843,"机关事业单位工作人员养老保险个人账户一次性待遇申领","省级","死亡医学证明、户口注销证明(户籍注销证明)","有效期内数据"]
[1844,"单位就业登记","省级","居民身份证、营业执照","有效期内数据"]
[1845,"个体经营或灵活就业人员就业登记","省级","居民身份证","有效期内数据"]
[1846,"就业困难人员认定","省级","居民身份证、社会保障卡、居住证；就业创业证(已取消）","有效期内数据"]
[1847,"录用未成年工登记备案","市级","营业执照","有效期内数据"]
[1848,"企业新型学徒制培训补贴申领","市级","职业资格证书（职业技能等级证书）","有效期内数据"]
[1849,"劳动用工备案新增、变更、终止、解除、续订","市级","营业执照","有效期内数据"]
[1850,"工伤保险待遇终止拨付","省级","居民身份证","有效期内数据"]
[1851,"工伤保险待遇恢复拨付","省级","居民身份证","有效期内数据"]
[1852,"工伤保险待遇暂停拨付","省级","居民身份证","有效期内数据"]
[1853,"工伤保险待遇发放信息维护","省级","居民身份证","有效期内数据"]
[1854,"工程建设项目办理工伤保险参保登记","省级","营业执照","有效期内数据"]
[1855,"工伤职工转诊转院就医备案","省级","居民身份证","有效期内数据"]
[1856,"工伤职工异地居住就医备案","省级","居民身份证","有效期内数据"]
[1857,"工伤辅助器具配置（更换）费用核定支付","省级","居民身份证","有效期内数据"]
[1858,"异地工伤医疗待遇核定支付（含交通食宿费核定支付）","省级","居民身份证","有效期内数据"]
[1859,"异地工伤康复待遇核定支付（含交通食宿费核定支付）","省级","居民身份证","有效期内数据"]
[1860,"工伤康复待遇核定支付（含住院伙食补助费核定支付）","省级","居民身份证","有效期内数据"]
[1861,"工伤医疗待遇核定支付（含住院伙食补助费核定支付）","省级","居民身份证","有效期内数据"]
[1862,"工伤认定","省级","居民身份证","有效期内数据"]
[1863,"求职登记","省级","居民身份证","有效期内数据"]
[1864,"企业养老保险待遇核定支付","省级","居民身份证","有效期内数据"]
[1865,"居民养老保险注销登记及一次性待遇核定支付","省级","居民身份证","有效期内数据"]
[1866,"机关事业单位养老保险待遇恢复拨付","省级","居民身份证","有效期内数据"]
[1867,"机关事业单位养老保险待遇核定支付","省级","居民身份证","有效期内数据"]
[1868,"居民基本养老保险关系转续申请"," 省级","居民身份证","有效期内数据"]
[1869,"企业职工基本养老保险个人账户一次性待遇申领（退休人员死亡）","省级","居民身份证","有效期内数据"]
[1870,"企业职工基本养老保险一次性待遇申领（在职）","省级","居民身份证","有效期内数据"]
[1871,"机关事业养老待遇发放信息维护","省级","居民身份证","有效期内数据"]
[1872,"企业养老待遇发放信息维护","省级","居民身份证","有效期内数据"]
[1873,"机关事业单位养老保险待遇暂停拨付","省级","身份证","有效期内数据"]
[1874,"流动人员人事档案借（查）阅","省级","居民身份证","有效期内数据"]
[1875,"流动人员人事档案转出","省级","居民身份证","有效期内数据"]
[1876,"流动人员人事档案材料收集","省级","居民身份证","有效期内数据"]
[1877,"外地调入人员职称确认","省级","学历验证报告、社会保险个人参保缴费证明、职称证书（含山东省高级职称证书、山东省中级职称证书、山东省初级职称证书）","有效期内数据"]
[1878,"正规全日制院校毕业生职称资格认定","省级","学历验证报告、学历证明、学位证明、社会保险个人参保缴费证明","有效期内数据"]
[1879,"职称评审及核准备案","省级","学历验证报告、专业技术人员职业资格证书、社会保险个人参保缴费证明、职称证书、中华人民共和国二级建造师执业资格证书、二级造价工程师职业资格证书（土木建筑工程、安装工程）、执业兽医资格证书","有效期内数据"]
[1880,"机关事业单位社会保险登记","省级","身份证","有效期内数据"]
[1881,"经济专业技术资格考试报名","国家级","学历证明","有效期内数据"]
[1882,"一级建造师资格考试报名","国家级","学历证明","有效期内数据"]
[1883,"一、二级注册建筑师资格考试报名","国家级","学历证明","有效期内数据"]
[1884,"注册设备监理师执业资格考试报名","国家级","学历证明","有效期内数据"]
[1885,"注册测绘师资格考试报名","国家级","学历证明","有效期内数据"]
[1886,"出版专业技术人员职业资格考试报名","国家级","学历证明","有效期内数据"]
[1887,"执业药师资格考试报名","国家级","学历证明","有效期内数据"]
[1888,"全国监理工程师资格考试报名","国家级","学历证明","有效期内数据"]
[1889,"注册城乡规划师职业资格考试报名","国家级","学历证明","有效期内数据"]
[1890,"一级造价工程师执业资格考试报名","国家级","学历证明","有效期内数据"]
[1891,"注册计量师资格考试报名","国家级","学历证明","有效期内数据"]
[1892,"一级注册消防工程师资格考试报名","国家级","学历证明","有效期内数据"]
[1893,"环境影响评价工程师职业资格考试报名","国家级","学历证明","有效期内数据"]
[1894,"勘察设计注册工程师执业资格考试报名","国家级","学历证明","有效期内数据"]
[1895,"注册安全工程师执业资格考试报名","国家级","学历证明","有效期内数据"]
[1896,"个人申领职业技能鉴定补贴（镇、街实施）","省级","身份证","有效期内数据"]
[1897,"金蓝领培训补贴申领","市级","职业资格证书（职业技能等级证书）","有效期内数据"]
[1898,"“山东惠才卡”办理","省级","居民身份证","有效期内数据"]
[1899,"职称评审委员会备案","省级","营业执照","有效期内数据"]
[1900,"灵活就业人员申领社会保险补贴","省级","居民身份证、社会保障卡","有效期内数据"]
[1901,"个人申领职业技能培训补贴（镇、街实施）","省级","居民身份证","有效期内数据"]
[1902,"一次性创业补贴申领","省级","居民身份证、社会保障卡","有效期内数据"]
[1903,"青年人才在青创新创业一次性安家费审核","市级","居民身份证、学历证书","有效期内数据"]
[1904,"单位参保证明打印","省级","电子营业执照","有效期内数据"]
[1905,"企业职工社会保险基本信息维护（非关键）","省级","电子营业执照","有效期内数据"]
[1906,"企业养老保险待遇终止拨付","省级","居民身份证","有效期内数据"]
[1907,"单位（项目）社会保险基本信息维护（企业）","省级","电子营业执照","有效期内数据"]
[1908,"社会保险费补缴申报（连续工龄补缴）","省级","居民身份证","有效期内数据"]
[1909,"工伤职工一次性工伤医疗补助金申领","省级","居民身份证","有效期内数据"]
[1910,"社会保险费退费申报（全额退费）","省级","居民身份证","有效期内数据"]
[1911,"社会保险费补缴申报（差额补缴）","省级","居民身份证","有效期内数据"]
[1912,"企业养老保险待遇恢复拨付","省级","居民身份证","有效期内数据"]
[1913,"企业离退休人员丧葬补助金、抚恤金申领","省级","居民身份证","有效期内数据"]
[1914,"居民基本养老保险关系转入申请","省级","参保凭证","有效期内数据"]
[1915,"机关事业单位养老保险退休待遇核定","区级","身份证","有效期内数据"]
[1916,"单位（项目）基本信息变更","省级","电子营业执照","有效期内数据"]
[1917,"机关事业单位基本养老保险一次性待遇申领（在职）","省级","居民身份证","有效期内数据"]
[1918,"退役军人基本养老保险关系转入申请","省级","居民身份证","有效期内数据"]
[1919,"企业养老供养直系亲属待遇恢复拨付","省级","居民身份证","有效期内数据"]
[1920,"单位社会保险参保证明查询打印","省级","电子营业执照","有效期内数据"]
[1921,"企业养老供养直系亲属待遇暂停拨付","省级","居民身份证","有效期内数据"]
[1922,"企业职工基本养老保险关系转入申请","省级","居民身份证","有效期内数据"]
[1923,"机关事业单位工作人员社会保险参保登记减员","省级","居民身份证","有效期内数据"]
[1924,"机关事业单位社会保险缴费基数申报","省级","电子营业执照","有效期内数据"]
[1925,"机关事业单位职工基本养老保险关系转入申请","省级","居民身份证","有效期内数据"]
[1926,"企业养老供养直系亲属待遇终止拨付","省级","居民身份证","有效期内数据"]
[1927,"居民养老保险参保信息维护","省级","居民身份证","有效期内数据"]
[1928,"企业养老保险待遇发放信息维护","省级","居民身份证","有效期内数据"]
[1929,"机关事业单位职工社会保险基本信息维护（非关键）","省级","居民身份证","有效期内数据"]
[1930,"机关事业单位社会保险费应收核定","省级","居民身份证","有效期内数据"]
[1931,"社会保险费补缴申报（依据劳动关系补缴）","省级","居民身份证","有效期内数据"]
[1932,"工伤供养亲属待遇发放信息维护","省级","居民身份证","有效期内数据"]
[1933,"企业社会保险费应收核定","省级","居民身份证","有效期内数据"]
[1934,"工伤职工医疗（康复）费用申领（含住院伙食补助费）","省级","居民身份证","有效期内数据"]
[1935,"工伤职工异地就医交通费、住宿费、医院外伙食补助费申领","省级","居民身份证","有效期内数据"]
[1936,"破产企业无法清偿的养老保险欠费核销","省级","居民身份证","有效期内数据"]
[1937,"居民养老保险一次性待遇核定支付","省级","居民身份证","有效期内数据"]
[1938,"机关事业单位社会保险注销登记","省级","居民身份证","有效期内数据"]
[1939,"机关事业养老保险待遇发放信息维护","省级","居民身份证","有效期内数据"]
[1940,"工伤职工辅助器具配置（更换）费申领","省级","居民身份证","有效期内数据"]
[1941,"居民养老保险注销登记","省级","居民身份证","有效期内数据"]
[1942,"机关事业单位养老保险待遇终止拨付","省级","居民身份证","有效期内数据"]
[1943,"企业养老保险供养直系亲属待遇发放信息维护","省级","居民身份证","有效期内数据"]
[1944,"参保人员达到法定退休年龄领取基本养老保险待遇资格确认","省级","居民身份证","有效期内数据"]
[1945,"工伤供养亲属抚恤金申领","省级","居民身份证","有效期内数据"]
[1946,"工伤职工发放信息维护","省级","居民身份证","有效期内数据"]
[1947,"单位（项目）社会保险基本信息维护（机关事业单位）","省级","电子营业执照","有效期内数据"]
[1948,"工伤职工伤残待遇申领（一次性伤残补助金、伤残津贴和生活护理费）","省级","居民身份证","有效期内数据"]
[1949,"缓缴社会保险费审核","省级","居民身份证","有效期内数据"]
[1950,"企业职工社会保险费延长缴费申请","省级","居民身份证","有效期内数据"]
[1951,"机关事业单位工作人员社会保险参保登记增员","省级","居民身份证","有效期内数据"]
[1952,"灵活就业人员社会保险参保登记减员","省级","居民身份证","有效期内数据"]
[1953,"企业职工社会保险基本信息维护（关键）","省级","居民身份证","有效期内数据"]
[1954,"企业社会保险缴费基数申报","省级","居民身份证","有效期内数据"]
[1955,"企业养老保险待遇暂停拨付","省级","居民身份证","有效期内数据"]
[1956,"个人社会保险待遇领取证明查询打印","省级","居民身份证","有效期内数据"]
[1957,"社会保险费退费申报（清理个人账户退费）","省级","居民身份证","有效期内数据"]
[1958,"企业职工基本养老保险个人账户一次性待遇申领（退休人员）","省级","居民身份证","有效期内数据"]
[1959,"企业职工社会保险参保登记减员","省级","居民身份证","有效期内数据"]
[1960,"机关事业单位职工社会保险基本信息维护（关键）","省级","居民身份证","有效期内数据"]
[1961,"专家工作站申报审核","市级","营业执照","有效期内数据"]
[1962,"失业保险待遇转入服务","国家级","身份证","有效期内数据"]
[1963,"失业保险待遇转出服务","国家级","身份证","有效期内数据"]
[1964,"解聘备案","省级","身份证","有效期内数据"]
[1965,"个体经营人员就业登记","省级","身份证","有效期内数据"]
[1966,"高校毕业生小微企业就业补贴审核","市级","居民身份证、学历证明","有效期内数据"]
[1967,"个体工商户一次性创业补贴申领","省级","身份证","有效期内数据"]
[1968,"用人单位吸纳就业困难人员申领岗位补贴和社会保险补贴","省级","身份证","有效期内数据"]
[1969,"高校毕业生灵活就业人员社会保险补贴申领","省级","身份证","有效期内数据"]
[1970,"招聘登记","省级","营业执照","有效期内数据"]
[1971,"技能人员职业资格证书查询","省级 ","身份证","有效期内数据"]
[1972,"一次性工亡补助金（含生活困难，预支50％确认）、丧葬补助金申领","省级","居民身份证","有效期内数据"]
[1973,"一次性创业岗位开发补贴申领","省级","身份证","有效期内数据"]
[1974,"失业人员一次性丧葬补助金和抚恤金申领","省级","身份证","有效期内数据"]
[1975,"企业在职职工失业保险技能提升补贴申领","省级","身份证","有效期内数据"]
[1976,"职业资格证书查询","省级 ","身份证","有效期内数据"]
[1977,"领取失业保险金人员价格临时补贴申领","省级","身份证","有效期内数据"]
[1978,"小微企业申请创业担保贷款资格审核","省级","身份证","有效期内数据"]
[1979,"个人申请创业担保贷款资格审核","省级","身份证","有效期内数据"]
[1980,"个人申领职业技能鉴定补贴","区级","身份证","有效期内数据"]
[1981,"小微企业一次性创业补贴申领","省级","身份证","有效期内数据"]
[1982,"就业见习补贴申领","市级","居民身份证、营业执照","有效期内数据"]
[1983,"职业技能等级证书查询","省级 ","身份证","有效期内数据"]
[1984,"无就业经历人员失业登记","省级","身份证","有效期内数据"]
[1985,"职业介绍补贴申领","省级","身份证","有效期内数据"]
[1986,"领取失业保险金人员失业保险技能提升补贴申领","省级","身份证","有效期内数据"]
[1987,"就业困难人员灵活就业社会保险补贴申领","省级","身份证","有效期内数据"]
[1988,"失业保险待遇发放信息维护","省级","身份证","有效期内数据"]
[1989,"网上发布求职信息","省级","身份证","有效期内数据"]
[1990,"网上发布招聘信息","省级","营业执照","有效期内数据"]
[1991,"信息公开（人社局）","县级","身份证","有效期内数据"]
[1992,"企业裁减人员方案报告","市级","营业执照","有效期内数据"]
[1993,"劳动用工备案续订","市级","营业执照","有效期内数据"]
[1994,"集体合同审查","市级","营业执照","有效期内数据"]
[1995,"劳动用工备案解除","市级","营业执照","有效期内数据"]
[1996,"劳动用工备案终止","市级","营业执照","有效期内数据"]
[1997,"劳动用工备案变更","市级","营业执照","有效期内数据"]
[1998,"劳动用工备案新增","市级","营业执照","有效期内数据"]
[1999,"青岛市高层次人才服务绿卡","市级","营业执照","有效期内数据"]
[2000,"出售或者运输水生动物水产苗种检疫合格证核发（县级权限）（农业农村局）","市级","身份证","有效期内数据"]
[2001,"屠宰许可","市级","身份证","有效期内数据"]
[2002,"动物隔离场所防疫条件许可企业名称、法人（负责人）信息变更","市级","动物防疫条件合格证（仅限于办理隔离场和无害化处理厂）","有效期内数据"]
[2003,"动物防疫条件许可（变更名称或负责人）","市级","营业执照、居民身份证","有效期内数据"]
[2004,"动物防疫条件许可","市级","营业执照、居民身份证","有效期内数据"]
[2005,"乡村兽医备案","市级","居民身份证","有效期内数据"]
[2006,"拖拉机和联合收割机注册登记","省级","居民身份证","有效期内数据"]
[2007,"拖拉机和联合收割机变更登记","省级","居民身份证","有效期内数据"]
[2008,"拖拉机和联合收割机转移登记","市级","居民身份证","有效期内数据"]
[2009,"拖拉机和联合收割机抵押登记","市级","居民身份证","有效期内数据"]
[2010,"拖拉机和联合收割机注销登记","市级","居民身份证","有效期内数据"]
[2011,"拖拉机和联合收割机临时行驶号牌核发","省级","居民身份证","有效期内数据"]
[2012,"拖拉机和联合收割机检验合格标志核发","市级","居民身份证","有效期内数据"]
[2013,"拖拉机和联合收割机补领、换领牌证和更正","市级","居民身份证","有效期内数据"]
[2014,"初次申领拖拉机和联合收割机驾驶证","省级","居民身份证","有效期内数据"]
[2015,"拖拉机和联合收割机驾驶证增加准驾机型","市级","居民身份证","有效期内数据"]
[2016,"拖拉机和联合收割机驾驶证换证","省级","居民身份证","有效期内数据"]
[2017,"拖拉机和联合收割机驾驶证转出","省级","居民身份证","有效期内数据"]
[2018,"拖拉机和联合收割机驾驶证注销","市级","居民身份证","有效期内数据"]
[2019,"拖拉机和联合收割机驾驶证恢复驾驶资格","市级","居民身份证","有效期内数据"]
[2020,"拖拉机和联合收割机驾驶证档案记载事项更正","市级","居民身份证","有效期内数据"]
[2021,"拖拉机和联合收割机驾驶证转入","市级","居民身份证","有效期内数据"]
[2022,"拖拉机和联合收割机驾驶证补证","省级","居民身份证","有效期内数据"]
[2023,"执业兽医备案","市级","中华人民共和国居民身份证","有效期内数据"]
[2024,"动物、动物产品检疫","省级","居民身份证","有效期内数据"]
[2025,"农药使用事故处理","市级","居民身份证","有效期内数据"]
[2026,"农业植物调运检疫许可","市级","居民身份证","有效期内数据"]
[2027,"农业植物产地检疫","市级","居民身份证","有效期内数据"]
[2028,"农机事故认定与复核","市级","居民身份证","有效期内数据"]
[2029,"农机事故损害赔偿调解","市级","居民身份证","有效期内数据"]
[2030,"跨区作业联合收割机作业质量存在争议的调解","市级","居民身份证","有效期内数据"]
[2031,"质量负责人变更备案","市级","居民身份证","有效期内数据"]
[2032,"兽药经营场所面积变更 ","市级","居民身份证","有效期内数据"]
[2033,"执业兽医执业情况年度报告 ","市级","居民身份证","有效期内数据"]
[2034,"农作物种子质量纠纷田间现场鉴定","市级","居民身份证","有效期内数据"]
[2035,"动物防疫条件年度报告 ","市级","居民身份证","有效期内数据"]
[2036,"农业机械事故损害赔偿调解","市级","居民身份证","有效期内数据"]
[2037,"输入无疫区继续饲养的易感动物到达目的地的落地报告 ","市级","居民身份证","有效期内数据"]
[2038,"农作物种子生产经营备案(设立分支机构） ","市级","居民身份证","有效期内数据"]
[2039,"农作物种子生产经营备案（委托生产）","市级","居民身份证","有效期内数据"]
[2040,"农作物种子生产经营备案（委托代销） ","市级","居民身份证","有效期内数据"]
[2041,"农作物种子生产经营备案（经营不分装） ","市级","居民身份证","有效期内数据"]
[2042,"蚕种生产经营许可 ","市级","居民身份证","有效期内数据"]
[2043,"畜禽养殖场、养殖小区备案 ","市级","居民身份证","有效期内数据"]
[2044,"向无疫区输入（过境）易感动物或动物产品审批","市级","居民身份证","有效期内数据"]
[2045,"农业机械事故认定","市级","居民身份证","有效期内数据"]
[2046,"动物诊疗机构动物诊疗活动年度报告","市级","居民身份证","有效期内数据"]
[2047,"农业机械跨区作业中介服务组织备案","市级","居民身份证","有效期内数据"]
[2048,"依法不需办理种子生产经营许可证的农作物种子生产经营者（专门经营不再分装的包装种子）备案","市级","居民身份证","有效期内数据"]
[2049,"兽药广告审批","市级","兽药GMP证书 兽药生产许可证   ","有效期内数据"]
[2050,"蚕种生产经营许可变更","市级","居民身份证","有效期内数据"]
[2051,"动物防疫条件合格证变更（县级权限）","市级","居民身份证","有效期内数据"]
[2052,"动物防疫条件合格证核发（县级权限）","市级","居民身份证","有效期内数据"]
[2053,"工商企业等社会资本通过流转取得土地经营权审批（乡镇权限）（延续）","市级","营业执照、居民身份证","有效期内数据"]
[2054,"农业植物产地检疫合格证签发（县级权限）","市级","居民身份证","有效期内数据"]
[2055,"拖拉机和联合收割机登记","市级","居民身份证","有效期内数据"]
[2056,"拖拉机和联合收割机驾驶证有效期满换证","市级","居民身份证","有效期内数据"]
[2057,"工商企业等社会资本通过流转取得土地经营权审批（县级权限）（新设）","市级","营业执照、居民身份证","有效期内数据"]
[2058,"使用低于国家或地方规定的种用标准的农作物种子审批（县级权限）","市级","居民身份证","有效期内数据"]
[2059,"屠宰、出售或者运输动物以及出售或者运输动物产品检疫证明核发（县级权限）","市级","居民身份证","有效期内数据"]
[2060,"拖拉机和联合收割机驾驶证核发","市级","居民身份证","有效期内数据"]
[2061,"农业植物检疫证书核发（县级权限）","市级","居民身份证","有效期内数据"]
[2062,"向无规定动物疫病区输入易感动物、动物产品的检疫审批","市级","居民身份证","有效期内数据"]
[2063,"工商企业等社会资本通过流转取得土地经营权审批（乡镇权限）（新设）","市级","营业执照、居民身份证","有效期内数据"]
[2064,"农业植物检疫证书核发","市级","居民身份证","有效期内数据"]
[2065,"农业植物产地检疫合格证签发","市级","居民身份证","有效期内数据"]
[2066,"工商企业等社会资本通过流转取得土地经营权审批（县级权限）（延续）","市级","营业执照、居民身份证","有效期内数据"]
[2067,"拖拉机和联合收割机临时号牌申领","市级","居民身份证","有效期内数据"]
[2068,"社会团体成立申请预审服务","市级","中华人民共和国居民身份证、社会团体成立申请预审表","有效期内数据"]
[2069,"建设农村公益性墓地审批","市级","不动产登记证","有效期内数据"]
[2070,"建设殡仪服务站、骨灰堂审批","市级","不动产登记证","有效期内数据"]
[2071,"慈善组织公开募捐资格证书遗失补发","市级","社会团体、民办非企业单位、基金会登记证书、慈善组织公开募捐资格证书","有效期内数据"]
[2072,"社会团体法定代表人变更登记","市级","中华人民共和国居民身份证、社会团体法人登记证书","有效期内数据"]
[2073,"社会团体成立大会事先备案服务","市级","不动产登记证明","有效期内数据"]
[2074,"农村特困人员申请","区级","居民身份证","有效期内数据"]
[2075,"内地居民离婚登记","省级","居民身份证、中华人民共和国结婚证","有效期内数据"]
[2076,"内地居民结婚登记","省级","居民身份证","有效期内数据"]
[2077,"内地居民收养登记","国家级","居民身份证","有效期内数据"]
[2078,"特困人员供养给付","省级","居民身份证","有效期内数据"]
[2079,"临时救助给付","省级","居民身份证","有效期内数据"]
[2080,"城乡居民最低生活保障金给付","省级","居民身份证","有效期内数据"]
[2081,"困难居民医疗救助","县级","身份证","有效期内数据"]
[2082,"主持将慈善组织清算后的剩余财产转给宗旨相同或者相近的慈善组织并向社会公告","区级","社会团体法人登记证书","有效期内数据"]
[2083,"百岁及以上老年人高龄补贴","区级","居民身份证","有效期内数据"]
[2084,"全市80周岁及以上老年人体检补助  ","市级","居民身份证","有效期内数据"]
[2085,"80周岁及以上高龄补贴","区县级","居民身份证","有效期内数据"]
[2086,"居家养老服务","区县级","居民身份证","有效期内数据"]
[2087,"社会团体负责人、印章及银行账户备案","市级","中华人民共和国居民身份证","有效期内数据"]
[2088,"事实无人抚养儿童认定","国家级","居民身份证","有效期内数据"]
[2089,"重点困境儿童基本生活费给付","省级","居民身份证","有效期内数据"]
[2090,"孤儿基本生活保障金给付","国家级","居民身份证","有效期内数据"]
[2091,"接收捐赠人因经济状况显著恶化，严重影响其生产经营或者家庭生活的，停止履行捐赠义务的报告","市级","居民身份证","有效期内数据"]
[2092,"慈善组织变更捐赠财产用途备案","市级","居民身份证、不动产登记证明","有效期内数据"]
[2093,"接受慈善信托事务处理情况的报告","市级","居民身份证、不动产登记证明","有效期内数据"]
[2094,"慈善组织公开募捐方案备案","国家级","居民身份证、不动产登记证明","有效期内数据"]
[2095,"慈善信托设立、变更备案","国家级","居民身份证、不动产登记证明","有效期内数据"]
[2096,"慈善组织异地公开募捐备案","市级","居民身份证、不动产登记证明","有效期内数据"]
[2097,"社会组织登记档案查询服务","区级","居民身份证、不动产登记证明","有效期内数据"]
[2098,"养老机构备案","区级","居民身份证、不动产登记证明","有效期内数据"]
[2099,"经济困难老年人补贴给付","区级","居民身份证","有效期内数据"]
[2100,"涉外国人、港澳台居民、华侨结婚登记","省级","中华人民共和国居民身份证","有效期内数据"]
[2101,"涉外国人、港澳台居民、华侨离婚登记","省级","中华人民共和国居民身份证","有效期内数据"]
[2102,"离婚协议公证申请","省级","离婚证","有效期内数据"]
[2103,"社会团体成立和章程核准","市级","中华人民共和国居民身份证","有效期内数据"]
[2104,"80-99周岁老年人高龄津贴申报","市级","中华人民共和国居民身份证","有效期内数据"]
[2105,"撤销中国公民收养登记","国家级","居民身份证","有效期内数据"]
[2106,"慈善信托变更备案","国家级","居民身份证、不动产登记证明","有效期内数据"]
[2107,"慈善组织公开募捐方案补正备案","国家级","居民身份证、不动产登记证明","有效期内数据"]
[2108,"孤儿救助资格认定","国家级","居民身份证","有效期内数据"]
[2109,"基层群众性自治组织法人统一社会信用代码赋予","市级","中华人民共和国居民身份证","有效期内数据"]
[2110,"居住在中国内地的中国公民在内地补领收养登记证、解除收养关系证明","国家级","居民身份证","有效期内数据"]
[2111,"居住在中国内地的中国公民在内地解除收养登记","国家级","居民身份证","有效期内数据"]
[2112,"居住在中国内地的中国公民在内地收养登记","国家级","居民身份证","有效期内数据"]
[2113,"具有重要地理方位意义的水利设施更名审批","市级","中华人民共和国居民身份证","有效期内数据"]
[2114,"具有重要地理方位意义的水利设施命名审批","市级","中华人民共和国居民身份证","有效期内数据"]
[2115,"困难残疾人生活补贴给付","市级","中华人民共和国居民身份证","有效期内数据"]
[2116,"内地居民补领结婚证","省级","居民身份证","有效期内数据"]
[2117,"内地居民补领离婚证","省级","居民身份证","有效期内数据"]
[2118,"涉外国人、港澳台居民、华侨补领结婚证","省级","中华人民共和国居民身份证","有效期内数据"]
[2119,"涉外国人、港澳台居民、华侨补领离婚证","省级","中华人民共和国居民身份证","有效期内数据"]
[2120,"生活无着的流浪乞讨人员救助管理","市级","中华人民共和国居民身份证","有效期内数据"]
[2121,"事实无人抚养儿童基本生活补贴的给付","国家级","居民身份证","有效期内数据"]
[2122,"因病致贫重病患者认定","省级","居民身份证","有效期内数据"]
[2123,"重度残疾人护理补贴给付","省级","居民身份证","有效期内数据"]
[2124,"中小学幼儿园教师招聘","区级","居民身份证、普通话水平测试等级证书","有效期内数据"]
[2125,"招收适龄儿童、少年进行文艺、体育等专业训练的社会组织自行实施义务教育的批准","市级","教师资格证（高校教师资格证）","有效期内数据"]
[2126,"对学生的奖励","市级","身份证免提交","有效期内数据"]
[2127,"民办幼儿园年检","市级","身份证免提交","有效期内数据"]
[2128,"学生申诉处理","市级","居民身份证","有效期内数据"]
[2129,"开办外籍人员子女学校审批","市级","居民身份证","有效期内数据"]
[2130,"三级社会体育指导员技术等级认定","市级","居民身份证","有效期内数据"]
[2131,"三级运动员技术等级认定","市级","居民身份证","有效期内数据"]
[2132,"对为残疾人教育事业作出突出贡献的组织和个人的奖励和表彰","市级","居民身份证","有效期内数据"]
[2133,"对为发展职业教育作出显著成绩的单位和个人的奖励和表彰","市级","居民身份证","有效期内数据"]
[2134,"参与并购、加盟、连锁经营的营利性幼儿园与相关利益企业签订的协议的备案","市级","居民身份证","有效期内数据"]
[2135,"对为国家通用语言文字事业做出突出贡献的组织和个人的奖励和表彰","市级","居民身份证","有效期内数据"]
[2136,"对为幼儿园工作作出突出贡献的组织和个人的奖励和表彰","市级","居民身份证","有效期内数据"]
[2137,"对在学校安全工作中做出显著成绩的单位和个人的奖励和表彰","市级","居民身份证","有效期内数据"]
[2138,"对在学校体育工作中成绩显著的单位和个人的奖励和表彰","市级","居民身份证","有效期内数据"]
[2139,"对在学校卫生工作中成绩显著的单位和个人的奖励和表彰","市级","居民身份证","有效期内数据"]
[2140,"对在义务教育实施工作中做出突出贡献的社会组织和个人的奖励和表彰","市级","居民身份证","有效期内数据"]
[2141,"教师申诉处理","市级","居民身份证","有效期内数据"]
[2142,"民办学校年检","市级","居民身份证","有效期内数据"]
[2143,"民办学校理事长、理事或者董事长、董事备案","市级","居民身份证","有效期内数据"]
[2144,"民办学校修改章程备案","市级","居民身份证","有效期内数据"]
[2145,"民办学校学籍和教学管理制度备案","市级","居民身份证","有效期内数据"]
[2146,"民办学校招生简章和广告备案","市级","居民身份证","有效期内数据"]
[2147,"三级裁判员技术等级认证","市级","居民身份证","有效期内数据"]
[2148,"体育类民办非企业单位年度检查初审","市级","居民身份证","有效期内数据"]
[2149,"外籍人员子女学校教职员及学生名册、教材和校长、董事会成员变更备案","市级","居民身份证","有效期内数据"]
[2150,"为教育事业做出贡献的组织和个人的奖励","市级","居民身份证","有效期内数据"]
[2151,"校外培训机构开展语文、数学、英语及物理、化学、生物等学科知识培训的内容、班次、招生对象、进度、上课时间等的备案","市级","居民身份证","有效期内数据"]
[2152,"依申请政府信息公开（教体局）","市级","居民身份证","有效期内数据"]
[2153,"幼儿园年检","市级","居民身份证","有效期内数据"]
[2154,"小学、初中学校学生休学、复学","省级","居民身份证","有效期内数据"]
[2155,"普通高中建档立卡等家庭经济困难学生免学杂费","国家级","居民身份证","有效期内数据"]
[2156,"生源地国家助学贷款还款救助","国家级","居民身份证","有效期内数据"]
[2157,"师范类毕业生就业手续办理","省级","居民身份证、就业报到证（师范类毕业生）","有效期内数据"]
[2158,"小学、初中学校学生转学","省级","社会保障卡","有效期内数据"]
[2159,"幼儿园、小学和初级中学教师资格认定","国家级","居民身份证","有效期内数据"]
[2160,"幼儿园入园","省级","居民身份证、居民户口簿 、不动产权证书、不动产登记信息查询证明、出生医学证明","有效期内数据"]
[2161,"中小学入学报名","省级","居民户口簿","有效期内数据"]
[2162,"中小学教师资格定期注册","国家","中华人民共和国教师资格证书（高等学校教师资格）","有效期内数据"]
[2163,"初级中学教师资格认定","市级","居民身份证、学历证书、普通话水平测试等级证书","有效期内数据"]
[2164,"小学教师资格认定","市级","居民身份证、学历证书、普通话水平测试等级证书","有效期内数据"]
[2165,"幼儿园教师资格认定","市级","居民身份证、学历证书、普通话水平测试等级证书","有效期内数据"]
[2166,"适龄儿童、少年因身体状况需要延缓入学或者休学审批（县级权限）","市级","居民身份证","有效期内数据"]
[2167,"临时占用公共体育场地设施审批（县级权限）","市级","统一社会信用代码证书","有效期内数据"]
[2168,"从事文艺、体育等专业训练的社会组织自行实施义务教育审批","市级","中华人民共和国不动产权证书","有效期内数据"]
[2169,"班轮运输业务信息备案","区级","居民身份证","有效期内数据"]
[2170,"船舶港口服务业务备案","区级","居民身份证","有效期内数据"]
[2171,"船舶管理合同（协议）备案","区级","工商营业执照","有效期内数据"]
[2172,"港口经营人应急预案（或安全评价报告）备案","区级","居民身份证","有效期内数据"]
[2173,"港口理货业务备案","区级","居民身份证","有效期内数据"]
[2174,"港口设施设备和机械租赁维修业务备案","区级","居民身份证","有效期内数据"]
[2175,"在公路桥梁跨越的河道上下游各500米范围内进行疏浚作业的安全确认","区级","居民身份证、工商营业执照","有效期内数据"]
[2176,"公路建设项目设计文件审批","区级","居民身份证","有效期内数据"]
[2177,"水运建设项目设计文件审批","区级","居民身份证","有效期内数据"]
[2178,"货运代理（代办）等货运相关服务备案（变更业务基本信息）","区级","居民身份证","有效期内数据"]
[2179,"货运代理（代办）等货运相关服务备案（补发）","区级","居民身份证、工商营业执照","有效期内数据"]
[2180,"货运代理（代办）等货运相关服务备案（取消）","区级","居民身份证、工商营业执照","有效期内数据"]
[2181,"货运代理（代办）等货运相关服务备案（新申请）","区级","居民身份证、工商营业执照","有效期内数据"]
[2182,"货运代理（代办）等货运相关服务备案（延续）","区级","居民身份证、工商营业执照","有效期内数据"]
[2183,"危险货物运输经营以外的道路货物运输企业设立分公司的备案","省级","居民身份证、工商营业执照","有效期内数据"]
[2184,"道路运输从业人员从业资格证件变更（新）","省级","机动车驾驶证、居民身份证","有效期内数据"]
[2185,"道路运输从业人员从业资格证件补证（新）","省级","机动车驾驶证、居民身份证","有效期内数据"]
[2186,"道路运输从业人员从业资格证件换证（新）","省级","机动车驾驶证、居民身份证","有效期内数据"]
[2187,"道路运输从业人员从业资格证件注销（新）","省级","机动车驾驶证、居民身份证","有效期内数据"]
[2188,"道路运输从业人员相关从业信息查询","省级","居民身份证","有效期内数据"]
[2189,"道路运输驾驶员诚信考核","省级","居民身份证、驾驶证","有效期内数据"]
[2190,"机动车驾驶员培训相关信息查询","省级","居民身份证","有效期内数据"]
[2191,"经营性道路货物运输驾驶员从业资格许可（新）","省级","机动车驾驶证、居民身份证、居住证","有效期内数据"]
[2192,"经营性道路旅客运输驾驶员从业资格许可（新）","省级","机动车驾驶证、居民身份证、居住证","有效期内数据"]
[2193,"班车（包车）客运标志牌补发","省级","居民身份证","有效期内数据"]
[2194,"班车（包车）客运标志牌配发","省级","居民身份证","有效期内数据"]
[2195,"包车客运企业使用包车客运标志牌的备案","省级","道路运输证","有效期内数据"]
[2196,"城市公共汽电车车辆备案","市级","机动车行驶证、机动车检验合格证","有效期内数据"]
[2197,"城市公共汽电车客运驾驶员、乘务员培训、考核情况备案","区级","居民身份证、驾驶证","有效期内数据"]
[2198,"道路客运班线经营信息备案","区级","居民身份证","有效期内数据"]
[2199,"道路客运企业设立分公司的备案","省级","居民身份证、工商营业执照、道路经营许可证","有效期内数据"]
[2200,"道路客运站站级核定","市级","工商营业执照","有效期内数据"]
[2201,"客运标志牌配发、换发、补发（新）","省级","机动车行驶证","有效期内数据"]
[2202,"客运经营者在发车时间安排上发生纠纷的裁决","区级","居民身份证","有效期内数据"]
[2203,"临时客运标志牌配发","区级","机动车驾驶证、道路运输从业人员从业资格证、机动车行驶证、道路运输证","有效期内数据"]
[2204,"特定时段开行包车或者加班车资质确认","区级","机动车行驶证、驾驶证","有效期内数据"]
[2205,"营运客车类型等级评定（初次）","省级","居民身份证","有效期内数据"]
[2206,"营运客车年度类型等级评定复核","省级","居民身份证","有效期内数据"]
[2207,"机动车维修质量纠纷调解","区级","居民身份证","有效期内数据"]
[2208,"机动车维修经营备案（变更）","省级","居民身份证、工商营业执照","有效期内数据"]
[2209,"机动车维修经营备案（取消）","省级","居民身份证、工商营业执照","有效期内数据"]
[2210,"机动车维修经营备案（新设）","省级","居民身份证、工商营业执照","有效期内数据"]
[2211,"机动车维修经营者维修工时单价标准的备案","省级","居民身份证、工商营业执照","有效期内数据"]
[2212,"收费公路建设工程建设单位备案","区级","居民身份证","有效期内数据"]
[2213,"道路运输车辆过户","省级","居民身份证、道路运输证","有效期内数据"]
[2214,"道路运输车辆转籍","省级","居民身份证、道路运输证","有效期内数据"]
[2215,"道路运输和道路运输相关业务经营者变更法定代表人、名称、地址等事项的备案","省级","居民身份证、工商营业执照、道路经营许可证","有效期内数据"]
[2216,"道路运输驾驶员从业资格培训经营备案（备案变更）","省级","居民身份证","有效期内数据"]
[2217,"道路运输驾驶员从业资格培训经营备案（新增、扩大经营范围）","省级","产权证明、营业执照、身份证","有效期内数据"]
[2218,"道路运输驾驶员从业资格培训经营备案（终止经营）","省级","身份证","有效期内数据"]
[2219,"机动车驾驶员培训教练场经营备案（变更经营）","省级","产权证明、营业执照、身份证","有效期内数据"]
[2220,"机动车驾驶员培训教练场经营备案（新增）","省级","产权证明、营业执照、身份证","有效期内数据"]
[2221,"机动车驾驶员培训教练场经营备案（终止经营）","省级","身份证","有效期内数据"]
[2222,"教练车道路运输证配发、换发、补发（新）","省级","机动车行驶证、机动车驾驶证、居民身份证","有效期内数据"]
[2223,"教练车辆年度审验","省级","机动车行驶证、机动车驾驶证、居民身份证","有效期内数据"]
[2224,"旅客运输车辆道路运输证补发","省级","机动车行驶证、道路运输经营许可证副本","有效期内数据"]
[2225,"旅客运输车辆道路运输证换发","省级","机动车行驶证、道路运输经营许可证副本","有效期内数据"]
[2226,"旅客运输车辆道路运输证配发","省级","机动车行驶证、道路运输经营许可证副本","有效期内数据"]
[2227,"旅客运输车辆道路运输证注销","省级","机动车行驶证、道路运输经营许可证副本","有效期内数据"]
[2228,"旅客运输车辆年度审验","省级","机动车行驶证、道路运输经营许可证副本","有效期内数据"]
[2229,"普通货物运输车辆道路运输证补发","省级","机动车行驶证、机动车驾驶证、居民身份证、机动车检验合格证","有效期内数据"]
[2230,"普通货物运输车辆道路运输证换发","省级","机动车行驶证、机动车驾驶证、居民身份证、机动车检验合格证","有效期内数据"]
[2231,"普通货物运输车辆道路运输证配发","省级","机动车行驶证、机动车驾驶证、居民身份证、机动车检验合格证，道路运输从业人员从业资格证","有效期内数据"]
[2232,"普通货物运输车辆道路运输证注销","省级","道路运输证、身份证","有效期内数据"]
[2233,"普通货物运输车辆年度审验","省级","道路运输证、身份证、机动车行驶证","有效期内数据"]
[2234,"普通机动车驾驶员培训经营备案（备案变更）","省级","身份证","有效期内数据"]
[2235,"普通机动车驾驶员培训经营备案（新增、扩大经营范围）","省级","产权证明、营业执照、身份证","有效期内数据"]
[2236,"普通机动车驾驶员培训经营备案（新增教练场地）","省级","产权证明、身份证","有效期内数据"]
[2237,"普通机动车驾驶员培训经营备案（新增教练车）","省级","产权证明、身份证","有效期内数据"]
[2238,"普通机动车驾驶员培训经营备案（终止经营）","省级","身份证","有效期内数据"]
[2239,"网络预约出租汽车道路运输证补发（新）","省级","机动车行驶证、机动车驾驶证、居民身份证","有效期内数据"]
[2240,"网络预约出租汽车年度审验","省级","机动车行驶证、居民身份证","有效期内数据"]
[2241,"网络预约出租汽车运输证换发（新）","省级","机动车行驶证、机动车驾驶证、居民身份证","有效期内数据"]
[2242,"网络预约出租汽车运输证配发（新）","省级","机动车行驶证、机动车驾驶证、居民身份证、居住证","有效期内数据"]
[2243,"小微型客车租赁经营备案办理","省级","居民身份证、机动车行驶证、机动车驾驶证、营业执照。","有效期内数据"]
[2244,"小微型客车分时租赁经营备案办理","省级","居民身份证、机动车行驶证、机动车驾驶证、营业执照。","有效期内数据"]
[2245,"小微型客车分时租赁经营暂停或终止","省级","居民身份证、机动车行驶证、机动车驾驶证、营业执照。","有效期内数据"]
[2246,"小微型客车租赁（含分时租赁）经营备案事项变更","省级","居民身份证、机动车行驶证、机动车驾驶证、营业执照。","有效期内数据"]
[2247,"小微型客车租赁经营暂停或终止","省级","居民身份证、机动车行驶证、机动车驾驶证、营业执照。","有效期内数据"]
[2248,"巡游出租汽车道路运输证补发（新）","省级","机动车行驶证、机动车驾驶证、居民身份证","有效期内数据"]
[2249,"巡游出租汽车道路运输证换发（新）","省级","机动车行驶证、机动车驾驶证、居民身份证","有效期内数据"]
[2250,"巡游出租汽车道路运输证配发（新）","省级","机动车行驶证、机动车驾驶证、居民身份证、道路运输从业人员从业资格证","有效期内数据"]
[2251,"巡游出租汽车驾驶员从业资格注册","省级","驾驶证、从业资格证","有效期内数据"]
[2252,"巡游出租汽车驾驶员从业资格注销","省级","驾驶证、从业资格证","有效期内数据"]
[2253,"巡游出租汽车年度审验","省级","机动车行驶证、机动车驾驶证、居民身份证、机动车检验合格证","有效期内数据"]
[2254,"道路运输企业新建或变更道路运输车辆动态监控平台的备案","区级","工商营业执照","有效期内数据"]
[2255,"公路、水运工程质量监督申请登记","区级","工商营业执照","有效期内数据"]
[2256,"公路、水运工程质量竣工核验","区级","工商营业执照","有效期内数据"]
[2257,"公路、水运工程质量竣工鉴定","区级","工商营业执照","有效期内数据"]
[2258,"公路工程交工验收报告备案","区级","身份证","有效期内数据"]
[2259,"公路水运工程安全生产条件备案","区级","身份证","有效期内数据"]
[2260,"公路水运工程工地实验室人员变更备案","区级","身份证","有效期内数据"]
[2261,"公路水运工程工地实验室设立备案","区级","身份证","有效期内数据"]
[2262,"网络预约出租汽车驾驶员从业资格注册","区级","身份证","有效期内数据"]
[2263,"网络预约出租汽车驾驶员从业资格注销","区级","身份证","有效期内数据"]
[2264,"交通工程安全生产交工验收","区级","身份证","有效期内数据"]
[2265,"乘坐城市公共交通工具","区级","老年人优待证","有效期内数据"]
[2266,"60周岁及以上老年人持电子优待证可免费乘坐城市公共交通","区级","老年人电子优待证","有效期内数据"]
[2267,"港口内进行危险货物的装卸、过驳作业许可","省级","工商营业执照","有效期内数据"]
[2268,"校车使用许可（县级权限）（交通运输局）","市级","道路运营许可证、居民身份证、机动车行驶证","有效期内数据"]
[2269,"网络预约出租汽车车辆运营证核发（县级权限）","市级","驾驶员证、出租车道路运输证、机动车行驶证、居民身份证、机动车登记证书","有效期内数据"]
[2270,"巡游出租汽车车辆运营证核发（县级权限）","市级","机动车登记证书、巡游出租汽车驾驶员证、机动车行驶证、居民身份证、道路运输证","有效期内数据"]
[2271,"国家重点港口工程以外属于政府投资的港口工程建设项目竣工验收（县级权限）","市级","居民身份证","有效期内数据"]
[2272,"乡道、村道建设项目竣工验收","市级","居民身份证","有效期内数据"]
[2273,"县道建设项目竣工验收（县级权限）","市级","居民身份证","有效期内数据"]
[2274,"中央财政事权以外的航道工程建设项目施工图设计审批（县级）（变更审批）","市级","居民身份证","有效期内数据"]
[2275,"中央财政事权以外的航道工程建设项目施工图设计审批（县级）（初次审批）","市级","居民身份证","有效期内数据"]
[2276,"中央财政事权以外的航道工程建设项目初步设计审批（县级）（变更审批）","市级","居民身份证","有效期内数据"]
[2277,"中央财政事权以外的航道工程建设项目初步设计审批（县级）（初次审批）","市级","居民身份证","有效期内数据"]
[2278,"港口工程建设项目施工图设计审批（县级权限）（变更审批）","市级","居民身份证","有效期内数据"]
[2279,"港口工程建设项目施工图设计审批（县级权限）（初次审批）","市级","居民身份证","有效期内数据"]
[2280,"国家重点港口工程以外的港口工程建设项目初步设计审批（县级权限）（变更审批）","市级","居民身份证","有效期内数据"]
[2281,"乡道、村道建设项目设计文件审批","市级","居民身份证、营业执照","有效期内数据"]
[2282,"县道建设项目设计文件审批（县级权限）","市级","居民身份证、营业执照","有效期内数据"]
[2283,"中央财政事权以外的航道工程建设项目竣工验收（县级权限）","市级","居民身份证","有效期内数据"]
[2284,"占用国防交通控制范围土地审批（县级权限）","市级","居民身份证","有效期内数据"]
[2285,"国家重点港口工程以外的港口工程建设项目初步设计审批（县级权限）（初次审批）","市级","居民身份证","有效期内数据"]
[2286,"长江干线以外通航建筑物运行方案审批（县级权限）（审核）","市级","居民身份证","有效期内数据"]
[2287,"长江干线以外通航建筑物运行方案审批（县级权限）（变更）","市级","居民身份证","有效期内数据"]
[2288,"危险货物港口建设项目安全设施设计审查（县级权限）","市级","居民身份证","有效期内数据"]
[2289,"港口内进行危险货物的装卸、过驳作业许可（县级权限）","市级","居民身份证","有效期内数据"]
[2290,"港口采掘、爆破施工作业许可（县级权限）","市级","居民身份证","有效期内数据"]
[2291,"道路运输企业新建或者变更道路运输车辆动态监控平台的备案","市级","居民身份证","有效期内数据"]
[2292,"公路、水运工程质量交工核验","市级","居民身份证","有效期内数据"]
[2293,"公路水运工程工地试验室人员变更备案","市级","居民身份证","有效期内数据"]
[2294,"公路水运工程工地试验室设立备案","市级","居民身份证","有效期内数据"]
[2295,"客运经营者发车时间安排纠纷裁决","市级","道路运输证","有效期内数据"]
[2296,"捕捞辅助船渔业捕捞许可证审批","国家、省、市、区（县）","居民身份证、申请人户口簿、营业执照","有效期内数据"]
[2297,"出售或者运输水生动物水产苗种检疫合格证核发（县级权限）（海洋发展局）","区级","营业执照、居民身份证","有效期内数据"]
[2298,"渔业船员培训班学员名册、培训内容和教学计划备案","国家、省、市、区（县）","居民身份证","有效期内数据"]
[2299,"出售、购买、利用国家重点保护水生野生动物及其制品备案","区级","居民身份证、营业执照、水生野生动物经营利用许可证、水生野生动物人工繁育许可证","有效期内数据"]
[2300,"海域使用权首次登记（海洋发展局）","国家、省、市、区（县）","居民身份证","有效期内数据"]
[2301,"海域使用权变更登记（海洋发展局）","国家、省、市、区（县）","居民身份证、不动产权证","有效期内数据"]
[2302,"海域使用权转让登记","国家、省、市、区（县）","居民身份证、不动产权证","有效期内数据"]
[2303,"海域使用权注销登记（海洋发展局）","国家、省、市、区（县）","居民身份证、不动产权证","有效期内数据"]
[2304,"水产苗种生产审批","区级","身份证","有效期内数据"]
[2305,"国内非大型拖网、围网海洋捕捞渔船渔业捕捞许可证审批","国家、省、市、区（县）","营业执照","有效期内数据"]
[2306,"渔业船舶所有权登记","国家、省、市、区（县）","营业执照","有效期内数据"]
[2307,"渔业船舶抵押权登记","国家、省、市、区（县）","营业执照","有效期内数据"]
[2308,"渔业船舶国籍登记","国家、省、市、区（县）","营业执照","有效期内数据"]
[2309,"渔业船舶光船租赁登记","国家、省、市、区（县）","营业执照","有效期内数据"]
[2310,"渔业港口经营许可","区级","营业执照","有效期内数据"]
[2311,"水域滩涂养殖证的审核","国家、省、市、区（县）","居民身份证","有效期内数据"]
[2312,"渔港水域拆船污染纠纷裁决","区级","居民身份证","有效期内数据"]
[2313,"政府信息公开","区级","居民身份证","有效期内数据"]
[2314,"对保护和合理利用海域以及进行有关科学研究的奖励","区级","居民身份证","有效期内数据"]
[2315,"对保护渔业航标行为的奖励","区级","居民身份证","有效期内数据"]
[2316,"海岛保护等方面成绩显著的奖励","区级","居民身份证","有效期内数据"]
[2317,"国内渔业船舶抵押权变更登记","国家、省、市、区（县）","居民身份证、申请人户口簿、营业执照","有效期内数据"]
[2318,"国内渔业船舶抵押权取得登记","国家、省、市、区（县）","居民身份证、申请人户口簿、营业执照","有效期内数据"]
[2319,"国内渔业船舶抵押权注销登记","国家、省、市、区（县）","居民身份证、申请人户口簿、营业执照","有效期内数据"]
[2320,"国内渔业船舶抵押权转移登记","国家、省、市、区（县）","居民身份证、申请人户口簿、营业执照","有效期内数据"]
[2321,"国内渔业船舶光船租赁变更登记","国家、省、市、区（县）","居民身份证、申请人户口簿、营业执照","有效期内数据"]
[2322,"国内渔业船舶光船租赁取得登记","国家、省、市、区（县）","居民身份证、申请人户口簿、营业执照","有效期内数据"]
[2323,"国内渔业船舶光船租赁注销登记","国家、省、市、区（县）","居民身份证、申请人户口簿、营业执照","有效期内数据"]
[2324,"国内渔业船舶所有权变更登记","国家、省、市、区（县）","居民身份证、申请人户口簿、营业执照","有效期内数据"]
[2325,"国内渔业船舶所有权取得登记","国家、省、市、区（县）","居民身份证、申请人户口簿、营业执照","有效期内数据"]
[2326,"国内渔业船舶所有权证书补发登记","国家、省、市、区（县）","居民身份证、申请人户口簿、营业执照","有效期内数据"]
[2327,"国内渔业船舶所有权证书换发登记","国家、省、市、区（县）","居民身份证、申请人户口簿、营业执照","有效期内数据"]
[2328,"国内渔业船舶所有权注销登记","国家、省、市、区（县）","居民身份证、申请人户口簿、营业执照","有效期内数据"]
[2329,"渔业港口认定","区级","居民身份证","有效期内数据"]
[2330,"海域使用金分期缴纳审核","区级","居民身份证","有效期内数据"]
[2331,"海域使用金减免审核","区级","居民身份证","有效期内数据"]
[2332,"海域使用权争议行政调解","区级","居民身份证","有效期内数据"]
[2333,"海域使用预审","区级","居民身份证、营业执照","有效期内数据"]
[2334,"渔船初次检验（现有渔船）","国家、省、市、区（县）","居民身份证","有效期内数据"]
[2335,"渔船初次检验（新建渔船）","国家、省、市、区（县）","居民身份证","有效期内数据"]
[2336,"渔船临时检验","国家、省、市、区（县）","居民身份证","有效期内数据"]
[2337,"渔船营运检验（换证检验）","国家、省、市、区（县）","居民身份证","有效期内数据"]
[2338,"渔船营运检验（年度检验）","国家、省、市、区（县）","居民身份证","有效期内数据"]
[2339,"渔船营运检验（期间检验）","国家、省、市、区（县）","居民身份证","有效期内数据"]
[2340,"渔港性质、功能改变审核","区级","居民身份证","有效期内数据"]
[2341,"渔业船舶水上交通事故民事纠纷调解","区级","居民身份证","有效期内数据"]
[2342,"渔业水域污染事故经济损失赔偿纠纷调解","区级","居民身份证","有效期内数据"]
[2343,"海域使用权变更","国家、省、市、区（县）","居民身份证，资质、资信等相关材料","有效期内数据"]
[2344,"海域使用权续期审核","国家、省、市、区（县）","营业执照、法定代表人（单位负责人）或个人身份证、受委托人身份证","有效期内数据"]
[2345,"海域使用权转让审核","国家、省、市、区（县）","营业执照、法定代表人（单位负责人）或个人身份证、受委托人身份证","有效期内数据"]
[2346,"海域使用申请审核","国家、省、市、区（县）","居民身份证，资质、资信等相关材料","有效期内数据"]
[2347,"海域使用用途变更","国家、省、市、区（县）","居民身份证，资质、资信等相关材料","有效期内数据"]
[2348,"猎捕国家二级保护水生野生动物审批","区级","居民身份证","有效期内数据"]
[2349,"县（市、区）内购置国内海洋捕捞渔船及捕捞辅助船审批","国家、省、市、区（县）","居民身份证、申请人户口簿、营业执照","有效期内数据"]
[2350,"渔港内易燃、易爆、有毒等危害品装卸审批","区级","居民身份证","有效期内数据"]
[2351,"渔业船舶船员证书核发","国家、省、市、区（县）","居民身份证","有效期内数据"]
[2352,"在渔港内新建、改建、扩建各种设施，或者进行其他水上、水下施工作业审批","区级","居民身份证","有效期内数据"]
[2353,"制造、更新改造国内小型海洋捕捞渔船审批","国家、省、市、区（县）","居民身份证、申请人户口簿、营业执照","有效期内数据"]
[2354,"无居民海岛生物和非生物标本采集审批（县级权限）","区级","营业执照、法定代表人（单位负责人）或个人身份证、受委托人身份证\n\n","有效期内数据"]
[2355,"海域使用权设立审核","国家、省、市、区（县）","营业执照、法定代表人（单位负责人）或个人身份证、受委托人身份证\n\n","有效期内数据"]
[2356,"海域使用权变更审核","国家、省、市、区（县）","营业执照、法定代表人（单位负责人）或个人身份证、受委托人身份证\n\n","有效期内数据"]
[2357,"临时海域使用活动审批（县级权限）","国家、省、市、区（县）","营业执照、法定代表人（单位负责人）或个人身份证、受委托人身份证\n\n","有效期内数据"]
[2358,"渔业船舶船员证书（县级权限）补发","国家、省、市、区（县）","居民身份证","有效期内数据"]
[2359,"渔业船舶船员证书（县级权限）延续","国家、省、市、区（县）","居民身份证","有效期内数据"]
[2360,"渔业船舶船员证书核发（县级权限）","国家、省、市、区（县）","居民身份证","有效期内数据"]
[2361,"水产苗种生产审批（县级权限）(延续）","区级","居民身份证","有效期内数据"]
[2362,"水产苗种生产审批（县级权限）","区级","居民身份证","有效期内数据"]
[2363,"水产苗种生产审批（县级权限）(变更）","区级","居民身份证","有效期内数据"]
[2364,"水域滩涂养殖证核发（县级权限）","国家、省、市、区（县）","营业执照、居民身份证","有效期内数据"]
[2365,"水域滩涂养殖证核发（县级权限）（延续）","国家、省、市、区（县）","营业执照、居民身份证","有效期内数据"]
[2366,"水域滩涂养殖证核发（县级权限）（变更）","国家、省、市、区（县）","营业执照、居民身份证","有效期内数据"]
[2367,"围垦沿海滩涂审批（县级权限）","区级","居民身份证","有效期内数据"]
[2368,"渔业船网工具指标审批（县级权限）—批准书有效期届满延续","国家、省、市、区（县）","居民身份证、申请人户口簿、营业执照","有效期内数据"]
[2369,"渔业船网工具指标审批（县级权限）—补发","国家、省、市、区（县）","居民身份证、申请人户口簿、营业执照","有效期内数据"]
[2370,"渔业船网工具指标审批（县级权限）—首次申请","国家、省、市、区（县）","居民身份证、申请人户口簿、营业执照","有效期内数据"]
[2371,"渔业捕捞许可（县级权限）—内陆渔船首次或重新申请","国家、省、市、区（县）","居民身份证、营业执照","有效期内数据"]
[2372,"渔业捕捞许可（县级权限）—变更（海洋渔船）","国家、省、市、区（县）","居民身份证、营业执照","有效期内数据"]
[2373,"渔业捕捞许可（县级权限）—海洋渔船首次或重新申请","国家、省、市、区（县）","居民身份证、营业执照","有效期内数据"]
[2374,"渔业捕捞许可（县级权限）—跨渔区界限或相邻交界水域作业渔船（海洋渔船）","国家、省、市、区（县）","居民身份证、营业执照","有效期内数据"]
[2375,"渔业捕捞许可（县级权限）—证书有效期届满延续（海洋渔船）","国家、省、市、区（县）","居民身份证、营业执照","有效期内数据"]
[2376,"渔业捕捞许可（县级权限）—补发（内陆渔船）","国家、省、市、区（县）","居民身份证、营业执照","有效期内数据"]
[2377,"渔业捕捞许可（县级权限）—跨渔区界限或相邻交界水域作业渔船（内陆渔船）","国家、省、市、区（县）","居民身份证、营业执照","有效期内数据"]
[2378,"渔业捕捞许可（县级权限）—证书有效期届满延续（内陆渔船）","国家、省、市、区（县）","居民身份证、营业执照","有效期内数据"]
[2379,"渔业捕捞许可（县级权限）—补发（海洋渔船）","国家、省、市、区（县）","居民身份证、营业执照","有效期内数据"]
[2380,"渔业捕捞许可（县级权限）—变更（内陆渔船）","国家、省、市、区（县）","居民身份证、营业执照","有效期内数据"]
[2381,"在渔港水域和其他渔业水域设置专用航标","区级","居民身份证","有效期内数据"]
[2382,"撤除、移动位置或变更专用航标其他状况","区级","居民身份证","有效期内数据"]
[2383,"渔港内新建、改建、扩建设施或者其他水上、水下施工审批（县级权限）","区级","居民身份证","有效期内数据"]
[2384,"渔港内易燃、易爆、有毒等危险品装卸审批（县级权限）","区级","居民身份证","有效期内数据"]
[2385,"渔业船舶国籍登记（县级权限）—换发","国家、省、市、区（县）","申请人户口簿、营业执照","有效期内数据"]
[2386,"渔业船舶国籍登记（县级权限）—延续","国家、省、市、区（县）","申请人户口簿、营业执照","有效期内数据"]
[2387,"渔业船舶国籍登记（县级权限）—变更","国家、省、市、区（县）","申请人户口簿、营业执照","有效期内数据"]
[2388,"渔业船舶国籍登记（县级权限）—补发","国家、省、市、区（县）","申请人户口簿、营业执照","有效期内数据"]
[2389,"渔业船舶国籍登记（县级权限）—注销","国家、省、市、区（县）","申请人户口簿、营业执照","有效期内数据"]
[2390,"渔业船舶国籍登记（县级权限）—首次或重新申请","国家、省、市、区（县）","申请人户口簿、营业执照","有效期内数据"]
[2391,"出售、购买、利用省重点保护水生野生动物及其制品审批","区级","居民身份证","有效期内数据"]
[2392,"外国人在我省对省重点保护水生野生动物进行野外考察或者在野外拍摄电影、录像等活动审批","区级","居民身份证","有效期内数据"]
[2393,"人工繁育省重点保护水生野生动物审批","区级","居民身份证","有效期内数据"]
[2394,"猎捕省重点保护水生野生动物审批","区级","居民身份证","有效期内数据"]
[2395,"新装、增容、装表临时用电（不含高危、高耗能及重要电力用户）","省级","居民身份证、不动产登记证明","有效期内数据"]
[2396,"居民阶梯电价一户多人口认定申请","省级","居民身份证、不动产登记证明","有效期内数据"]
[2397,"居民峰谷电变更，基本电费计费方式变更，需量值变更，电价类别及行业信息变更","省级","居民身份证、不动产登记证明","有效期内数据"]
[2398,"增值税变更","省级","居民身份证、营业执照","有效期内数据"]
[2399,"申请电能表校验","省级","居民身份证、不动产登记证明","有效期内数据"]
[2400,"更名、过户","省级","居民身份证、不动产登记证明","有效期内数据"]
[2401,"销户、减容、减容恢复、暂停、暂停恢复","省级","居民身份证、不动产登记证明","有效期内数据"]
[2402,"高压用电新装（小区配套新装）","省级","居民身份证、不动产登记证明、营业执照","有效期内数据"]
[2403,"用电变更申请暂停用电","省级","居民身份证、不动产登记证明、营业执照","有效期内数据"]
[2404,"用电更名","省级","居民身份证、不动产登记证明、营业执照","有效期内数据"]
[2405,"用电变更申请减容(永久性减容)","省级","居民身份证、不动产登记证明、营业执照","有效期内数据"]
[2406,"高压用电增容（企业）","省级","居民身份证、不动产登记证明、营业执照","有效期内数据"]
[2407,"用电变更申请减容(临时性减容)","省级","居民身份证、不动产登记证明、营业执照","有效期内数据"]
[2408,"低压用电新装（非居民）","省级","居民身份证、不动产登记证明、营业执照","有效期内数据"]
[2409,"高压用电新装（企业）","省级","居民身份证、不动产登记证明、营业执照","有效期内数据"]
[2410,"用电变更申请容量恢复(暂停恢复)","省级","居民身份证、不动产登记证明、营业执照","有效期内数据"]
[2411,"低压用电增容（居民）","省级","居民身份证、不动产登记证明、营业执照","有效期内数据"]
[2412,"临时用电新装","省级","居民身份证、不动产登记证明、营业执照","有效期内数据"]
[2413,"用电变更申请容量恢复(临时性减容恢复)","省级","居民身份证、不动产登记证明、营业执照","有效期内数据"]
[2414,"用电变更申请居民峰谷电变更","省级","居民身份证、不动产登记证明、营业执照","有效期内数据"]
[2415,"低压用电增容（非居民）","省级","居民身份证、不动产登记证明、营业执照","有效期内数据"]
[2416,"用电变更申请电价类别改变","省级","居民身份证、不动产登记证明、营业执照","有效期内数据"]
[2417,"用电过户","省级","居民身份证、不动产登记证明、营业执照","有效期内数据"]
[2418,"用电变更申请高压容量/需量变更","省级","居民身份证、不动产登记证明、营业执照","有效期内数据"]
[2419,"用电变更申请销户","省级","居民身份证、不动产登记证明、营业执照","有效期内数据"]
[2420,"低压用电新装（居民）","省级","居民身份证、不动产登记证明、营业执照","有效期内数据"]
[2421,"信息公开（即墨区工信局）","青岛市","居民身份证、营业执照","有效期内数据"]
[2422,"政府信息依申请公开（即墨区发展改革局）","青岛市","居民身份证、营业执照","有效期内数据"]
[2423,"从事可能影响油气管道保护的施工审批","省级","建筑业企业资质证书","有效期内数据"]
[2424,"生产、销售、使用放射性同位素和射线装置的企业现场检查","市级","辐射安全许可证","有效期内数据"]
[2425,"已备案企业投资项目变更建设地点、投资规模、建设规模、建设内容（不含技术改造项目,境外投资项目,汽车投资、新建炼化、钢铁、焦化、水泥、轮胎项目）","青岛市","全程网办，无需提报任何证照","有效期内数据"]
[2426,"已备案企业投资除汽车整车项目外的汽车项目变更建设地点、投资规模、建设规模、建设内容","青岛市","全程网办，无需提报任何证照","有效期内数据"]
[2427,"申请企业投资除汽车整车项目外的汽车项目备案","青岛市","全程网办，无需提报任何证照","有效期内数据"]
[2428,"已备案企业投资项目变更项目法人（不含技术改造项目,境外投资项目,汽车投资、新建炼化、钢铁、焦化、水泥、轮胎项目）","青岛市","全程网办，无需提报任何证照","有效期内数据"]
[2429,"已备案企业投资除汽车整车项目外的汽车项目放弃建设","青岛市","全程网办，无需提报任何证照","有效期内数据"]
[2430,"已备案企业投资除汽车整车项目外的汽车项目变更项目法人","青岛市","全程网办，无需提报任何证照","有效期内数据"]
[2431,"已备案企业投资项目放弃建设（不含技术改造项目,境外投资项目,汽车投资、新建炼化、钢铁、焦化、水泥、轮胎项目）","青岛市","全程网办，无需提报任何证照","有效期内数据"]
[2432,"申请企业投资项目备案（不含技术改造项目,境外投资项目,汽车投资、新建炼化、钢铁、焦化、水泥、轮胎项目）","青岛市","全程网办，无需提报任何证照","有效期内数据"]
[2433,"政府投资项目的项目建议书审批","青岛市","线下办理，无需提报任何证照","有效期内数据"]
[2434,"政府投资项目的可行性研究报告审批","青岛市","线下办理，需提报土地证","有效期内数据"]
[2435,"政府投资项目初步设计概算审批","青岛市","线下办理，无需提报任何证照","有效期内数据"]
[2436,"个人用户业务入网、业务变更、销户等业务使用","县级","居民身份证","有效期内数据"]
[2437,"单位用户业务入网、业务变更、销户等业务使用","县级","营业执照","有效期内数据"]
[2438,"单位用户入网（社会团体法人）","县级","社会团体法人证书","有效期内数据"]
[2439,"单位用户入网（医疗机构）","县级","医疗机构执业许可证","有效期内数据"]
[2440,"单位用户入网（企业）","县级","企业名称变更、住所（经营场所）变更证明","有效期内数据"]
[2441,"农民专业合作社开展信用互助业务审批","市级","营业执照、居民身份证","有效期内数据"]
[2442,"融资担保公司变更事项备案","市级","营业执照、居民身份证、不动产权证书","有效期内数据"]
[2443,"典当行设立审批","市级","营业执照、居民身份证、不动产权证书","有效期内数据"]
[2444,"典当行事项变更审批","市级","营业执照、居民身份证、典当经营许可证正副本、不动产权证书","有效期内数据"]
[2445,"典当行分支机构设立审批","市级","不动产权证书","有效期内数据"]
[2446,"免除残疾人评定费","区级","残疾人证","有效期内数据"]
[2447,"残疾类别/等级变更","国家级","居民身份证","有效期内数据"]
[2448,"残疾人办理求职登记服务","市级","居民身份证、残疾人证","有效期内数据"]
[2449,"残疾人大学生教育奖励审核","市级","居民身份证、残疾人证","有效期内数据"]
[2450,"残疾人个体户基本养老保险和基本医疗保险补贴审核","市级","居民身份证、残疾人证","有效期内数据"]
[2451,"残疾人托养服务认定","市级","居民身份证、残疾人证","有效期内数据"]
[2452,"残疾人证挂失补办","国家级","居民身份证","有效期内数据"]
[2453,"残疾人证换领","国家级","居民身份证","有效期内数据"]
[2454,"残疾人证迁移","国家级","居民身份证","有效期内数据"]
[2455,"残疾人证新办","国家级","居民身份证","有效期内数据"]
[2456,"残疾人证注销","国家级","居民身份证","有效期内数据"]
[2457,"残疾学生教育救助审核","市级","居民身份证、残疾人证","有效期内数据"]
[2458,"困难重度残疾人就业生活补贴认定","市级","居民身份证、残疾人证","有效期内数据"]
[2459,"全国残疾人按比例就业情况联网认证","省级","居民身份证、残疾人证","有效期内数据"]
[2460,"用人单位残疾人就业状况认定","省级","居民身份证、残疾人证","有效期内数据"]
[2461,"山东省听力残疾儿童人工耳蜗康复救助办理流程","省级","残疾人证","有效期内数据"]
[2462,"残疾大学生教育奖励","市级","残疾人证","有效期内数据"]
[2463,"重度残疾人居家托养服务申请","市级","残疾人证","有效期内数据"]
[2464,"重度残疾人机构托养服务申请","市级","残疾人证","有效期内数据"]
[2465,"残疾儿童康复救助","省级","身份证、残疾人证","有效期内数据"]
[2466,"残疾人家庭无障碍改造","市级","身份证、残疾人证","有效期内数据"]
[2467,"政府信息依申请公开（即墨区财政局）","区县级","居民身份证、营业执照","有效期内数据"]
[2468,"政府采购供应商投诉处理","区县级","居民身份证","有效期内数据"]

{"sheet":"导出计数_实施主体","index":1,"n_rows":46,"n_cols":4,"rows_kept":46,"merged":[[0,0,0,3]]}
["第三批用证清单的事项数应大于等于政务网依申请事项数"]
["实施主体","第三批用证清单事项数","政务服务网即墨站依申请事项数","需补充事项数"]
["即墨区文化和旅游局",54,89,{"$f":"C3-B3","v":35}]
["即墨区统战部",5,32,27]
["即墨区自然资源局",169,185,16]
["即墨区教育体育局",45,56,11]
["即墨区发展改革局",14,23,9]
["即墨区水利局",27,35,8]
["即墨区气象局",null,7,7]
["即墨区医疗保障局",30,35,5]
["中共即墨区委员会办公室（区档案馆）",1,6,5]
["即墨区统计局",4,8,4]
["即墨区委员会机构编制委员会办公室",null,3,3]
["即墨区消防大队",1,3,2]
["即墨区市场监督管理局",45,46,1]
["即墨区科技局",null,1,1]
["即墨区地方金融监督管理局",5,6,1]
["青岛市公安局即墨分局",192,189,0]
["即墨区商务局",12,11,0]
["即墨区税务局",159,89,0]
["即墨区交通运输局",127,117,0]
["即墨区财政局",2,2,{"$f":"C22-B22","v":0}]
["即墨区行政审批服务局",812,753,0]
["即墨区海洋发展局",99,95,0]
["即墨区应急管理局",30,27,0]
["即墨区农业农村局",68,60,0]
["贸促会",1,1,{"$f":"C27-B27","v":0}]
["即墨区人力资源和社会保障局",195,157,0]
["即墨区住房和城乡建设局",74,46,0]
["即墨区民政局",56,42,0]
["即墨区司法局",55,16,0]
["即墨区生态环境分局",44,41,0]
["即墨区卫生健康局",41,26,0]
["即墨区退役军人事务局",28,21,0]
["即墨区供电公司",26,20,0]
["即墨区残疾人联合会",21,15,0]
["即墨区电信公司",5,null,0]
["即墨区住房公积金管理中心",5,null,0]
["青岛中即港华燃气有限公司",4,4,{"$f":"C39-B39","v":0}]
["即墨区综合执法局",3,1,0]
["即墨区血站",2,null,0]
["即墨区政府办公室",2,1,0]
["即墨区工业和信息化局",1,1,{"$f":"C43-B43","v":0}]
["即墨区镇街",1,null,0]
["即墨区自来水公司",1,null,0]
["合计",{"$f":"SUM(B3:B45)","v":2466},{"$f":"SUM(C3:C45)","v":2270},{"$f":"C46-B46","v":-196}]

{"sheet":"WpsReserved_CellImgList","index":2,"n_rows":0,"n_cols":0,"rows_kept":0,"hidden":true}